Business Unit Description,Expense Code,Expense Code Description,GL Date,Document No,Invoice No,Invoiced Value,Supplier Name,Address Book No,Proclass Details Level 1,Thomson Classification Description
"FAMILIES, ADOPTERS & CARERS TE",5750,TRAINING EXPENDITURE          ,02/01/2013,3387125,2100147654,"3,200.00",SHEFFIELD CHILDRENS HOSPITAL NHS  TRUST ,332785,Unclassified Non Trade,HOSPITALS                     
ALDINE HOUSE                  ,5610,AGENCY STAFF                  ,02/01/2013,3387149,781492,587.1,TEACHING PERSONNEL                      ,410695,Human Resources,EMPLOYMENT & RECRUITMENT AGENC
SCHOOL MEALS                  ,8140,GROCERIES                     ,02/01/2013,3387492,ERS INVOICE77333         ,323.99,PIT STOP                                ,317086,Unclassified Non Trade,CHARITIES & VOLUNTARY ORGANISA
STRENGTHENING PUBLIC HEALTH   ,8180,GRANTS                        ,02/01/2013,3387498,ERS INVOICE77339         ,"16,000.00",COMMUNITY LEGAL ADVICE SERVICE          ,472004,Legal Services,LEGAL SERVICES                
STRENGTHENING PUBLIC HEALTH   ,8180,GRANTS                        ,02/01/2013,3387499,ERS INVOICE77340         ,"14,000.00",SOUTH YORKSHIRE ENERGY CENTRE           ,529715,Consultancy,ENERGY CONSERVATION CONSULTANT
AFFORDABLE HOUSING            ,8440,FEE EXPENSES                  ,02/01/2013,3387501,ERS INVOICE77342         ,"1,884.00",REDACTED PERSONAL DATA,575749,Unclassified Non Trade,OUT OF SCOPE FOR SIC MONITORIN
PARENT REIMBURSEMENTS         ,7060,EXTERNAL VEHICLE HIRE         ,02/01/2013,3387503,ERS INVOICE77344         ,267.3,REDACTED PERSONAL DATA,501295,Unclassified Non Trade,OUT OF SCOPE FOR SIC MONITORIN
CLAIMS                        ,8740,PUBLIC LIABILITY              ,02/01/2013,3387520,ERS INVOICE77362         ,"7,162.50",REDACTED PERSONAL DATA,576666,Unclassified Non Trade,OUT OF SCOPE FOR SIC MONITORIN
COMMUNITY ASSEMBLY CENTRAL    ,9120,OTHER AGENCIES                ,02/01/2013,3387528,ERS INVOICE77370         ,"1,200.00",FRIENDS OF PRIMROSE CHILDREN'S CENTRE   ,547270,Social Community Care,CHILDREN'S ACTIVITY CENTRES   
DSG MANAGEMENT REVIEWS        ,8460,CONSULTANTS FEES              ,02/01/2013,3387529,ERS INVOICE77371         ,"9,310.40",MR TONY DESSENT                         ,524993,Unclassified Non Trade,LOCAL GOVERNMENT              
CORONIAL SERVICES             ,8440,PATHOLOGIST INVOICE           ,02/01/2013,3387532,ERS INVOICE77374         ,595.9,DR NAOMI CARTER                         ,554404,Medical ,DOCTORS                       
CORONIAL SERVICES             ,8440,PATHOLOGIST INVOICE           ,02/01/2013,3387533,ERS INVOICE77375         ,"1,645.60",DR MINI C VARGHESE                      ,567541,Medical ,DOCTORS                       
SAFETY CAMERAS A61            ,1194,OTHER FEES                    ,02/01/2013,3352000,49074,681.86,HALDO DEVELOPMENTS LIMITED              ,537728,Traffic Management,TRAFFIC MANAGEMENT SYSTEMS    
P&TC STAFFING                 ,8490,OTHER PROFESSIONAL FEES       ,02/01/2013,3363119,10279,250,COLLINS-DONNELLY CONSULTANCY            ,504223,Human Resources,TRAINING CONSULTANTS          
ON STREET CAR PARKING         ,8030,EQUIPMENT MAINTENANCE CONTRACT,02/01/2013,3363134,109733,"10,889.57",METRIC GROUP LIMITED                    ,460092,Construction,ACCESS EQUIPMENT              
ON STREET CAR PARKING         ,8030,EQUIPMENT MAINTENANCE CONTRACT,02/01/2013,3366070,109817,336.96,METRIC GROUP LIMITED                    ,460092,Construction,ACCESS EQUIPMENT              
STANIFORTH ROAD WORKSHOPS     ,7010,ROUTINE VEHICLE REPAIR & MTCE ,02/01/2013,3370473,8464,"17,522.00",TRADE GARAGE EQUIPMENT LTD              ,564495,Vehicles Not Buses,CAR BODY REPAIRS              
RANGERS (MANAGER)             ,5750,TRAINING EXPENDITURE          ,02/01/2013,3375592,1100001810,600,CITY & GUILDS                           ,298137,Education,EXAMINATION BOARDS            
WOOD LANE                     ,8060,MATERIALS AND SUPPLIES GENERAL,02/01/2013,3375929,494,"2,700.00",NORTH SHEFFIELD CONSERVATION GROUP      ,310661,Unclassified Non Trade,CHARITIES & VOLUNTARY ORGANISA
ENERGY -SCHEME                ,6190,WATER SERVICES-INVOICED       ,02/01/2013,3376126,800686764,"34,485.51",YORKSHIRE WATER                         ,534807,Utilities,WATER COMPANIES               
CAPABILITY & DEVELOPMENT      ,8060,MATERIALS AND SUPPLIES GENERAL,02/01/2013,3376725,42981,315.15,QUALSAFE LIMITED                        ,441282,Human Resources,FIRST AID TRAINING            
SANCTUARY SCHEME              ,8060,MATERIALS AND SUPPLIES GENERAL,02/01/2013,3377755,71210,500,SENTRY DOORS LTD.                       ,208307,Building Construction Materials,DOOR MANUFACTURERS - INDUSTRIA
LAND DRAINAGE & FLOOD MGMT    ,8440,FEE EXPENSES                  ,02/01/2013,3378364,4763,390,ENVIRONMENTAL DRAINAGE SOLUTIONS LTD    ,373384,Environmental Services,DRAINAGE CONTRACTORS          
FOSTERING DEVELOPMENT         ,8420,ADVERTISING AND PUBLICITY     ,02/01/2013,3378982,54287,"1,130.40",REGIONAL MAGAZINE COMPANY LIMITED       ,326282,Education,PUBLISHERS                    
BLACKBURN VALLEY NORTH        ,8440,FEE EXPENSES                  ,02/01/2013,3380190,495,"1,550.00",WOOD LANE COUNTRYSIDE CENTRE            ,547456,Unclassified Non Trade,COMMUNITY CENTRES             
WOODLANDS                     ,8260,WOODLAND DEVELOPMENT EXPENSES ,02/01/2013,3380334,1090,"1,600.00",TINSLEY TREE PROJECT                    ,490222,Construction,LANDSCAPE CONTRACTORS         
ARCHIVES & CONSERVATION       ,8060,MATERIALS AND SUPPLIES GENERAL,02/01/2013,3380339,121583,"2,292.27",TNT UK LTD.                             ,209076,Mail Services,COURIER & MESSENGER SERVICES  
SWAN                          ,1194,OTHER FEES                    ,02/01/2013,3380364,686,"8,960.00",SHEFFIELD HOMES LTD                     ,503889,Unclassified Non Trade,"HOUSING ASSOCIATIONS, SOCIETIE"
PARK HILL (STH)               ,1194,OTHER FEES                    ,02/01/2013,3380368,685,"28,333.50",SHEFFIELD HOMES LTD                     ,503889,Unclassified Non Trade,"HOUSING ASSOCIATIONS, SOCIETIE"
TREE TEAM                     ,6370,GROUNDS MTCE AND ARBORICULTURE,02/01/2013,3380711,943,"1,780.00",SHEFFIELD TREE CARE                     ,462546,Environmental Services,TREE WORK & FORESTRY SERVICES 
DISADVANTAGED AREA FUNDING    ,9120,OTHER AGENCIES                ,02/01/2013,3380866,T086                     ,"5,625.00",THE EMPLOYERS FORUM                     ,353566,Unclassified Non Trade,CHARITIES & VOLUNTARY ORGANISA
RANGERS (MANAGER)             ,8060,MATERIALS AND SUPPLIES GENERAL,02/01/2013,3381062,3.4E+12,251.43,DECATHLON UK LTD                        ,365405,Sports & Playground,SPORTS GOODS SHOPS            
BURGLAR ALARMS                ,6030,REPAIRS TO TENANTED PROPERTIES,02/01/2013,3381162,SSH/CAPPRO/RESP/185/12   ,"5,555.13",TELSTAR SECURITY                        ,299814,Facilities Management,SECURITY EQUIPMENT            
MALON WAY CHILDREN'S HOME     ,6030,REPAIRS AND MTCE - RESPONSIVE ,02/01/2013,3381212,135779,416.67,HILLSBOROUGH FENCING CO LTD             ,205531,Construction,FENCING CONTRACTORS           
CHANCET WOOD YOUNG CHILDREN'SC,6280,HIRE OF PREMISES              ,02/01/2013,3381360,MCF/12/010               ,600,MEADOWHEAD CHRISTIAN FELLOWSHIP         ,406396,Unclassified Non Trade,PLACES OF WORSHIP             
CITY WIDE CHILD CARE CONTRACT ,8440,FEE EXPENSES                  ,02/01/2013,3381417,41261,"9,521.00",DICKORY DOCK NURSERY LTD.               ,362846,Social Community Care,NURSERIES & CRECHES           
DOUGLAS ROAD                  ,8440,FEE EXPENSES                  ,02/01/2013,3381530,79894,604.96,HARPERS ENVIRONMENTAL LTD               ,537022,Consultancy,ENVIRONMENTAL CONSULTANTS     
ALDINE HOUSE                  ,5610,AGENCY STAFF                  ,02/01/2013,3381582,779611,"1,693.60",TEACHING PERSONNEL                      ,410695,Human Resources,EMPLOYMENT & RECRUITMENT AGENC
GROUNDS MAINTENANCE           ,8550,OTHER SERVICES                ,02/01/2013,3381728,8520545990,649.93,VEOLIA ENVIRONMENTAL SERVICES           ,464059,Environmental Services,WASTE DISPOSAL SERVICES       
DISADVANTAGED AREA FUNDING    ,9120,OTHER AGENCIES                ,02/01/2013,3381929,5037844,"7,548.00", THE CONSERVATION VOLUNTEERS            ,408123,Unclassified Non Trade,CHARITIES & VOLUNTARY ORGANISA
DISADVANTAGED AREA FUNDING    ,9120,OTHER AGENCIES                ,02/01/2013,3381931,5037842,750, THE CONSERVATION VOLUNTEERS            ,408123,Unclassified Non Trade,CHARITIES & VOLUNTARY ORGANISA
DISADVANTAGED AREA FUNDING    ,9120,OTHER AGENCIES                ,02/01/2013,3381938,5037841,"3,016.00", THE CONSERVATION VOLUNTEERS            ,408123,Unclassified Non Trade,CHARITIES & VOLUNTARY ORGANISA
DISADVANTAGED AREA FUNDING    ,9120,OTHER AGENCIES                ,02/01/2013,3381939,5037843,"1,883.00", THE CONSERVATION VOLUNTEERS            ,408123,Unclassified Non Trade,CHARITIES & VOLUNTARY ORGANISA
EAST SERVICE AREA CSS         ,8390,STATIONERY                    ,02/01/2013,3381990,SINV00241969             ,266.81,R A ROBERTS (OFFICE EQUIPMENT) LTD      ,207777,Furniture,OFFICE FURNITURE & EQUIPMENT  
ACCES2NATURE                  ,8260,WOODLAND DEVELOPMENT EXPENSES ,02/01/2013,3382041,AAUSCC/CN1/12            ,300,ADVENTURES ARE US                       ,425540,Leisure Services,CORPORATE ENTERTAINMENT       
CORONIAL SERVICES             ,5750,TRAINING EXPENDITURE          ,02/01/2013,3382056,01/3880493               ,500,CO-OPERATIVE TRAVEL MANAGEMENT          ,202987,Facilities Management,TRAVEL AGENTS & HOLIDAY COMPAN
OUTDOOR EDUCATION             ,6030,REPAIRS AND MTCE - RESPONSIVE ,02/01/2013,3382102,484452878,351.98,SCREWFIX DIRECT LTD.                    ,208266,Building Construction Materials,DO IT YOURSELF WHOLESALERS    
OUTDOOR EDUCATION             ,6080,CONTRACT CLEANING             ,02/01/2013,3382105,5295,318,POPPIES PEAK DISTRICT LTD               ,548756,Cleaning and Janitorial,CLEANING SERVICES - DOMESTIC  
OUTDOOR EDUCATION             ,8130,CATERING SUPPLIES             ,02/01/2013,3382111,1865,448.8,HAZEL'S QUALITY CATERING LTD            ,300944,Catering,CATERERS                      
OUTDOOR EDUCATION             ,6370,GROUNDS MTCE AND ARBORICULTURE,02/01/2013,3382114,32,539,DALE FARM                               ,330054,Unclassified Trade,DAIRY FARMERS                 
CORONIAL SERVICES             ,8100,RECHARGEABLE PURCHASES        ,02/01/2013,3382167,6019728,"7,265.28",BARNSLEY HOSPITAL NHS FT                ,308864,Unclassified Non Trade,HOSPITALS                     
GROUNDS MAINTENANCE           ,8010,EQUIPMENT PURCHASE AND REPAIR ,02/01/2013,3382256,SI/01957964              ,"1,664.00",NOMIX ENVIRO                            ,207128,Unclassified Trade,CHEMICALS & ALLIED PRODUCTS   
CITY WIDE CHILD CARE CONTRACT ,8440,FEE EXPENSES                  ,02/01/2013,3382281,300,"11,657.00",EL NISAH COMMUNITY NURSERY              ,471427,Social Community Care,NURSERIES & CRECHES           
PLAYGROUND MAINTENANCE & INSPE,8010,EQUIPMENT PURCHASE AND REPAIR ,02/01/2013,3382292,33059,800.91,CED LIMITED                             ,576082,Unclassified Trade,STONE MERCHANTS - NATURAL & PR
100 APPRENTICES               ,9120,OTHER AGENCIES                ,02/01/2013,3382701,SINV006441               ,"1,948.05",APOLLO PROPERTY SERVICES GROUP          ,551467,Construction,BUILDERS                      
WEST MAST                     ,6210,RENTS                         ,02/01/2013,3382961,1924,"6,468.00",NUCA TRADING AS ZEST                    ,503219,Unclassified Non Trade,CHARITIES & VOLUNTARY ORGANISA
CASTLE MARKET                 ,6090,WASTE DISPOSAL                ,02/01/2013,3382995,215,600,R L DEAR (WASTE MERCHANTS) LTD          ,360135,Environmental Services,WASTE MERCHANTS               
OTHER REPAIRS & FEES          ,6030,PURCHASE OF KEYS / SACKS      ,02/01/2013,3383024,127723,261.05,H HARROLD & SONS LTD                    ,205285,Facilities Management,LOCK SMITHS                   
MULBERRY LODGE                ,8010,EQUIPMENT PURCHASE AND REPAIR ,02/01/2013,3383090,48506,270.9,BARNSLEY CATERING SERVICES LTD          ,203262,Catering,CATERING EQUIPMENT            
PURCHASING                    ,9170,ASYLUM & IMMIGRATION          ,02/01/2013,3383122,3010164,"17,748.35",METROPOLITAN SUPPORT TRUST LTD          ,492530,Unclassified Non Trade,"HOUSING ASSOCIATIONS, SOCIETIE"
TREE MANAGEMENT               ,1165,NC&A OTHER                    ,02/01/2013,3383137,1293,279,DRONFIELD TREE SERVICES LTD             ,405525,Environmental Services,TREE WORK & FORESTRY SERVICES 
NORTH AREA                    ,8110,"CLOTHING, UNIFORM AND LAUNDRY ",02/01/2013,3383161,918282382,256.08,ARCO LTD                                ,203022,Clothing,SAFETY EQUIPMENT & CLOTHING   
CITY WIDE CHILD CARE CONTRACT ,8440,FEE EXPENSES                  ,02/01/2013,3383162,41246,"4,372.00",OSBOURNE HOUSE COMMUNITY NRSY LTD       ,311900,Social Community Care,NURSERIES & CRECHES           
MONTGOMERY TERRACE            ,8050,FURNITURE PURCHASES           ,02/01/2013,3383184,4593068RI                ,490.77,ARGOS SUPERSTORE                        ,203031,Unclassified Trade,CATALOGUE SHOWROOMS           
CUSTOMER FIRST PROGRAMME      ,8550,OTHER SERVICES                ,02/01/2013,3383195,INV1577                  ,"9,850.00",SOCITM LIMITED                          ,374354,Human Resources,INSTITUTES - PROFESSIONAL     
SHEFFIELD HOMES TREES         ,6370,GROUNDS MTCE AND ARBORICULTURE,02/01/2013,3383212,953,420,SHEFFIELD TREE CARE                     ,462546,Environmental Services,TREE WORK & FORESTRY SERVICES 
GRAVES PARK - ANIMAL FARM INC ,8060,MATERIALS AND SUPPLIES GENERAL,02/01/2013,3383214,213931,564.04,ARGO FEEDS LTD                          ,203028,Unclassified Trade,PET FOODS & ANIMAL FEEDS      
ACCOMMODATION                 ,6020,REPAIRS AND MTCE - PROGRAMMED ,02/01/2013,3383216,52046,"25,000.00",SIS WORKSPACE LTD                       ,466606,Construction,OFFICE REFURBISHMENT SERVICES 
CORONIAL SERVICES             ,8100,RECHARGEABLE PURCHASES        ,02/01/2013,3383230,9000147824,"3,983.73",BARNSLEY MBC                            ,414839,Unclassified Non Trade,LOCAL GOVERNMENT              
ELECTORAL REGISTRATION        ,8400,PUBLICATIONS AND PERIODICALS  ,02/01/2013,3383235,801649017,270, THOMSON REUTERS                        ,340190,Human Resources,INFORMATION SERVICES          
ACCES2NATURE                  ,8260,WOODLAND DEVELOPMENT EXPENSES ,02/01/2013,3383312,10/5137/57EC/40802       ,"3,888.00",SHEFFIELD WILDLIFE TRUST                ,270716,Unclassified Non Trade,CHARITIES & VOLUNTARY ORGANISA
ENGINEERING CENTRE            ,8490,EXAM FEES                     ,02/01/2013,3383332,841867,"1,221.30",EDEXCEL                                 ,414015,Education,EXAMINATION BOARDS            
PURCHASING & PAYMENTS TEAM    ,7020,VEHICLE FUEL COSTS            ,02/01/2013,3385308,1019746020,"9,878.52",ALLSTAR BUSINESS SOLUTIONS LTD          ,444333,Vehicles Not Buses,CAR & TRUCK LEASING & CONTRACT
COORDINATION & LICENSES       ,8460,CONSULTANTS FEES              ,02/01/2013,3385440,64168335,"1,200.00",WSP UK LTD                              ,534642,Consultancy,ENGINEERS - CONSULTING        
STEP UP TO SOCIAL WORK        ,8440,FEE EXPENSES                  ,02/01/2013,3385467,7179888,"24,000.00",NORTH EAST LINCOLNSHIRE COUNCIL         ,326926,Unclassified Non Trade,LOCAL GOVERNMENT              
VEHICLE MANAGEMENT            ,7020,VEHICLE FUEL COSTS            ,02/01/2013,3385469,1019754776,"1,373.82",ALLSTAR BUSINESS SOLUTIONS LTD          ,444333,Vehicles Not Buses,CAR & TRUCK LEASING & CONTRACT
HOMELESS INTERIM ACCOMM       ,6210,RENTS                         ,02/01/2013,3385485,PH96                     ,"2,040.06",SHEFFIELD YWCA                          ,408344,Unclassified Non Trade,CHARITIES & VOLUNTARY ORGANISA
HOMELESS INTERIM ACCOMM       ,6210,RENTS                         ,02/01/2013,3385486,43445,"1,568.58",CHERRYTREE SUPPORT SERVICES LTD (SP)    ,351143,Facilities Management,HOSTELS                       
HOMELESS INTERIM ACCOMM       ,6210,RENTS                         ,02/01/2013,3385501,367A                     ,"1,118.72",ROUNDABOUT LTD                          ,316572,Facilities Management,HOSTELS                       
HOMELESS INTERIM ACCOMM       ,6210,RENTS                         ,02/01/2013,3385502,406A                     ,"1,152.25",ROUNDABOUT LTD                          ,316572,Facilities Management,HOSTELS                       
YOUTH JUSTICE SERVICE         ,7140,PUBLIC TRANSPORT COSTS        ,02/01/2013,3385602,SL0064232                ,"1,062.55",SYPTE                                   ,208757,Transport,BUS & COACH OPERATORS & STATIO
ACCOMMODATION & DEVEL TEAM    ,9160,PARTNERSHIP CONTRACTS         ,02/01/2013,3385662,2550,"7,011.27",SHEFFIELD MENCAP & GATEWAY              ,328741,Unclassified Non Trade,CHARITIES & VOLUNTARY ORGANISA
ACCOMMODATION & DEVEL TEAM    ,9160,PARTNERSHIP CONTRACTS         ,02/01/2013,3385664,2551,"6,334.00",SHEFFIELD MENCAP                        ,431582,Unclassified Non Trade,CHARITIES & VOLUNTARY ORGANISA
NORTH RANGERS                 ,8440,FEE EXPENSES                  ,02/01/2013,3385804,3801,900,GREEN ESTATE LTD                        ,388189,Environmental Services,WASTE DISPOSAL SERVICES       
CASTLE MARKET                 ,6030,REPAIRS AND MTCE - RESPONSIVE ,02/01/2013,3385807,20838,279,TFS SYSTEMS LIMITED                     ,208791,Facilities Management,FIRE ALARM SYSTEMS            
FAMILY PLACEMENT  BUS SUPPORT ,8390,STATIONERY                    ,02/01/2013,3385827,SINV00242474             ,250.3,R A ROBERTS (OFFICE EQUIPMENT) LTD      ,207777,Furniture,OFFICE FURNITURE & EQUIPMENT  
SPECIALIST MARKETS            ,8350,MISCELLANEOUS EXPENSES        ,02/01/2013,3385839,OMI04597                 ,"3,000.00",SHEFFIELD HALLAM UNIVERSITY             ,301311,Unclassified Non Trade,UNIVERSITIES & MEDICAL SCHOOLS
SPECIAL GUARDIANSHIP          ,8550,OTHER SERVICES                ,02/01/2013,3385846,4005,"1,686.72",PAMELA TOWER ASSOCIATES                 ,373170,Medical ,DOCTORS                       
PREV & EARLY INTERV. STRATEGY ,9120,OTHER AGENCIES                ,02/01/2013,3386953,41973,"4,379.58",SOUTH YORKSHIRE POLICE                  ,301616,Unclassified Non Trade,POLICE                        
STATUTORY ADVERTISING         ,8420,ADVERTISING AND PUBL-INVOICED ,02/01/2013,3386966,117930,686.73,SHEFFIELD NEWSPAPERS LTD                ,208391,Education,NEWSPAPER & MAGAZINE PUBLISHER
AGENCY STAFF                  ,5610,AGENCY STAFF - INVOICE        ,02/01/2013,3387054,CE020360793M             ,"147,239.57",REED                                    ,341818,Human Resources,EMPLOYMENT & RECRUITMENT AGENC
P&TC STAFFING                 ,7160,CAR PARKING SPACES AND FEES   ,02/01/2013,3387080,447,"1,033.54",ST VINCENT'S NEW CHURCH                 ,532071,Unclassified Non Trade,PLACES OF WORSHIP             
INTER AGENCY FEES             ,9120,OTHER AGENCIES                ,02/01/2013,3387110,11642,"9,900.00",CORAM FAMILY                            ,362932,Unclassified Non Trade,CHARITIES & VOLUNTARY ORGANISA
STATUTORY ADVERTISING         ,8420,ADVERTISING AND PUBL-INVOICED ,02/01/2013,3387341,125288,899.92,SHEFFIELD NEWSPAPERS LTD                ,208391,Education,NEWSPAPER & MAGAZINE PUBLISHER
OUT OF CITY PROJECT           ,9180,OTHER CLIENT EXPENDITURE      ,02/01/2013,3387368,2100075726,548.9,SHEFFIELD CARE TRUST (SP)               ,366826,Unclassified Non Trade,CHARITIES & VOLUNTARY ORGANISA
MANAGEMENT TEAM LD            ,5010,GENERAL BASIC PAY             ,02/01/2013,3387472,2100075723,"3,002.90",SHEFFIELD HEALTH AND SOCIAL CARE        ,336425,Unclassified Non Trade,HEALTH AUTHORITIES            
MILLHOUSES MILL BUILDINGS     ,1161,NC&A MAIN CONTRACT            ,02/01/2013,3387487,CE03877/1                ,"6,000.00",T & C WILLIAMS (BUILDERS) LTD           ,325454,Construction,BUILDERS                      
LANSDOWNE AND HANOVER CLADDING,1161,NC&A MAIN CONTRACT            ,02/01/2013,3387488,SH03083/18               ,"706,000.00",APOLLO PROPERTY SERVICES GROUP          ,551467,Construction,BUILDERS                      
PARKWOOD SPRINGS CYCLE TRACK  ,1161,NC&A MAIN CONTRACT            ,02/01/2013,3387490,PW03887/4                ,"9,200.00",TGN CONSTRUCTION (YORKSHIRE) LTD.       ,208941,Construction,BUILDERS                      
DARNALL NEIGHBOURHOOD PARK    ,1161,NC&A MAIN CONTRACT            ,02/01/2013,3387491,PL03994/2                ,"33,000.00",ENGLISH LANDSCAPES LIMITED              ,386356,Construction,LANDSCAPE CONTRACTORS         
STATUTORY ADVERTISING         ,8420,ADVERTISING AND PUBL-INVOICED ,02/01/2013,3387554,135272,274.69,SHEFFIELD NEWSPAPERS LTD                ,208391,Education,NEWSPAPER & MAGAZINE PUBLISHER
AGENCY STAFF                  ,5610,AGENCY STAFF - INVOICE        ,02/01/2013,3387556,CE020361335M             ,"145,989.92",REED                                    ,341818,Human Resources,EMPLOYMENT & RECRUITMENT AGENC
PURCHASING LEARNING DISABILITI,9250,INDEPENDENT DAY CARE          ,02/01/2013,3387432,A04277                   ,"6,745.76",AUTISM PLUS LTD                         ,330606,Unclassified Non Trade,CHARITIES & VOLUNTARY ORGANISA
PURCHASING LEARNING DISABILITI,9250,INDEPENDENT DAY CARE          ,02/01/2013,3387433,A04278                   ,"6,745.76",AUTISM PLUS LTD                         ,330606,Unclassified Non Trade,CHARITIES & VOLUNTARY ORGANISA
PURCHASING LEARNING DISABILITI,9250,INDEPENDENT DAY CARE          ,02/01/2013,3387434,A04309                   ,"2,013.92",AUTISM PLUS LTD                         ,330606,Unclassified Non Trade,CHARITIES & VOLUNTARY ORGANISA
PURCHASING LEARNING DISABILITI,9250,INDEPENDENT DAY CARE          ,02/01/2013,3387436,A04313                   ,"2,013.92",AUTISM PLUS LTD                         ,330606,Unclassified Non Trade,CHARITIES & VOLUNTARY ORGANISA
PURCHASING LEARNING DISABILITI,9250,INDEPENDENT DAY CARE          ,02/01/2013,3387437,A04315                   ,"1,208.32",AUTISM PLUS LTD                         ,330606,Unclassified Non Trade,CHARITIES & VOLUNTARY ORGANISA
PURCHASING LEARNING DISABILITI,9250,INDEPENDENT DAY CARE          ,02/01/2013,3387438,A04317                   ,"2,013.92",AUTISM PLUS LTD                         ,330606,Unclassified Non Trade,CHARITIES & VOLUNTARY ORGANISA
PURCHASING LEARNING DISABILITI,9250,INDEPENDENT DAY CARE          ,02/01/2013,3387439,A04318                   ,"1,749.72",AUTISM PLUS LTD                         ,330606,Unclassified Non Trade,CHARITIES & VOLUNTARY ORGANISA
PURCHASING LEARNING DISABILITI,9250,INDEPENDENT DAY CARE          ,02/01/2013,3387440,A04320                   ,"2,013.92",AUTISM PLUS LTD                         ,330606,Unclassified Non Trade,CHARITIES & VOLUNTARY ORGANISA
PURCHASING                    ,9250,INDEPENDENT DAY CARE          ,02/01/2013,3387441,A04351                   ,320.04,AUTISM PLUS LTD                         ,330606,Unclassified Non Trade,CHARITIES & VOLUNTARY ORGANISA
ADULT SOCIAL CARE PURCHASING  ,9190,CITYWIDE SPOT                 ,02/01/2013,3387442,265-005976               ,507.5,LEONARD CHESHIRE SERVICES               ,329306,Unclassified Non Trade,CHARITIES & VOLUNTARY ORGANISA
PURCHASING LEARNING DISABILITI,9190,CITYWIDE SPOT                 ,02/01/2013,3387443,265-005977               ,"1,102.00",LEONARD CHESHIRE SERVICES               ,329306,Unclassified Non Trade,CHARITIES & VOLUNTARY ORGANISA
PDSI PURCHASING               ,9190,CITYWIDE SPOT                 ,02/01/2013,3387444,265-005979               ,"6,057.05",LEONARD CHESHIRE SERVICES               ,329306,Unclassified Non Trade,CHARITIES & VOLUNTARY ORGANISA
PURCHASING LEARNING DISABILITI,9190,CITYWIDE SPOT                 ,02/01/2013,3387446,32741,"1,160.00",LINKAGE COMMUNITY TRUST                 ,362116,Unclassified Non Trade,CHARITIES & VOLUNTARY ORGANISA
PURCHASING LEARNING DISABILITI,9190,CITYWIDE SPOT                 ,02/01/2013,3387447,33077,"1,621.62",LINKAGE COMMUNITY TRUST                 ,362116,Unclassified Non Trade,CHARITIES & VOLUNTARY ORGANISA
PURCHASING                    ,9190,CITYWIDE SPOT                 ,02/01/2013,3387448,877/12AB                 ,250,COMMUNITY ACTION HALFWAY HOME LTD (SP)  ,351147,Unclassified Non Trade,CHARITIES & VOLUNTARY ORGANISA
PURCHASING LEARNING DISABILITI,9230,CCSP TRANSPORT                ,02/01/2013,3387449,SEN032822                ,807.72,SENSE                                   ,361885,Unclassified Non Trade,CHARITIES & VOLUNTARY ORGANISA
PURCHASING LEARNING DISABILITI,9190,CITYWIDE SPOT                 ,02/01/2013,3387451,265-005970               ,841,LEONARD CHESHIRE SERVICES               ,329306,Unclassified Non Trade,CHARITIES & VOLUNTARY ORGANISA
ADULT SOCIAL CARE PURCHASING  ,9190,CITYWIDE SPOT                 ,02/01/2013,3387452,265-005971               ,449.5,LEONARD CHESHIRE SERVICES               ,329306,Unclassified Non Trade,CHARITIES & VOLUNTARY ORGANISA
PURCHASING LEARNING DISABILITI,9190,CITYWIDE SPOT                 ,02/01/2013,3387453,265-005972               ,"1,261.50",LEONARD CHESHIRE SERVICES               ,329306,Unclassified Non Trade,CHARITIES & VOLUNTARY ORGANISA
PURCHASING LEARNING DISABILITI,9190,CITYWIDE SPOT                 ,02/01/2013,3387454,265-005973               ,493,LEONARD CHESHIRE SERVICES               ,329306,Unclassified Non Trade,CHARITIES & VOLUNTARY ORGANISA
PURCHASING LEARNING DISABILITI,9200,CONTINUING RESIDENTIAL CARE   ,02/01/2013,3387428,J553630 060113           ,"9,359.20",H F TRUST LIMITED                       ,362078,Unclassified Non Trade,CHARITIES & VOLUNTARY ORGANISA
ADULT SOCIAL CARE PURCHASING  ,9210,CONTINUING NURSING CARE       ,02/01/2013,3387429,J553709 060113           ,"12,954.00",HOLMWOOD CARE HOME                      ,331238,Social Community Care,NURSING HOMES                 
ADULT SOCIAL CARE PURCHASING  ,9200,CONTINUING RESIDENTIAL CARE   ,02/01/2013,3387430,J553722 060113           ,"1,580.00",REASON CARE LTD T/A ELM LODGE CARE HOME ,433486,Social Community Care,NURSING HOMES                 
EGYV PROJECT                  ,9120,OTHER AGENCIES                ,03/01/2013,3387771,ERS INVOICE77377         ,"5,000.00",FUTURE SPARKS                           ,570892,Leisure Services,"CLUBS & ASSOCIATIONS - SOCIAL,"
16 - 19 BURSARY FUNDS         ,8440,FEE EXPENSES                  ,03/01/2013,3387772,ERS INVOICE77378         ,280,REDACTED PERSONAL DATA,576337,Unclassified Non Trade,OUT OF SCOPE FOR SIC MONITORIN
16 - 19 BURSARY FUNDS         ,8440,FEE EXPENSES                  ,03/01/2013,3387801,ERS INVOICE77407         ,300,REDACTED PERSONAL DATA,576281,Unclassified Non Trade,OUT OF SCOPE FOR SIC MONITORIN
EQUIPMENT                     ,9160,PARTNERSHIP CONTRACTS         ,03/01/2013,3387865,ERS INVOICE77471         ,"68,963.00",SHEFFIELD PRIMARY CARE TRUST            ,504799,Unclassified Non Trade,HEALTH AUTHORITIES            
COMMUNITY ASSEMBLY SOUTH EAST ,9120,OTHER AGENCIES                ,03/01/2013,3387866,ERS INVOICE77474         ,"2,000.00",EXCEL MARTIAL ARTS                      ,537519,Leisure Services,MARTIAL ARTS INSTRUCTION      
DEVELOPMENT CONTROL           ,4180,PLANNING APPLICATION FEES     ,03/01/2013,3387868,ERS INVOICE77476         ,469,REDACTED PERSONAL DATA,575728,Unclassified Non Trade,OUT OF SCOPE FOR SIC MONITORIN
BUSINESS INTELLIGENCE         ,8440,FEE EXPENSES                  ,03/01/2013,3387869,ERS INVOICE77477         ,596.2,JOHN FARRAR                             ,505273,Consultancy,BUSINESS & MANAGEMENT CONSULTA
ASYLUM SEEKER CONTRACT        ,6210,RENTS                         ,03/01/2013,3387872,ERS INVOICE77482         ,375,TAPTON ESTATES PROPERTIES LTD           ,449360,Unclassified Trade,PROPERTY & ESTATE MANAGEMENT  
ASYLUM SEEKER CONTRACT        ,6210,RENTS                         ,03/01/2013,3387873,ERS INVOICE77483         ,273.3,SANCTUARY MIDLANDS                      ,437596,Unclassified Non Trade,"HOUSING ASSOCIATIONS, SOCIETIE"
ASYLUM SEEKER CONTRACT        ,6210,RENTS                         ,03/01/2013,3387874,ERS INVOICE77484         ,350,CAPITAL PROPERTIES                      ,478220,Unclassified Trade,LETTING AGENTS                
ASYLUM SEEKER CONTRACT        ,6210,RENTS                         ,03/01/2013,3387875,ERS INVOICE77485         ,780,EXCELL LETTINGS & MANAGEMENT LTD        ,547611,Unclassified Trade,LETTING AGENTS                
ASYLUM SEEKER CONTRACT        ,6210,RENTS                         ,03/01/2013,3387876,ERS INVOICE77487         ,330,TAPTON ESTATES PROPERTIES LTD           ,449360,Unclassified Trade,PROPERTY & ESTATE MANAGEMENT  
REFUGEE GATEWAY PROGRAMME     ,6210,RENTS                         ,03/01/2013,3387877,ERS INVOICE77488         ,455.67,BAMFORTH SERVICES                       ,558405,Unclassified Trade,LETTING AGENTS                
REFUGEE GATEWAY PROGRAMME     ,6210,RENTS                         ,03/01/2013,3387878,ERS INVOICE77489         ,"1,040.00",S ALI                                   ,511153,Unclassified Trade,LETTING AGENTS                
REFUGEE GATEWAY PROGRAMME     ,6210,RENTS                         ,03/01/2013,3387879,ERS INVOICE77490         ,894.85,AMJAD KHAN                              ,576712,Unclassified Trade,LETTING AGENTS                
BUSINESS INTELLIGENCE         ,8440,FEE EXPENSES                  ,03/01/2013,3387880,ERS INVOICE77491         ,737.14,JOHN FARRAR                             ,505273,Consultancy,BUSINESS & MANAGEMENT CONSULTA
CORPORATE ROOM BOOKINGS       ,8440,FEE EXPENSES                  ,03/01/2013,3349149,1025,467.5,THE MEGA CENTRE                         ,326348,Human Resources,CONFERENCE ROOMS & CENTRES    
MOORFOOT BUILDING             ,6020,REPAIRS AND MTCE - PROGRAMMED ,03/01/2013,3356067,95018704,600,SCHNEIDER ELECTRIC BUILDINGS UK LIMITED ,534667,Construction,ELECTRICIANS & ELECTRICAL CONT
CHILDREN'S COMMISSIONING      ,8440,FEE EXPENSES                  ,03/01/2013,3371122,350003417,"31,984.71",DEPARTMENT FOR EDUCATION & EMPLOYMENT   ,370598,Unclassified Non Trade,CHARITIES & VOLUNTARY ORGANISA
NEW BANK HOUSE                ,6020,REPAIRS AND MTCE - PROGRAMMED ,03/01/2013,3375904,81329,"1,152.25",SERVICEMASTER (C.S.) SHEFFIELD          ,208319,Cleaning and Janitorial,CLEANING SERVICES - COMMERCIAL
MOORFOOT BUILDING             ,6020,REPAIRS AND MTCE - PROGRAMMED ,03/01/2013,3375914,H362253                  ,"1,163.00",CLYMAC LIMITED                          ,549511,Facilities Management,FIRE ALARM SYSTEMS            
SCHOOL SWIMMING SERVICE       ,7060,EXTERNAL VEHICLE HIRE         ,03/01/2013,3377201,11743C                   ,"10,528.00",LINBURG TOURING LTD                     ,478437,Transport,COACH HIRE                    
FIRST START CHILDRENS CENTRE  ,8010,EQUIPMENT PURCHASE AND REPAIR ,03/01/2013,3377880,569618-0027793/793       ,296.44,TEMPEST PHOTOGRAPHY                     ,436059,Facilities Management,PHOTOGRAPHERS - GENERAL       
SHELTERED HOUSING SCHEMES     ,8010,EQUIPMENT PURCHASE AND REPAIR ,03/01/2013,3378144,11670757,267.51,CURRYS ELECTRICAL                       ,425865,Domestic Goods,ELECTRICAL GOODS - SALES      
SCHOOL SWIMMING SERVICE       ,7060,EXTERNAL VEHICLE HIRE         ,03/01/2013,3378521,AT107533                 ,"2,560.00",ASHLEY TRAVEL LTD                       ,439136,Vehicles Not Buses,MINI BUSES - HIRE & LEASING   
PARKHILL DEMOLITION SHM (STH) ,1143,COMPENSATION                  ,03/01/2013,3379030,530585,424.42,PICKFORDS                               ,573763,Transport,REMOVALS - OVERSEAS           
SWAN COMMISSIONED             ,1143,COMPENSATION                  ,03/01/2013,3379032,530423,313.71,PICKFORDS                               ,573763,Transport,REMOVALS - OVERSEAS           
SWAN COMMISSIONED             ,1143,COMPENSATION                  ,03/01/2013,3380080,530638,423.91,PICKFORDS                               ,573763,Transport,REMOVALS - OVERSEAS           
ACTIVITY CENTRES GRANTS       ,6020,REPAIRS AND MTCE - PROGRAMMED ,03/01/2013,3380787,21027,"3,151.00",IAN WHITEHEAD CONTRACT FURNISHING LTD   ,205673,Furniture,CONTRACT FURNISHERS           
ACTIVITY CENTRES GRANTS       ,6020,REPAIRS AND MTCE - PROGRAMMED ,03/01/2013,3380799,21026,"3,096.00",IAN WHITEHEAD CONTRACT FURNISHING LTD   ,205673,Furniture,CONTRACT FURNISHERS           
ACTIVITY CENTRES GRANTS       ,6020,REPAIRS AND MTCE - PROGRAMMED ,03/01/2013,3380801,21028,"4,755.00",IAN WHITEHEAD CONTRACT FURNISHING LTD   ,205673,Furniture,CONTRACT FURNISHERS           
ACTIVITY CENTRES GRANTS       ,6020,REPAIRS AND MTCE - PROGRAMMED ,03/01/2013,3380817,21030,"2,787.00",IAN WHITEHEAD CONTRACT FURNISHING LTD   ,205673,Furniture,CONTRACT FURNISHERS           
CITY WIDE CARE ALARMS         ,8010,EQUIPMENT PURCHASE AND REPAIR ,03/01/2013,3380850,3IN/10212345             ,"4,950.00",TUNSTALL HEALTHCARE (UK) LIMITED        ,209178,ICT,TELECOMMUNICATIONS EQUIPMENT &
CITY WIDE CARE ALARMS         ,8010,EQUIPMENT PURCHASE AND REPAIR ,03/01/2013,3380853,3IN/10212346             ,"4,950.00",TUNSTALL HEALTHCARE (UK) LIMITED        ,209178,ICT,TELECOMMUNICATIONS EQUIPMENT &
SWAN COMMISSIONED             ,1143,COMPENSATION                  ,03/01/2013,3381014,531135,456.45,PICKFORDS                               ,573763,Transport,REMOVALS - OVERSEAS           
PARKHILL DEMOLITION SHM (STH) ,1143,COMPENSATION                  ,03/01/2013,3381016,531137,454.41,PICKFORDS                               ,573763,Transport,REMOVALS - OVERSEAS           
HIST                          ,8620,COMPUTER MAINTENANCE          ,03/01/2013,3381088,80208595,750,DX NETWORK SERVICES LTD                 ,532422,Mail Services,COURIER & MESSENGER SERVICES  
LEARNING SUPPORT              ,8380,PHOTOCOPYING                  ,03/01/2013,3381418,1105789608,557.8,KONICA MINOLTA BUSINESS SOLUTIONS       ,375732,ICT,PHOTOCOPIERS                  
GENERAL ADMINISTRATION        ,8020,EQUIPMENT LEASE/ RENTAL/ HIRE ,03/01/2013,3381533,428891,484,BANNER PLANT  LTD                       ,203248,Vehicles Not Buses,PLANT & MACHINERY HIRE & LEASI
TRANSPORT FLEET MANAGEMENT    ,5750,TRAINING EXPENDITURE          ,03/01/2013,3381535,8185983,461.92,FREIGHT TRANSPORT ASSOCIATION           ,204963,Human Resources,BUSINESS & TRADE ORGANISATIONS
TRANSPORT FLEET MANAGEMENT    ,7060,EXTERNAL VEHICLE HIRE         ,03/01/2013,3381539,1210/20094               ,273,WILLIAM G SEARCH LTD                    ,209535,Vehicles Not Buses,PLANT & MACHINERY HIRE & LEASI
RESOURCES MANAGER             ,8370,PRINTING                      ,03/01/2013,3381726,1105769977,332.5,KONICA MINOLTA BUSINESS SOLUTIONS EAST  ,206267,ICT,OFFICE EQUIPMENT MNFRS & DISTR
RESOURCES MANAGER             ,8370,PRINTING                      ,03/01/2013,3381727,1099275756,688.95,KONICA MINOLTA BUSINESS SOLUTIONS EAST  ,206267,ICT,OFFICE EQUIPMENT MNFRS & DISTR
LOCALITY 2 MANAGEMENT+O/HEADS ,8240,CONFERENCE EXPENSES           ,03/01/2013,3382005,N2731                    ,542,NIAGARA SPORTS & SOCIAL CLUB            ,446529,Human Resources,CONFERENCE SERVICES           
OTHER REPAIRS & FEES          ,6020,LEGIONELLA MONITORING         ,03/01/2013,3382066,10705277,"1,364.61",RENTOKIL INITIAL UK LTD                 ,437082,Cleaning and Janitorial,CLEANING SERVICES - COMMERCIAL
CEMETERIES                    ,8010,EQUIPMENT PURCHASE AND REPAIR ,03/01/2013,3382162,A1091                    ,326,MR DAVID PARAMORE                       ,501202,Construction,STONEMASONS                   
NLDC (AUG 11 - JULY 12)       ,9120,OTHER AGENCIES                ,03/01/2013,3382177,110,"1,017.25",SHEFFIELD ASSOCIATION FOR THE VOLUNTARY ,350936,Unclassified Non Trade,CHARITIES & VOLUNTARY ORGANISA
NLDC (AUG 11 - JULY 12)       ,9120,OTHER AGENCIES                ,03/01/2013,3382207,111,970.3,SHEFFIELD ASSOCIATION FOR THE VOLUNTARY ,350936,Unclassified Non Trade,CHARITIES & VOLUNTARY ORGANISA
TRANSPORT FLEET MANAGEMENT    ,7060,EXTERNAL VEHICLE HIRE         ,03/01/2013,3382254,IW01048930               ,398.24,NORTHGATE VEHICLE HIRE LTD              ,454183,Vehicles Not Buses,VAN & TRUCK HIRE              
MEDICO LEGAL CENTRE           ,6110,CLEANING/DOMESTIC MAT./SUPPLY ,03/01/2013,3382262,C6503                    ,276.8,CHEMSOL LTD                             ,342893,Unclassified Trade,CHEMICALS - DISTRIBUTORS & WHO
MEDICO LEGAL CENTRE           ,8010,EQUIPMENT PURCHASE AND REPAIR ,03/01/2013,3382262,C6503                    ,259.76,CHEMSOL LTD                             ,342893,Unclassified Trade,CHEMICALS - DISTRIBUTORS & WHO
MEDICO LEGAL CENTRE           ,8110,"CLOTHING, UNIFORM AND LAUNDRY ",03/01/2013,3382262,C6503                    ,352,CHEMSOL LTD                             ,342893,Unclassified Trade,CHEMICALS - DISTRIBUTORS & WHO
COMMUNITY ASSEMBLY EAST       ,8020,EQUIPMENT LEASE/ RENTAL/ HIRE ,03/01/2013,3382265,12663,427,CVC EVENT SERVICES LTD                  ,381526,Leisure Services,"EXHIBITION, EVENT & TRADE FAIR"
PURCHASING & PAYMENTS TEAM    ,5610,AGENCY STAFF                  ,03/01/2013,3382280,C0224605978              ,"13,379.13",REED EMPLOYMENT                         ,317819,Human Resources,EMPLOYMENT & RECRUITMENT AGENC
ESTATE SERVICES               ,6090,TIPPING COSTS                 ,03/01/2013,3382289,48504/1                  ,"4,190.26",R FLETCHER WASTE DISPOSAL LTD           ,473104,Environmental Services,WASTE DISPOSAL SERVICES       
PURCHASING & PAYMENTS TEAM    ,7140,PUBLIC TRANSPORT COSTS        ,03/01/2013,3382299,2383,330,SHEFFIELD CITY TAXIS LTD                ,301182,Transport,TAXIS & PRIVATE HIRE          
PURCHASING & PAYMENTS TEAM    ,7140,PUBLIC TRANSPORT COSTS        ,03/01/2013,3382301,2402,266.5,SHEFFIELD CITY TAXIS LTD                ,301182,Transport,TAXIS & PRIVATE HIRE          
CUSTOMER CARE & COMMUNICATIONS,8490,TRANSLATN/SIGN/INTERPRET FEES ,03/01/2013,3382305,3054271,"1,236.46",LANGUAGE LINE LIMITED                   ,206348,Human Resources,TRANSLATORS & INTERPRETERS    
TRAINING - BROCKWOOD          ,8440,FEE EXPENSES                  ,03/01/2013,3382702,EV-SCC001                ,"3,974.50",EQUAL VOICES                            ,529072,Human Resources,TRAINING SERVICES             
FUTURE PROOF NEETS 14 - 25    ,9120,OTHER AGENCIES                ,03/01/2013,3382891,621,"1,621.40",THE SOURCE AT MEADOWHALL                ,350485,Human Resources,TRAINING CENTRES              
DIVING DEVELOPMENT            ,6280,HIRE OF PREMISES              ,03/01/2013,3382963,21,"2,000.00",CITY OF SHEFFIELD DIVING CLUB           ,526962,Leisure Services,DIVING SCHOOLS                
MINOR ADAPTATIONS             ,6020,REPAIRS AND MTCE - PROGRAMMED ,03/01/2013,3382979,61765,360,G B ALLEN                               ,204993,Construction,PLUMBERS                      
MINOR ADAPTATIONS             ,6020,REPAIRS AND MTCE - PROGRAMMED ,03/01/2013,3382981,61766,385,G B ALLEN                               ,204993,Construction,PLUMBERS                      
CITY WIDE CARE ALARMS         ,8010,EQUIPMENT PURCHASE AND REPAIR ,03/01/2013,3382991,3IN/10212768             ,"8,000.00",TUNSTALL HEALTHCARE (UK) LIMITED        ,209178,ICT,TELECOMMUNICATIONS EQUIPMENT &
FURNISHED ACCOMMODATION       ,6020,VOID PAINTING INITIATIVE      ,03/01/2013,3383045,L08660                   ,304,BELL GROUP (LEEDS)                      ,441427,Construction,PAINTERS & DECORATORS         
FURNISHED ACCOMMODATION       ,6020,VOID PAINTING INITIATIVE      ,03/01/2013,3383047,L08661                   ,854,BELL GROUP (LEEDS)                      ,441427,Construction,PAINTERS & DECORATORS         
FURNISHED ACCOMMODATION       ,6020,VOID PAINTING INITIATIVE      ,03/01/2013,3383050,L08662                   ,576,BELL GROUP (LEEDS)                      ,441427,Construction,PAINTERS & DECORATORS         
FURNISHED ACCOMMODATION       ,6020,VOID PAINTING INITIATIVE      ,03/01/2013,3383053,L08663                   ,584,BELL GROUP (LEEDS)                      ,441427,Construction,PAINTERS & DECORATORS         
FURNISHED ACCOMMODATION       ,6020,VOID PAINTING INITIATIVE      ,03/01/2013,3383056,L08664                   ,854,BELL GROUP (LEEDS)                      ,441427,Construction,PAINTERS & DECORATORS         
FURNISHED ACCOMMODATION       ,6020,VOID PAINTING INITIATIVE      ,03/01/2013,3383059,L08665                   ,854,BELL GROUP (LEEDS)                      ,441427,Construction,PAINTERS & DECORATORS         
FURNISHED ACCOMMODATION       ,6020,VOID PAINTING INITIATIVE      ,03/01/2013,3383061,L08666                   ,584,BELL GROUP (LEEDS)                      ,441427,Construction,PAINTERS & DECORATORS         
TRANSPORT FLEET MANAGEMENT    ,7040,OTHER VEHICLE RUNNING COSTS   ,03/01/2013,3383101,675,"3,125.14",VISILINK LIMITED                        ,562784,Vehicles Not Buses,COMMERCIAL VEHICLE SECURITY   
CITY WIDE CARE ALARMS         ,8010,EQUIPMENT PURCHASE AND REPAIR ,03/01/2013,3383116,3IN/10212977             ,373.8,TUNSTALL HEALTHCARE (UK) LIMITED        ,209178,ICT,TELECOMMUNICATIONS EQUIPMENT &
CITY WIDE CARE ALARMS         ,8010,EQUIPMENT PURCHASE AND REPAIR ,03/01/2013,3383117,3IN/10212976             ,"1,873.50",TUNSTALL HEALTHCARE (UK) LIMITED        ,209178,ICT,TELECOMMUNICATIONS EQUIPMENT &
CITY WIDE CARE ALARMS         ,8010,EQUIPMENT PURCHASE AND REPAIR ,03/01/2013,3383123,3IN/10212861             ,"1,873.50",TUNSTALL HEALTHCARE (UK) LIMITED        ,209178,ICT,TELECOMMUNICATIONS EQUIPMENT &
FUTURE PROOF NEETS 14 - 25    ,9120,OTHER AGENCIES                ,03/01/2013,3383153,627,355.1,THE SOURCE AT MEADOWHALL                ,350485,Human Resources,TRAINING CENTRES              
GROUNDS MAINTENANCE           ,8010,EQUIPMENT PURCHASE AND REPAIR ,03/01/2013,3383163,SIN312429                ,"1,428.00",SEDDONS (PLANT & ENGINEERS) LTD         ,533323,Construction,ENGINEERS - GENERAL           
OTHER REPAIRS & FEES          ,6020,LEGIONELLA MONITORING         ,03/01/2013,3383178,10705112,"3,181.75",RENTOKIL INITIAL UK LTD                 ,437082,Cleaning and Janitorial,CLEANING SERVICES - COMMERCIAL
OTHER REPAIRS & FEES          ,6020,LEGIONELLA MONITORING         ,03/01/2013,3383180,10705114,321.13,RENTOKIL INITIAL UK LTD                 ,437082,Cleaning and Janitorial,CLEANING SERVICES - COMMERCIAL
MI-21/WORLD METAL INDEX       ,4080,FEES & CHARGES                ,03/01/2013,3383200,8361,325,BIRCHENALLHOWDEN LTD                    ,518758,Consultancy,COMPUTER CONSULTANTS          
ASBESTOS REMOVAL              ,1193,CONSULTANTS FEES              ,03/01/2013,3383206,SLINV2/00045766          ,800,IOM CONSULTING LTD                      ,442538,Health and Safety,SAFETY CONSULTANTS            
SURVEYS                       ,8460,CONSULTANTS FEES              ,03/01/2013,3383208,SLINV2/00045767          ,"1,007.76",IOM CONSULTING LTD                      ,442538,Health and Safety,SAFETY CONSULTANTS            
TRANSPORT FLEET PASSENGER SERV,8110,"CLOTHING, UNIFORM AND LAUNDRY ",03/01/2013,3383211,4000336122,358.45,THE NORTHERN GENERAL HOSPITAL           ,379401,Unclassified Non Trade,HOSPITALS                     
FURNISHED ACCOMMODATION       ,6020,VOID PAINTING INITIATIVE      ,03/01/2013,3383249,L08670                   ,584,BELL GROUP (LEEDS)                      ,441427,Construction,PAINTERS & DECORATORS         
TRANSFORMATION TEAM           ,8050,FURNITURE PURCHASES           ,03/01/2013,3383254,38679,275.5,SIS WORKSPACE LTD                       ,466606,Construction,OFFICE REFURBISHMENT SERVICES 
CITY WIDE CARE ALARMS         ,8010,EQUIPMENT PURCHASE AND REPAIR ,03/01/2013,3383313,S121113                  ,501,REDACTED PERSONAL DATA,575693,Social Community Care,HOME CARE SERVICES            
EMTAS                         ,6280,HIRE OF PREMISES              ,03/01/2013,3383335,FDI06896                 ,556.95,SHEFFIELD HALLAM UNIVERSITY ENTERPRISES ,300693,Unclassified Non Trade,UNIVERSITIES & MEDICAL SCHOOLS
ACTIVITY CENTRES GRANTS       ,6020,REPAIRS AND MTCE - PROGRAMMED ,03/01/2013,3383336,21049,"5,751.00",IAN WHITEHEAD CONTRACT FURNISHING LTD   ,205673,Furniture,CONTRACT FURNISHERS           
ACTIVITY CENTRES GRANTS       ,6020,REPAIRS AND MTCE - PROGRAMMED ,03/01/2013,3383337,21048,"3,764.00",IAN WHITEHEAD CONTRACT FURNISHING LTD   ,205673,Furniture,CONTRACT FURNISHERS           
ACTIVITY CENTRES GRANTS       ,6020,REPAIRS AND MTCE - PROGRAMMED ,03/01/2013,3383339,21047,"1,553.00",IAN WHITEHEAD CONTRACT FURNISHING LTD   ,205673,Furniture,CONTRACT FURNISHERS           
SANCTUARY SCHEME              ,8060,MATERIALS AND SUPPLIES GENERAL,03/01/2013,3383349,32000,"1,536.00",THE SAFETY LETTERBOX COMPANY            ,501188,Mail Services,MAILING HOUSES                
FURNISHED ACCOMMODATION       ,8050,FURNITURE PURCHASES           ,03/01/2013,3383350,SI0126712                ,"4,950.00",ANNAGHMORE AGENCIES                     ,571556,Furniture,FURNITURE - WHOLESALE         
FURNISHED ACCOMMODATION       ,8050,FURNITURE PURCHASES           ,03/01/2013,3383351,SI0126711                ,"2,637.00",ANNAGHMORE AGENCIES                     ,571556,Furniture,FURNITURE - WHOLESALE         
FURNISHED ACCOMMODATION       ,8050,FURNITURE PURCHASES           ,03/01/2013,3383352,SI0126713                ,"4,980.00",ANNAGHMORE AGENCIES                     ,571556,Furniture,FURNITURE - WHOLESALE         
LICENSING                     ,8060,MATERIALS AND SUPPLIES GENERAL,03/01/2013,3383361,14526,"2,822.84",VIP SYSTEM LTD.                         ,455617,Vehicles Not Buses,CAR ACCESSORIES & PARTS       
NORBURY                       ,8060,MATERIALS AND SUPPLIES GENERAL,03/01/2013,3385319,4746127,877.5,KAFEVEND GROUP PLC                      ,369503,Catering,VENDING MACHINES - SALES & SER
NORTH AREA                    ,8110,"CLOTHING, UNIFORM AND LAUNDRY ",03/01/2013,3385323,918291709,760.04,ARCO LTD                                ,203022,Clothing,SAFETY EQUIPMENT & CLOTHING   
CORONIAL SERVICES             ,8550,OTHER SERVICES                ,03/01/2013,3385386,4000336611,"1,401.41",SHEFFIELD TEACHING HOSPITALS NHS TRUST  ,308114,Unclassified Non Trade,HOSPITALS                     
CORONIAL SERVICES             ,8090,BEREAVEMENT SUPPLIES          ,03/01/2013,3385389,00032-12982136/PA        ,"1,941.67",DIGNITY CARING FUNERAL SERVICES         ,563208,Environmental Services,FUNERAL DIRECTORS             
FUTURE PROOF NEETS 14 - 25    ,9120,OTHER AGENCIES                ,03/01/2013,3385443,317,347.8,A MIND APART THEATRE COMPANY LTD        ,508180,Education,DRAMA SCHOOLS                 
SERVICE OVERHEADS             ,6280,HIRE OF PREMISES              ,03/01/2013,3385447,LDDS052                  ,420,HANDSWORTH COMMUNITY NURSERY            ,297395,Social Community Care,NURSERIES & CRECHES           
100 APPRENTICES               ,9120,OTHER AGENCIES                ,03/01/2013,3385479,43416,292.22,JUST FOR KIDZ                           ,318059,Social Community Care,NURSERIES & CRECHES           
100 APPRENTICES               ,9120,OTHER AGENCIES                ,03/01/2013,3385490,4547,260,RICHARD THORPE RACING LTD               ,566240,Vehicles Not Buses,GARAGE SERVICES               
100 APPRENTICES               ,9120,OTHER AGENCIES                ,03/01/2013,3385492,RSC/142                  ,438.75,RIVER STEWARDSHIP COMPANY               ,547441,Unclassified Non Trade,CHARITIES & VOLUNTARY ORGANISA
100 APPRENTICES               ,9120,OTHER AGENCIES                ,03/01/2013,3385493,RSC/143                  ,438.75,RIVER STEWARDSHIP COMPANY               ,547441,Unclassified Non Trade,CHARITIES & VOLUNTARY ORGANISA
TRANSPORT FLEET MANAGEMENT    ,7060,EXTERNAL VEHICLE HIRE         ,03/01/2013,3385504,SL01524743INV/CRED       ,"8,325.95",NORTHGATE VEHICLE HIRE LTD              ,454183,Vehicles Not Buses,VAN & TRUCK HIRE              
DOMESTIC ABUSE SP40           ,8390,STATIONERY                    ,03/01/2013,3385599,SINV00242439             ,516.84,R A ROBERTS (OFFICE EQUIPMENT) LTD      ,207777,Furniture,OFFICE FURNITURE & EQUIPMENT  
SHARROW ALMO WORKS            ,1165,NC&A OTHER                    ,03/01/2013,3385652,12060023,"24,800.94",KIER SHEFFIELD LLP                      ,352687,Construction,PROPERTY MAINTENANCE & REPAIRS
BLOCK CLEANING NORTH WEST     ,8060,MATERIALS AND SUPPLIES GENERAL,03/01/2013,3386100,918305514,329.21,ARCO LTD                                ,203022,Clothing,SAFETY EQUIPMENT & CLOTHING   
FUTURE PROOF NEETS 14 - 25    ,9120,OTHER AGENCIES                ,03/01/2013,3386878,6759,"1,552.50",SHEFFIELD FUTURES                       ,322702,Medical ,COUNSELLING & ADVICE SERVICES 
EGYV PROJECT                  ,7140,PUBLIC TRANSPORT COSTS        ,03/01/2013,3386894,01/3888016               ,413,CO-OPERATIVE TRAVEL MANAGEMENT          ,202987,Facilities Management,TRAVEL AGENTS & HOLIDAY COMPAN
SERVICE OVERHEADS             ,6280,HIRE OF PREMISES              ,03/01/2013,3386899,3024981,"1,600.00",SHEFFIELD INTERNATIONAL VENUES (EIS)    ,285674,Leisure Services,SPORTS GROUNDS & STADIUMS     
REGISTER OFFICE               ,8390,STATIONERY                    ,03/01/2013,3386961,5242,"2,772.46",CIVIL CEREMONIES LTD                    ,344743,Human Resources,TRAINING SERVICES             
MEDICO LEGAL CENTRE           ,6110,CLEANING/DOMESTIC MAT./SUPPLY ,03/01/2013,3386965,C6515                    ,515.5,CHEMSOL LTD                             ,342893,Unclassified Trade,CHEMICALS - DISTRIBUTORS & WHO
HARD FM                       ,6030,REPAIRS AND MTCE - RESPONSIVE ,03/01/2013,3386970,1466,495,CRB DOOR SYSTEMS LTD                    ,541144,Construction,DOORS - REPAIRING             
AUDIT                         ,8460,CONSULTANTS FEES              ,03/01/2013,3386998,9614,500,ETON ENVIRONMENTAL SERVICES             ,502195,Construction,ASBESTOS SURVEYS & REMOVALS   
AUDIT                         ,8460,CONSULTANTS FEES              ,03/01/2013,3387001,9615,500,ETON ENVIRONMENTAL SERVICES             ,502195,Construction,ASBESTOS SURVEYS & REMOVALS   
AUDIT                         ,8460,CONSULTANTS FEES              ,03/01/2013,3387003,9633,500,ETON ENVIRONMENTAL SERVICES             ,502195,Construction,ASBESTOS SURVEYS & REMOVALS   
AUDIT                         ,8460,CONSULTANTS FEES              ,03/01/2013,3387007,9617,500,ETON ENVIRONMENTAL SERVICES             ,502195,Construction,ASBESTOS SURVEYS & REMOVALS   
AUDIT                         ,8460,CONSULTANTS FEES              ,03/01/2013,3387009,9616,500,ETON ENVIRONMENTAL SERVICES             ,502195,Construction,ASBESTOS SURVEYS & REMOVALS   
MINOR ADAPTATIONS             ,6030,REPAIRS AND MTCE - RESPONSIVE ,03/01/2013,3387014,4679,405,T & T CONSTRUCTION                      ,208772,Construction,CONSTRUCTION CONTRACTORS - GEN
DIVING DEVELOPMENT            ,8440,FEE EXPENSES                  ,03/01/2013,3387029,22,273,CITY OF SHEFFIELD DIVING CLUB           ,526962,Leisure Services,DIVING SCHOOLS                
POLICY AND PERFORMANCE TEAM   ,8620,ICT LEASE/RENTALS             ,03/01/2013,3387121,AS1208NOV                ,950,PERF INFO MANAGEMENT SYSTEMS LTD        ,470480,Consultancy,COMPUTER SYSTEMS & SOFTWARE (D
POLICY AND PERFORMANCE TEAM   ,8620,ICT LEASE/RENTALS             ,03/01/2013,3387123,AS1207OCT                ,950,PERF INFO MANAGEMENT SYSTEMS LTD        ,470480,Consultancy,COMPUTER SYSTEMS & SOFTWARE (D
SHEFFIELD HOMES MANAGEMENT COS,8350,MISCELLANEOUS EXPENSES        ,03/01/2013,3387132,688,"4,316.21",SHEFFIELD HOMES LTD                     ,503889,Unclassified Non Trade,"HOUSING ASSOCIATIONS, SOCIETIE"
TRANSITIONAL CHILDCARE FUND   ,8440,FEE EXPENSES                  ,03/01/2013,3387178,159,"2,000.00",STRADBROKE AFTER SCHOOL CLUB            ,426251,Social Community Care,AFTER SCHOOL CARE             
COMMUNITY ENGAGE & GOVERNANCE ,9120,OTHER AGENCIES                ,03/01/2013,3387201,980692,867.41,DESIGN & PRINT SERVICE (SHEFFIELD HOMES),387617,Facilities Management,PRINTERS                      
SWAN COMMISSIONED             ,1143,COMPENSATION                  ,03/01/2013,3387215,537330,437.43,PICKFORDS                               ,573763,Transport,REMOVALS - OVERSEAS           
PARKHILL DEMOLITION SHM (STH) ,1143,COMPENSATION                  ,03/01/2013,3387216,537479,454.41,PICKFORDS                               ,573763,Transport,REMOVALS - OVERSEAS           
SOUTH WEST PAYMENTS TO TENANTS,6060,DECANTING/REMOVAL COSTS       ,03/01/2013,3387217,537329,488.64,PICKFORDS                               ,573763,Transport,REMOVALS - OVERSEAS           
ACTIVITY CENTRES GRANTS       ,6020,REPAIRS AND MTCE - PROGRAMMED ,03/01/2013,3387316,21029,"2,262.00",IAN WHITEHEAD CONTRACT FURNISHING LTD   ,205673,Furniture,CONTRACT FURNISHERS           
EXECUTIVE                     ,6280,HIRE OF PREMISES              ,03/01/2013,3387366,PAT83156                 ,803.33,SHOWROOM                                ,449463,Human Resources,CONFERENCE ROOMS & CENTRES    
MANAGEMENT TEAM LD            ,5010,GENERAL BASIC PAY             ,03/01/2013,3387367,2100075725,"4,114.36",SHEFFIELD HEALTH & SOCIAL CARE NHS      ,353994,Unclassified Non Trade,HOSPITALS                     
COMPLEX NEEDS                 ,5010,GENERAL BASIC PAY             ,03/01/2013,3387473,2100075722,"1,437.18",SHEFFIELD HEALTH AND SOCIAL CARE        ,336425,Unclassified Non Trade,HEALTH AUTHORITIES            
SHARROW ALMO WORKS            ,1165,NC&A OTHER                    ,03/01/2013,3387540,12050183,"74,019.43",KIER SHEFFIELD LLP                      ,352687,Construction,PROPERTY MAINTENANCE & REPAIRS
EP EAST                       ,1157,DWELLINGS MAIN CONTRACT       ,03/01/2013,3387565,636,"1,957.00",HILLSBOROUGH FENCING CO LTD             ,205531,Construction,FENCING CONTRACTORS           
SHEFFIELD FIRST PARTNERSHIP   ,8440,FEE EXPENSES                  ,03/01/2013,3387659,1800087387,"2,000.00",THE UNIVERSITY OF SHEFFIELD             ,386995,Unclassified Non Trade,UNIVERSITIES & MEDICAL SCHOOLS
ADAPTATIONS                   ,1157,DWELLINGS MAIN CONTRACT       ,03/01/2013,3387672,12050243,"52,801.22",KIER SHEFFIELD LLP                      ,352687,Construction,PROPERTY MAINTENANCE & REPAIRS
NORTH OF ENGLAND CONFERENCE   ,8440,FEE EXPENSES                  ,03/01/2013,3387707,14406,291.13,LEWISLIVE LTD                           ,570972,Leisure Services,"EXHIBITION, EVENT & TRADE FAIR"
SCHOOL MEALS                  ,8130,CATERING SUPPLIES             ,03/01/2013,3387729,SI-TSS-10000708          ,"233,054.50",TAYLOR SHAW LIMITED T/A TAYLOR SHAW     ,520165,Catering,CATERERS                      
SCHOOL MEALS                  ,8150,CONTRACT CATERING             ,03/01/2013,3387729,SI-TSS-10000708          ,"341,169.50",TAYLOR SHAW LIMITED T/A TAYLOR SHAW     ,520165,Catering,CATERERS                      
SCHOOL MEALS                  ,8440,FEE EXPENSES                  ,03/01/2013,3387731,SI-TSS-10000709          ,836.83,TAYLOR SHAW LIMITED T/A TAYLOR SHAW     ,520165,Catering,CATERERS                      
SCHOOL MEALS                  ,8130,CATERING SUPPLIES             ,03/01/2013,3387733,SI-TSS-10000731          ,"1,000.00",TAYLOR SHAW LIMITED T/A TAYLOR SHAW     ,520165,Catering,CATERERS                      
SCHOOL MEALS                  ,8150,CONTRACT CATERING             ,03/01/2013,3387733,SI-TSS-10000731          ,"4,150.82",TAYLOR SHAW LIMITED T/A TAYLOR SHAW     ,520165,Catering,CATERERS                      
SCHOOL MEALS                  ,8130,CATERING SUPPLIES             ,03/01/2013,3387755,1904/90528227            ,"4,385.67",MITIE PFI LIMITED                       ,472380,Facilities Management,FACILITIES MANAGEMENT         
SCHOOL MEALS                  ,8150,CONTRACT CATERING - INVOICE   ,03/01/2013,3387755,1904/90528227            ,"9,704.24",MITIE PFI LIMITED                       ,472380,Facilities Management,FACILITIES MANAGEMENT         
BROOMHILL LIBRARY             ,6150,ELECTRICITY                   ,03/01/2013,3387677,27140192,522.73,NPOWER NORTHERN LTD                     ,207191,Utilities,ELECTRICITY COMPANIES         
BROOMHILL LIBRARY             ,6150,ELECTRICITY                   ,03/01/2013,3387693,27140192,485.17,NPOWER NORTHERN LTD                     ,207191,Utilities,ELECTRICITY COMPANIES         
JORDANTHORPE LIBRARY          ,6150,ELECTRICITY                   ,03/01/2013,3387694,27140380,282.82,NPOWER NORTHERN LTD                     ,207191,Utilities,ELECTRICITY COMPANIES         
CORPORATE MAIL                ,8570,POSTAGE & DELIVERY            ,03/01/2013,3387697,9041466347,"10,758.34",ROYAL MAIL GROUP LTD                    ,295326,Mail Services,DELIVERY SERVICES             
STOCKSBRIDGE LIBRARY          ,6150,ELECTRICITY                   ,03/01/2013,3387699,27140598,910.85,NPOWER NORTHERN LTD                     ,207191,Utilities,ELECTRICITY COMPANIES         
STADIA TECHNOLOGY PARK        ,6160,GAS                           ,03/01/2013,3387703,A3558478/381359          ,906.03,BRITISH GAS BUSINESS                    ,370790,Utilities,GAS COMPANIES                 
STOCKSBRIDGE LIBRARY          ,6150,ELECTRICITY                   ,03/01/2013,3387705,27140598,894.18,NPOWER NORTHERN LTD                     ,207191,Utilities,ELECTRICITY COMPANIES         
NORBURY                       ,6150,ELECTRICITY                   ,03/01/2013,3387706,27140704,950.63,NPOWER NORTHERN LTD                     ,207191,Utilities,ELECTRICITY COMPANIES         
JORDANTHORPE LIBRARY          ,6150,ELECTRICITY                   ,03/01/2013,3387708,27140380,253.38,NPOWER NORTHERN LTD                     ,207191,Utilities,ELECTRICITY COMPANIES         
ENDCLIFFE PARK                ,6150,ELECTRICITY                   ,03/01/2013,3387734,27140272,473.72,NPOWER NORTHERN LTD                     ,207191,Utilities,ELECTRICITY COMPANIES         
PARKS OPERATIONS SOUTH        ,6150,ELECTRICITY                   ,03/01/2013,3387743,27141299,276.67,NPOWER NORTHERN LTD                     ,207191,Utilities,ELECTRICITY COMPANIES         
PFI 2                         ,6150,ELECTRICITY                   ,03/01/2013,3387884,800492110/97             ,"1,547.28",YORKSHIRE WATER PLC                     ,295854,Utilities,WATER COMPANIES               
WEST SA - LAC                 ,9440,LOOKED AFTER CHILDREN         ,03/01/2013,3387642,12017883,515.65,REDACTED PERSONAL DATA,545385,Social Community Care,CHILDCARE SERVICES            
WEST SA - LAC                 ,9440,LOOKED AFTER CHILDREN         ,03/01/2013,3387644,DI03221                  ,350,DERWENT LIVING                          ,560184,Unclassified Non Trade,"HOUSING ASSOCIATIONS, SOCIETIE"
SHORT BREAKS FUNDING FOR DISAB,8440,FEE EXPENSES                  ,04/01/2013,3388435,ERS INVOICE77534         ,400,REDACTED PERSONAL DATA,557868,Unclassified Non Trade,OUT OF SCOPE FOR SIC MONITORIN
SHORT BREAKS FUNDING FOR DISAB,8440,FEE EXPENSES                  ,04/01/2013,3388436,ERS INVOICE77535         ,400,REDACTED PERSONAL DATA,542084,Unclassified Non Trade,OUT OF SCOPE FOR SIC MONITORIN
SHORT BREAKS FUNDING FOR DISAB,8440,FEE EXPENSES                  ,04/01/2013,3388437,ERS INVOICE77536         ,400,REDACTED PERSONAL DATA,546076,Unclassified Non Trade,OUT OF SCOPE FOR SIC MONITORIN
SHORT BREAKS FUNDING FOR DISAB,8440,FEE EXPENSES                  ,04/01/2013,3388438,ERS INVOICE77537         ,400,REDACTED PERSONAL DATA,544177,Unclassified Non Trade,OUT OF SCOPE FOR SIC MONITORIN
SHORT BREAKS FUNDING FOR DISAB,8440,FEE EXPENSES                  ,04/01/2013,3388439,ERS INVOICE77538         ,400,REDACTED PERSONAL DATA,532157,Unclassified Non Trade,OUT OF SCOPE FOR SIC MONITORIN
SHORT BREAKS FUNDING FOR DISAB,8440,FEE EXPENSES                  ,04/01/2013,3388440,ERS INVOICE77539         ,400,REDACTED PERSONAL DATA,557118,Unclassified Non Trade,OUT OF SCOPE FOR SIC MONITORIN
SHORT BREAKS FUNDING FOR DISAB,8440,FEE EXPENSES                  ,04/01/2013,3388441,ERS INVOICE77540         ,400,REDACTED PERSONAL DATA,538869,Unclassified Non Trade,OUT OF SCOPE FOR SIC MONITORIN
SHORT BREAKS FUNDING FOR DISAB,8440,FEE EXPENSES                  ,04/01/2013,3388442,ERS INVOICE77541         ,400,REDACTED PERSONAL DATA,576335,Unclassified Non Trade,OUT OF SCOPE FOR SIC MONITORIN
SHORT BREAKS FUNDING FOR DISAB,8440,FEE EXPENSES                  ,04/01/2013,3388443,ERS INVOICE77542         ,400,REDACTED PERSONAL DATA,576334,Unclassified Non Trade,OUT OF SCOPE FOR SIC MONITORIN
DISCETIONARY HOUSING PAYMENTS ,9480,RENT ALLOWANCE BACS           ,04/01/2013,3388377,ERS INVOICE77503         ,387.72,REDACTED PERSONAL DATA,574647,Unclassified Non Trade,OUT OF SCOPE FOR SIC MONITORIN
DISCETIONARY HOUSING PAYMENTS ,9480,RENT ALLOWANCE BACS           ,04/01/2013,3388378,ERS INVOICE77504         ,254,REDACTED PERSONAL DATA,576596,Unclassified Non Trade,OUT OF SCOPE FOR SIC MONITORIN
DISCETIONARY HOUSING PAYMENTS ,9480,RENT ALLOWANCE BACS           ,04/01/2013,3388379,ERS INVOICE77505         ,391,SANCTUARY HOUSING ASSOCIATION (SP)      ,464849,Unclassified Non Trade,"HOUSING ASSOCIATIONS, SOCIETIE"
DISCETIONARY HOUSING PAYMENTS ,9480,RENT ALLOWANCE BACS           ,04/01/2013,3388380,ERS INVOICE77506         ,892.82,REDACTED PERSONAL DATA,564831,Social Community Care,CAREFIRST DIRECT PAYMENTS     
DISCETIONARY HOUSING PAYMENTS ,9480,RENT ALLOWANCE BACS           ,04/01/2013,3388381,ERS INVOICE77507         ,404.95,REDACTED PERSONAL DATA,573233,Unclassified Non Trade,OUT OF SCOPE FOR SIC MONITORIN
DISCETIONARY HOUSING PAYMENTS ,9480,RENT ALLOWANCE BACS           ,04/01/2013,3388383,ERS INVOICE77509         ,404.95,REDACTED PERSONAL DATA,576603,Unclassified Non Trade,OUT OF SCOPE FOR SIC MONITORIN
BRADFORD RF FUNDS HAL         ,1194,OTHER FEES                    ,04/01/2013,3388384,ERS INVOICE77510         ,299,WAKE SMITH & TOFIELDS SOLICITORS        ,209393,Legal Services,SOLICITORS                    
HULL - HUMBER SUB REGION HAL  ,1194,OTHER FEES                    ,04/01/2013,3388385,ERS INVOICE77511         ,299,WAKE SMITH & TOFIELDS SOLICITORS        ,209393,Legal Services,SOLICITORS                    
DISCETIONARY HOUSING PAYMENTS ,9480,RENT ALLOWANCE BACS           ,04/01/2013,3388388,ERS INVOICE77514         ,"1,059.10",REDACTED PERSONAL DATA,576684,Unclassified Non Trade,OUT OF SCOPE FOR SIC MONITORIN
DISCETIONARY HOUSING PAYMENTS ,9480,RENT ALLOWANCE BACS           ,04/01/2013,3388390,ERS INVOICE77516         ,775.32,REDACTED PERSONAL DATA,576680,Unclassified Non Trade,OUT OF SCOPE FOR SIC MONITORIN
DISCETIONARY HOUSING PAYMENTS ,9480,RENT ALLOWANCE BACS           ,04/01/2013,3388391,ERS INVOICE77517         ,535.34,REDACTED PERSONAL DATA,576685,Unclassified Non Trade,OUT OF SCOPE FOR SIC MONITORIN
DISCETIONARY HOUSING PAYMENTS ,9480,RENT ALLOWANCE BACS           ,04/01/2013,3388392,ERS INVOICE77518         ,404.95,REDACTED PERSONAL DATA,538433,Unclassified Non Trade,OUT OF SCOPE FOR SIC MONITORIN
DISCETIONARY HOUSING PAYMENTS ,9480,RENT ALLOWANCE BACS           ,04/01/2013,3388394,ERS INVOICE77520         ,498.4,REDACTED PERSONAL DATA,576693,Unclassified Non Trade,OUT OF SCOPE FOR SIC MONITORIN
SHORT BREAKS FUNDING FOR DISAB,8440,FEE EXPENSES                  ,04/01/2013,3388422,ERS INVOICE77521         ,400,REDACTED PERSONAL DATA,542614,Social Community Care,Adoption & Fostering
SHORT BREAKS FUNDING FOR DISAB,8440,FEE EXPENSES                  ,04/01/2013,3388423,ERS INVOICE77522         ,400,REDACTED PERSONAL DATA,575919,Unclassified Non Trade,OUT OF SCOPE FOR SIC MONITORIN
SHORT BREAKS FUNDING FOR DISAB,8440,FEE EXPENSES                  ,04/01/2013,3388424,ERS INVOICE77523         ,400,REDACTED PERSONAL DATA,575920,Unclassified Non Trade,OUT OF SCOPE FOR SIC MONITORIN
SHORT BREAKS FUNDING FOR DISAB,8440,FEE EXPENSES                  ,04/01/2013,3388425,ERS INVOICE77524         ,400,REDACTED PERSONAL DATA,532608,Unclassified Non Trade,OUT OF SCOPE FOR SIC MONITORIN
SHORT BREAKS FUNDING FOR DISAB,8440,FEE EXPENSES                  ,04/01/2013,3388426,ERS INVOICE77525         ,400,REDACTED PERSONAL DATA,560200,Unclassified Non Trade,OUT OF SCOPE FOR SIC MONITORIN
SHORT BREAKS FUNDING FOR DISAB,8440,FEE EXPENSES                  ,04/01/2013,3388427,ERS INVOICE77526         ,400,REDACTED PERSONAL DATA,535845,Unclassified Non Trade,OUT OF SCOPE FOR SIC MONITORIN
SHORT BREAKS FUNDING FOR DISAB,8440,FEE EXPENSES                  ,04/01/2013,3388428,ERS INVOICE77527         ,400,REDACTED PERSONAL DATA,540149,Unclassified Non Trade,OUT OF SCOPE FOR SIC MONITORIN
SHORT BREAKS FUNDING FOR DISAB,8440,FEE EXPENSES                  ,04/01/2013,3388429,ERS INVOICE77528         ,400,REDACTED PERSONAL DATA,535770,Unclassified Non Trade,OUT OF SCOPE FOR SIC MONITORIN
SHORT BREAKS FUNDING FOR DISAB,8440,FEE EXPENSES                  ,04/01/2013,3388430,ERS INVOICE77529         ,400,REDACTED PERSONAL DATA,535060,Unclassified Non Trade,OUT OF SCOPE FOR SIC MONITORIN
SHORT BREAKS FUNDING FOR DISAB,8440,FEE EXPENSES                  ,04/01/2013,3388431,ERS INVOICE77530         ,400,REDACTED PERSONAL DATA,575959,Unclassified Non Trade,OUT OF SCOPE FOR SIC MONITORIN
SHORT BREAKS FUNDING FOR DISAB,8440,FEE EXPENSES                  ,04/01/2013,3388432,ERS INVOICE77531         ,400,REDACTED PERSONAL DATA,575954,Unclassified Non Trade,OUT OF SCOPE FOR SIC MONITORIN
SHORT BREAKS FUNDING FOR DISAB,8440,FEE EXPENSES                  ,04/01/2013,3388434,ERS INVOICE77533         ,400,REDACTED PERSONAL DATA,575955,Unclassified Non Trade,OUT OF SCOPE FOR SIC MONITORIN
SHORT BREAKS FUNDING FOR DISAB,8440,FEE EXPENSES                  ,04/01/2013,3388444,ERS INVOICE77543         ,400,REDACTED PERSONAL DATA,576333,Unclassified Non Trade,OUT OF SCOPE FOR SIC MONITORIN
SHORT BREAKS FUNDING FOR DISAB,8440,FEE EXPENSES                  ,04/01/2013,3388445,ERS INVOICE77544         ,400,REDACTED PERSONAL DATA,576316,Unclassified Non Trade,OUT OF SCOPE FOR SIC MONITORIN
SHORT BREAKS FUNDING FOR DISAB,8440,FEE EXPENSES                  ,04/01/2013,3388446,ERS INVOICE77545         ,400,REDACTED PERSONAL DATA,543104,Unclassified Non Trade,OUT OF SCOPE FOR SIC MONITORIN
SHORT BREAKS FUNDING FOR DISAB,8440,FEE EXPENSES                  ,04/01/2013,3388447,ERS INVOICE77546         ,400,REDACTED PERSONAL DATA,533985,Unclassified Non Trade,OUT OF SCOPE FOR SIC MONITORIN
SHORT BREAKS FUNDING FOR DISAB,8440,FEE EXPENSES                  ,04/01/2013,3388448,ERS INVOICE77547         ,400,REDACTED PERSONAL DATA,575585,Unclassified Non Trade,OUT OF SCOPE FOR SIC MONITORIN
SHORT BREAKS FUNDING FOR DISAB,8440,FEE EXPENSES                  ,04/01/2013,3388449,ERS INVOICE77548         ,400,REDACTED PERSONAL DATA,557851,Unclassified Non Trade,OUT OF SCOPE FOR SIC MONITORIN
SHORT BREAKS FUNDING FOR DISAB,8440,FEE EXPENSES                  ,04/01/2013,3388450,ERS INVOICE77549         ,400,REDACTED PERSONAL DATA,547784,Unclassified Non Trade,OUT OF SCOPE FOR SIC MONITORIN
SHORT BREAKS FUNDING FOR DISAB,8440,FEE EXPENSES                  ,04/01/2013,3388451,ERS INVOICE77550         ,400,REDACTED PERSONAL DATA,562621,Unclassified Non Trade,OUT OF SCOPE FOR SIC MONITORIN
CLAIMS                        ,8740,MOTOR VEHICLE                 ,04/01/2013,3388452,ERS INVOICE77551         ,"1,934.47",REDACTED PERSONAL DATA,576694,Unclassified Non Trade,OUT OF SCOPE FOR SIC MONITORIN
CLAIMS                        ,8740,MOTOR VEHICLE                 ,04/01/2013,3388453,ERS INVOICE77552         ,480,ARGENT REHABILITATION                   ,533271,Medical ,COUNSELLING & ADVICE SERVICES 
CLAIMS                        ,8740,MOTOR VEHICLE                 ,04/01/2013,3388454,ERS INVOICE77553         ,827.07,REDACTED PERSONAL DATA,576697,Unclassified Non Trade,OUT OF SCOPE FOR SIC MONITORIN
CLAIMS                        ,8740,MOTOR VEHICLE                 ,04/01/2013,3388455,ERS INVOICE77554         ,"2,525.00",REDACTED PERSONAL DATA,576585,Unclassified Non Trade,OUT OF SCOPE FOR SIC MONITORIN
CLAIMS                        ,8740,MOTOR VEHICLE                 ,04/01/2013,3388456,ERS INVOICE77555         ,255,REDACTED PERSONAL DATA,576582,Unclassified Non Trade,OUT OF SCOPE FOR SIC MONITORIN
CLAIMS                        ,8740,MOTOR VEHICLE                 ,04/01/2013,3388457,ERS INVOICE77556         ,"2,097.10",CARPENTERS SOLICITORS                   ,440881,Legal Services,SOLICITORS                    
DISCETIONARY HOUSING PAYMENTS ,9480,RENT ALLOWANCE BACS           ,04/01/2013,3388458,ERS INVOICE77557         ,321.64,REDACTED PERSONAL DATA,572121,Unclassified Non Trade,OUT OF SCOPE FOR SIC MONITORIN
DISCETIONARY HOUSING PAYMENTS ,9480,RENT ALLOWANCE BACS           ,04/01/2013,3388459,ERS INVOICE77558         ,716.45,MR TITUS ABAYOMI                        ,538681,Unclassified Trade,LETTING AGENTS                
DISCETIONARY HOUSING PAYMENTS ,9480,RENT ALLOWANCE BACS           ,04/01/2013,3388460,ERS INVOICE77559         ,498.4,REDACTED PERSONAL DATA,575323,Unclassified Non Trade,OUT OF SCOPE FOR SIC MONITORIN
DISCETIONARY HOUSING PAYMENTS ,9480,RENT ALLOWANCE BACS           ,04/01/2013,3388461,ERS INVOICE77560         ,675,REDACTED PERSONAL DATA,561547,Unclassified Non Trade,OUT OF SCOPE FOR SIC MONITORIN
CLAIMS                        ,8740,HIGHWAYS                      ,04/01/2013,3388462,ERS INVOICE77561         ,"8,750.00",REDACTED PERSONAL DATA,576579,Unclassified Non Trade,OUT OF SCOPE FOR SIC MONITORIN
CLAIMS                        ,8740,HIGHWAYS                      ,04/01/2013,3388463,ERS INVOICE77562         ,"10,051.09",DEPARTMENT FOR WORK & PENSIONS          ,326920,Unclassified Non Trade,CENTRAL GOVERNMENT            
DISCETIONARY HOUSING PAYMENTS ,9480,RENT ALLOWANCE BACS           ,04/01/2013,3388464,ERS INVOICE77564         ,657.75,REDACTED PERSONAL DATA,573378,Unclassified Non Trade,OUT OF SCOPE FOR SIC MONITORIN
DISCETIONARY HOUSING PAYMENTS ,9480,RENT ALLOWANCE BACS           ,04/01/2013,3388466,ERS INVOICE77567         ,431.46,REDACTED PERSONAL DATA,576762,Unclassified Non Trade,OUT OF SCOPE FOR SIC MONITORIN
OTHER                         ,8350,MISCELLANEOUS EXPENSES        ,04/01/2013,3353492,6186055,"8,500.00",AUDIT COMMISSION                        ,389233,Financial Services,AUDITORS                      
OTHER                         ,8350,MISCELLANEOUS EXPENSES        ,04/01/2013,3360487,6186298,"21,925.00",AUDIT COMMISSION                        ,389233,Financial Services,AUDITORS                      
OTHER                         ,8350,MISCELLANEOUS EXPENSES        ,04/01/2013,3365393,4043703,"2,000.00",AUDIT COMMISSION                        ,389233,Financial Services,AUDITORS                      
NORTON NURSERY                ,8060,MATERIALS AND SUPPLIES GENERAL,04/01/2013,3367890,12777,"1,087.50",G LUBBE & SON BULBS LTD                 ,205019,Horticultural,BULB GROWERS & SUPPLIERS      
LA MUSIC SERVICES             ,8620,ICT LEASE/RENTALS             ,04/01/2013,3368093,8666,"2,600.00",CHARANGA LTD                            ,539516,Education,MUSIC TEACHERS                
CHANCET WOOD                  ,8010,EQUIPMENT PURCHASE AND REPAIR ,04/01/2013,3369272,4542932RI                ,865.76,ARGOS LTD                               ,426032,Unclassified Trade,CATALOGUE SHOWROOMS           
FAMILY & COMM MANAGEMENT      ,8420,ADVERTISING AND PUBLICITY     ,04/01/2013,3369300,265914,"2,167.50",HALLAM FM                               ,205342,Unclassified Trade,RADIO & TELEVISION STATIONS   
CAPABILITY & DEVELOPMENT      ,5750,TRAINING EXPENDITURE          ,04/01/2013,3373827,201135,700,PRE-RETIREMENT CONSULTANT SERVICES LTD  ,395141,Human Resources,TRAINING SERVICES             
FAMILY & COMM MANAGEMENT      ,8420,ADVERTISING AND PUBLICITY     ,04/01/2013,3377157,271080,"2,167.50",HALLAM FM                               ,205342,Unclassified Trade,RADIO & TELEVISION STATIONS   
PRN MAINTENANCE SCHEMES       ,1103,GOVERNMENT GRANTS             ,04/01/2013,3377589,2000000074,"614,156.00",SYPTE                                   ,208757,Transport,BUS & COACH OPERATORS & STATIO
PUBLIC RIGHTS OF WAY          ,8010,EQUIPMENT PURCHASE AND REPAIR ,04/01/2013,3377837,45492,951.08,NORTHERN POWER TOOLS & EQUIPMENT LTD    ,207167,Building Construction Materials,POWER TOOLS                   
SECTOR GROWTH                 ,5750,TRAINING EXPENDITURE          ,04/01/2013,3377901,ITFI03228                ,"1,140.00",SHEFFIELD HALLAM UNIVERSITY             ,575545,Human Resources,TRAINING CENTRES              
PUBLIC RIGHTS OF WAY          ,1173,INFR MAIN CONTRACT            ,04/01/2013,3377988,5/777/25LM/40813         ,"5,255.00",WILDSCAPES LTD                          ,472494,Consultancy,LANDSCAPE ARCHITECTS & DESIGNE
TOWN HALL                     ,6030,REPAIRS AND MTCE - RESPONSIVE ,04/01/2013,3378409,268349,337.62,BRADLEY LOMAS ELECTROLOK LTD            ,510933,Unclassified Trade,MANUFACTURERS                 
COMMERCIAL ESTATE             ,6020,REPAIRS AND MTCE - PROGRAMMED ,04/01/2013,3378423,4004,450,CLEAN AND BRIGHT                        ,363368,Cleaning and Janitorial,CLEANING SERVICES - DOMESTIC  
LA MUSIC SERVICES             ,8620,ICT LEASE/RENTALS             ,04/01/2013,3379109,8673,"2,390.00",CHARANGA LTD                            ,539516,Education,MUSIC TEACHERS                
BN962 BUS AGREEMENT           ,1194,OTHER FEES                    ,04/01/2013,3379152,SL0064110                ,767.5,SYPTE                                   ,208757,Transport,BUS & COACH OPERATORS & STATIO
AIR QUALITY AND MODELLING     ,8030,EQUIPMENT MAINTENANCE CONTRACT,04/01/2013,3380344,17612,"1,432.81",ENVIRO TECHNOLOGY SERVICES PLC          ,315213,Environmental Services,"MEASURING, ANALYSING & CONTROL"
LEGI                          ,8440,FEE EXPENSES                  ,04/01/2013,3380572,1212-03                  ,"7,720.00",SERO CONSULTING LTD                     ,434360,Consultancy,BUSINESS & MANAGEMENT CONSULTA
COMMUNITY ENGAGE & GOVERNANCE ,9120,OTHER AGENCIES                ,04/01/2013,3380703,2066,300,SHEFFIELD CATHEDRAL CHAPTER             ,427279,Unclassified Non Trade,PLACES OF WORSHIP             
FAMILY & COMM MANAGEMENT      ,8420,ADVERTISING AND PUBLICITY     ,04/01/2013,3380730,268683,"2,167.50",HALLAM FM                               ,205342,Unclassified Trade,RADIO & TELEVISION STATIONS   
HILLSBOROUGH BARRACKS UNIT 1  ,6210,RENTS                         ,04/01/2013,3380769,7170598,"29,802.00",WM MORRISON SUPERMARKETS PLC            ,209577,Catering,SUPERMARKETS                  
HILLSBOROUGH BARRACKS UNIT 1  ,6270,SERVICE / PFI UNITARY CHARGE  ,04/01/2013,3380769,7170598,500,WM MORRISON SUPERMARKETS PLC            ,209577,Catering,SUPERMARKETS                  
PUBLIC RIGHTS OF WAY          ,8010,EQUIPMENT PURCHASE AND REPAIR ,04/01/2013,3380943,1016,362,BROADFIELD MOWERS LTD                   ,299941,Horticultural,LAWNMOWERS & GARDEN MACHINERY 
ADULT SOCIAL CARE PURCHASING  ,8470,LEGAL FEES                    ,04/01/2013,3381079,324452,"6,550.00",KINGS CHAMBERS                          ,575876,Legal Services,BARRISTERS                    
CYCLE TRAINING                ,8440,FEE EXPENSES                  ,04/01/2013,3381168,1160,"2,640.00",PEDAL READY CO-OPERATIVE LIMITED        ,404979,Leisure Services,SPORTS CLUBS & ASSOCIATIONS   
CYCLE TRAINING                ,8440,FEE EXPENSES                  ,04/01/2013,3381169,1161,"1,897.50",PEDAL READY CO-OPERATIVE LIMITED        ,404979,Leisure Services,SPORTS CLUBS & ASSOCIATIONS   
GENERAL ADMINISTRATION        ,8390,STATIONERY                    ,04/01/2013,3381928,SINV00241987             ,289.36,R A ROBERTS (OFFICE EQUIPMENT) LTD      ,207777,Furniture,OFFICE FURNITURE & EQUIPMENT  
CATERING PREMISES & EQUIPMENT ,8010,EQUIPMENT PURCHASE AND REPAIR ,04/01/2013,3382272,48541,555.35,BARNSLEY CATERING SERVICES LTD          ,203262,Catering,CATERING EQUIPMENT            
CATERING PREMISES & EQUIPMENT ,8010,EQUIPMENT PURCHASE AND REPAIR ,04/01/2013,3382279,48545,316,BARNSLEY CATERING SERVICES LTD          ,203262,Catering,CATERING EQUIPMENT            
CITY WIDE ALARM - GENERAL     ,6030,REPAIRS TO TENANTED PROPERTIES,04/01/2013,3382283,INV/50243285             ,262.2,TUNSTALL HEALTHCARE (UK) LIMITED        ,209178,ICT,TELECOMMUNICATIONS EQUIPMENT &
CATERING CONTRACT             ,8440,FEE EXPENSES                  ,04/01/2013,3382339,01535664/00296659/0029791,"3,078.94",G4S CASH SERVICES (UK) LIMITED          ,208285,Facilities Management,SECURITY SERVICES             
ALLOTMENTS                    ,8060,MATERIALS AND SUPPLIES GENERAL,04/01/2013,3383011,127790,394.8,H HARROLD & SONS LTD                    ,205285,Facilities Management,LOCK SMITHS                   
LA MUSIC SERVICES             ,8010,EQUIPMENT PURCHASE AND REPAIR ,04/01/2013,3383028,SIN597753                ,632.62,CHAMBERLAIN MUSIC                       ,348616,Education,MUSICAL INSTRUMENTS & SHEET MU
LA MUSIC SERVICES             ,8010,EQUIPMENT PURCHASE AND REPAIR ,04/01/2013,3383031,SIN598032                ,632.62,CHAMBERLAIN MUSIC                       ,348616,Education,MUSICAL INSTRUMENTS & SHEET MU
CATERING PREMISES & EQUIPMENT ,8010,EQUIPMENT PURCHASE AND REPAIR ,04/01/2013,3383054,48537,267.5,BARNSLEY CATERING SERVICES LTD          ,203262,Catering,CATERING EQUIPMENT            
CATERING PREMISES & EQUIPMENT ,8010,EQUIPMENT PURCHASE AND REPAIR ,04/01/2013,3383062,48597,257.87,BARNSLEY CATERING SERVICES LTD          ,203262,Catering,CATERING EQUIPMENT            
VACANTS PAYMENTS TO TENANTS   ,6060,IMPROVEMENTS                  ,04/01/2013,3383097,13284,"2,100.00",PYRAMID CARPETS                         ,243612,Building Construction Materials,CARPETS & RUGS - RETAIL       
WOODLAND MGMT FOR BIRDS EM    ,1164,NC&A LANDSCAPING              ,04/01/2013,3383132,1663,463,STOURTON ESTATES LTD                    ,438927,Environmental Services,TREE WORK & FORESTRY SERVICES 
WOODLAND MGMT FOR BIRDS EM    ,1164,NC&A LANDSCAPING              ,04/01/2013,3383152,1664,463,STOURTON ESTATES LTD                    ,438927,Environmental Services,TREE WORK & FORESTRY SERVICES 
SHEFFIELD HOMES TREES         ,6370,GROUNDS MTCE AND ARBORICULTURE,04/01/2013,3383156,121,610,J B HIBBERD LIMITED                     ,510434,Environmental Services,TREE WORK & FORESTRY SERVICES 
SHEFFIELD HOMES TREES         ,6370,GROUNDS MTCE AND ARBORICULTURE,04/01/2013,3383157,123,"1,685.00",J B HIBBERD LIMITED                     ,510434,Environmental Services,TREE WORK & FORESTRY SERVICES 
WOODLANDS                     ,8260,WOODLAND DEVELOPMENT EXPENSES ,04/01/2013,3383224,1295,300,DRONFIELD TREE SERVICES LTD             ,405525,Environmental Services,TREE WORK & FORESTRY SERVICES 
TREE MANAGEMENT               ,1165,NC&A OTHER                    ,04/01/2013,3383225,1292,358,DRONFIELD TREE SERVICES LTD             ,405525,Environmental Services,TREE WORK & FORESTRY SERVICES 
SHEFFIELD HOMES TREES         ,6370,GROUNDS MTCE AND ARBORICULTURE,04/01/2013,3383269,2115,330,ANDERSON TREE CARE LTD                  ,316084,Environmental Services,TREE WORK & FORESTRY SERVICES 
DISADVANTAGED AREA FUNDING    ,9120,OTHER AGENCIES                ,04/01/2013,3385255,5037846,"1,883.00", THE CONSERVATION VOLUNTEERS            ,408123,Unclassified Non Trade,CHARITIES & VOLUNTARY ORGANISA
LA MUSIC SERVICES             ,8010,EQUIPMENT PURCHASE AND REPAIR ,04/01/2013,3385408,9879,460,BAND SUPPLIES                           ,322829,Education,Musical Instruments & Sheet Music
SCC BALANCE SHEET             ,1540,PUBLIC SAFETY CONTROL ACCOUNT ,04/01/2013,3385667,13246,"3,790.00",CD SCAFFOLDING LTD                      ,469538,Construction,SCAFFOLDING ERECTORS & HIRERS 
NORBURY                       ,8060,MATERIALS AND SUPPLIES GENERAL,04/01/2013,3385760,255967622,404.34,YORKSHIRE PURCHASING ORGANISATION       ,295997,Unclassified Trade,PURCHASING SERVICES           
OTHER REPAIRS & FEES          ,6020,LEGIONELLA MONITORING         ,04/01/2013,3385763,10704730,300,RENTOKIL INITIAL UK LTD                 ,437082,Cleaning and Janitorial,CLEANING SERVICES - COMMERCIAL
OBSOLETE HEATING              ,1157,DWELLINGS MAIN CONTRACT       ,04/01/2013,3385773,12060030,"121,391.00",KIER SHEFFIELD LLP                      ,352687,Construction,PROPERTY MAINTENANCE & REPAIRS
WORK CHOICE                   ,8440,FEE EXPENSES                  ,04/01/2013,3385785,SINV00242456             ,428.34,R A ROBERTS (OFFICE EQUIPMENT) LTD      ,207777,Furniture,OFFICE FURNITURE & EQUIPMENT  
SCC BALANCE SHEET             ,1540,DEMOLITION CONTROL ACCOUNT    ,04/01/2013,3386788,SLINV2/00045843          ,"1,041.40",IOM CONSULTING LTD                      ,442538,Health and Safety,SAFETY CONSULTANTS            
NORTON NURSERY                ,8550,OTHER SERVICES                ,04/01/2013,3386791,4539,415,JOSEPH NOBLETT                          ,493647,Horticultural,NURSERYMEN - TREES & SHRUBS   
NORTON NURSERY                ,8550,OTHER SERVICES                ,04/01/2013,3386795,4541,533.6,JOSEPH NOBLETT                          ,493647,Horticultural,NURSERYMEN - TREES & SHRUBS   
CITY STEWARDSHIP              ,6030,REPAIRS TO TENANTED PROPERTIES,04/01/2013,3386896,12060055,"133,473.89",KIER SHEFFIELD LLP                      ,352687,Construction,PROPERTY MAINTENANCE & REPAIRS
ESTATE SERVICES               ,6090,TIPPING COSTS                 ,04/01/2013,3386924,48719/1                  ,"3,907.44",R FLETCHER WASTE DISPOSAL LTD           ,473104,Environmental Services,WASTE DISPOSAL SERVICES       
PEST CONTROL                  ,8010,EQUIPMENT PURCHASE AND REPAIR ,04/01/2013,3386927,OP/0100255               ,388.32,BARRETTINE ENVIRONMENTAL HEALTH         ,203269,Unclassified Trade,CHEMICALS & ALLIED PRODUCTS   
ALLOTMENTS                    ,8620,COMPUTER MAINTENANCE          ,04/01/2013,3386977,2040,323,MCPC SYSTEMS (UK) LTD                   ,316347,Consultancy,COMPUTER SYSTEMS & SOFTWARE (D
SHEFFIELD HOMES TREES         ,6370,GROUNDS MTCE AND ARBORICULTURE,04/01/2013,3386990,2117,640,ANDERSON TREE CARE LTD                  ,316084,Environmental Services,TREE WORK & FORESTRY SERVICES 
ACCES2NATURE                  ,8260,WOODLAND DEVELOPMENT EXPENSES ,04/01/2013,3387023,1120,400,ARTIPHEX LTD                            ,558322,Facilities Management,WEB SITE DESIGN               
PROPERTY DISPOSAL             ,8420,ADVERTISING AND PUBLICITY     ,04/01/2013,3387035,73297,750,MARK JENKINSON & SON                    ,206710,Unclassified Trade,AUCTIONEERS & VALUERS         
PROPERTY DISPOSAL             ,8420,ADVERTISING AND PUBLICITY     ,04/01/2013,3387037,73296,750,MARK JENKINSON & SON                    ,206710,Unclassified Trade,AUCTIONEERS & VALUERS         
PROPERTY DISPOSAL             ,8420,ADVERTISING AND PUBLICITY     ,04/01/2013,3387038,73299,750,MARK JENKINSON & SON                    ,206710,Unclassified Trade,AUCTIONEERS & VALUERS         
PROPERTY DISPOSAL             ,8420,ADVERTISING AND PUBLICITY     ,04/01/2013,3387039,73298,750,MARK JENKINSON & SON                    ,206710,Unclassified Trade,AUCTIONEERS & VALUERS         
PROPERTY DISPOSAL             ,8420,ADVERTISING AND PUBLICITY     ,04/01/2013,3387055,73342,750,MARK JENKINSON & SON                    ,206710,Unclassified Trade,AUCTIONEERS & VALUERS         
PROPERTY DISPOSAL             ,8420,ADVERTISING AND PUBLICITY     ,04/01/2013,3387056,73347,750,MARK JENKINSON & SON                    ,206710,Unclassified Trade,AUCTIONEERS & VALUERS         
PROPERTY DISPOSAL             ,8420,ADVERTISING AND PUBLICITY     ,04/01/2013,3387057,73348,750,MARK JENKINSON & SON                    ,206710,Unclassified Trade,AUCTIONEERS & VALUERS         
PROPERTY DISPOSAL             ,8420,ADVERTISING AND PUBLICITY     ,04/01/2013,3387058,73344,495,MARK JENKINSON & SON                    ,206710,Unclassified Trade,AUCTIONEERS & VALUERS         
ESTATE SERVICES               ,6090,TIPPING COSTS                 ,04/01/2013,3387083,48943/1                  ,"3,918.64",R FLETCHER WASTE DISPOSAL LTD           ,473104,Environmental Services,WASTE DISPOSAL SERVICES       
MI-21/WORLD METAL INDEX       ,8440,FEE EXPENSES                  ,04/01/2013,3387092,7092,"1,250.00",GRANTA DESIGN LTD                       ,564803,Consultancy,COMPUTER SYSTEMS & SOFTWARE (D
GOING LOCAL                   ,8560,TPB CENTRAL                   ,04/01/2013,3387129,75,"3,000.00",IN2CHANGE SOUTH YORKS LTD               ,558793,Unclassified Non Trade,CHARITIES & VOLUNTARY ORGANISA
VACANTS                       ,8420,ADVERTISING AND PUBLICITY     ,04/01/2013,3387186,57891208,"1,685.04",AD MAG                                  ,297595,Education,NEWSPAPER & MAGAZINE PUBLISHER
NORBURY                       ,8060,MATERIALS AND SUPPLIES GENERAL,04/01/2013,3387189,255983040,581.61,YORKSHIRE PURCHASING ORGANISATION       ,295997,Unclassified Trade,PURCHASING SERVICES           
TESCO SPITAL HILL             ,8460,CONSULTANTS FEES              ,04/01/2013,3387207,337603,"7,343.00",OVE ARUP & PARTNERS INTERNATIONAL LTD   ,321129,Consultancy,ENGINEERS - CONSULTING        
BOLE HILL VIEW                ,8140,GROCERIES                     ,04/01/2013,3387208,255983038,657.34,YORKSHIRE PURCHASING ORGANISATION       ,295997,Unclassified Trade,PURCHASING SERVICES           
BOOKS & OTHER MATERIALS       ,8080,LIBRARY MATERIALS             ,04/01/2013,3387333,1633097,555.5,BERTRAM LIBRARY SERVICES                ,418929,Education,EDUCATIONAL EQUIPMENT & SUPPLI
BOOKS & OTHER MATERIALS       ,8080,LIBRARY MATERIALS             ,04/01/2013,3387363,1636372,636.5,BERTRAM LIBRARY SERVICES                ,418929,Education,EDUCATIONAL EQUIPMENT & SUPPLI
BOOKS & OTHER MATERIALS       ,8080,MEDIA                         ,04/01/2013,3387364,1641761,"1,440.81",BERTRAM LIBRARY SERVICES                ,418929,Education,EDUCATIONAL EQUIPMENT & SUPPLI
BOOKS & OTHER MATERIALS       ,8080,LIBRARY MATERIALS             ,04/01/2013,3387365,1633178,730.05,BERTRAM LIBRARY SERVICES                ,418929,Education,EDUCATIONAL EQUIPMENT & SUPPLI
GRAVES PARK - ANIMAL FARM INC ,8060,MATERIALS AND SUPPLIES GENERAL,04/01/2013,3387371,215411,474.15,ARGO FEEDS LTD                          ,203028,Unclassified Trade,PET FOODS & ANIMAL FEEDS      
OUTDOOR EDUCATION             ,8010,EQUIPMENT PURCHASE AND REPAIR ,04/01/2013,3387376,3.4E+12,340.54,DECATHLON UK LTD                        ,365405,Sports & Playground,SPORTS GOODS SHOPS            
LOCALITY 1 MANAGEMENT+O/HEADS ,7090,CONTRIB. TO TRANSPORT PROVSION,04/01/2013,3387378,25819,"1,289.96",SHEFFIELD COMMUNITY TRANSPORT (WORKSHOP),297061,Unclassified Non Trade,CHARITIES & VOLUNTARY ORGANISA
BOOKS & OTHER MATERIALS       ,8080,LIBRARY MATERIALS             ,04/01/2013,3387459,3223204,633.54,AUDIOGO LIMITED                         ,349263,Education,MULTIMEDIA & ELECTRONIC BOOK P
BOOKS & OTHER MATERIALS       ,8080,LIBRARY MATERIALS             ,04/01/2013,3387462,I-400094901              ,"1,939.84",COUTTS INFORMATION SERVICES LIMITED     ,413252,Education,BOOKSELLERS                   
BOOKS & OTHER MATERIALS       ,8080,LIBRARY MATERIALS             ,04/01/2013,3387463,1633135,569.46,BERTRAM LIBRARY SERVICES                ,418929,Education,EDUCATIONAL EQUIPMENT & SUPPLI
ACCOMMODATION & DEVEL TEAM    ,8490,OTHER PROFESSIONAL FEES       ,04/01/2013,3387471,2100075724,"3,488.87",SHEFFIELD CARE TRUST (SP)               ,366826,Unclassified Non Trade,CHARITIES & VOLUNTARY ORGANISA
CAR PARKING MANAGEMENT        ,8370,PRINTING                      ,04/01/2013,3387535,102618,"3,527.78",THE PARKING SHOP LIMITED                ,519368,Traffic Management,TRAFFIC MANAGEMENT SYSTEMS    
HARD FM                       ,6030,REPAIRS AND MTCE - RESPONSIVE ,04/01/2013,3387564,2611001A                 ,"1,950.00",STEELWAY CONSTRUCTION LIMITED           ,572313,Construction,CONSTRUCTION CONTRACTORS - GEN
OTHER LOCAL AUTHORITY PLACEMEN,9120,OTHER AGENCIES                ,04/01/2013,3387651,1.8E+12,"4,050.08",NEWCASTLE CITY COUNCIL                  ,339732,Unclassified Non Trade,LOCAL GOVERNMENT              
ESTATE & ENVIRONMENTAL SERVICE,8440,FEE EXPENSES                  ,04/01/2013,3387653,CB/CM3453DQ              ,655,RECYCLING REVOLUTION                    ,489496,Environmental Services,RECYCLING SERVICES            
SHEFFIELD HOMES MANAGEMENT COS,8350,MISCELLANEOUS EXPENSES        ,04/01/2013,3387661,695,"3,333.33",SHEFFIELD HOMES LTD                     ,503889,Unclassified Non Trade,"HOUSING ASSOCIATIONS, SOCIETIE"
100 APPRENTICES               ,9120,OTHER AGENCIES                ,04/01/2013,3387663,2898,353.6,FERN GLOBAL LTD                         ,517222,Human Resources,EMPLOYMENT & RECRUITMENT AGENC
SHEFFIELD HOMES MANAGEMENT COS,8350,MISCELLANEOUS EXPENSES        ,04/01/2013,3387666,689,"2,570,117.42",SHEFFIELD HOMES LTD                     ,503889,Unclassified Non Trade,"HOUSING ASSOCIATIONS, SOCIETIE"
SHEFFIELD HOMES MANAGEMENT COS,8350,MISCELLANEOUS EXPENSES        ,04/01/2013,3387667,690,"314,250.00",SHEFFIELD HOMES LTD                     ,503889,Unclassified Non Trade,"HOUSING ASSOCIATIONS, SOCIETIE"
SHEFFIELD HOMES MANAGEMENT COS,8350,MISCELLANEOUS EXPENSES        ,04/01/2013,3387668,692,"139,666.66",SHEFFIELD HOMES LTD                     ,503889,Unclassified Non Trade,"HOUSING ASSOCIATIONS, SOCIETIE"
SHEFFIELD HOMES MANAGEMENT COS,8350,MISCELLANEOUS EXPENSES        ,04/01/2013,3387669,691,"10,916.67",SHEFFIELD HOMES LTD                     ,503889,Unclassified Non Trade,"HOUSING ASSOCIATIONS, SOCIETIE"
SHEFFIELD HOMES MANAGEMENT COS,8350,MISCELLANEOUS EXPENSES        ,04/01/2013,3387670,693,"6,250.00",SHEFFIELD HOMES LTD                     ,503889,Unclassified Non Trade,"HOUSING ASSOCIATIONS, SOCIETIE"
SHEFFIELD HOMES MANAGEMENT COS,8350,MISCELLANEOUS EXPENSES        ,04/01/2013,3387671,694,"4,166.67",SHEFFIELD HOMES LTD                     ,503889,Unclassified Non Trade,"HOUSING ASSOCIATIONS, SOCIETIE"
BOOKS & OTHER MATERIALS       ,8080,LIBRARY MATERIALS             ,04/01/2013,3387712,71854,290.8,W F HOWES LIMITED                       ,313193,Education,PUBLISHERS                    
BOOKS & OTHER MATERIALS       ,8080,LIBRARY MATERIALS             ,04/01/2013,3387713,71853,741.6,W F HOWES LIMITED                       ,313193,Education,PUBLISHERS                    
BOOKS & OTHER MATERIALS       ,8080,LIBRARY MATERIALS             ,04/01/2013,3387714,1638124,458.05,BERTRAM LIBRARY SERVICES                ,418929,Education,EDUCATIONAL EQUIPMENT & SUPPLI
BOOKS & OTHER MATERIALS       ,8080,LIBRARY MATERIALS             ,04/01/2013,3387717,1639625,347.88,BERTRAM LIBRARY SERVICES                ,418929,Education,EDUCATIONAL EQUIPMENT & SUPPLI
SCHOOLS LIBRARY SERVICE       ,8080,LIBRARY MATERIALS             ,04/01/2013,3387718,1637925,548.01,BERTRAM LIBRARY SERVICES                ,418929,Education,EDUCATIONAL EQUIPMENT & SUPPLI
SCHOOLS LIBRARY SERVICE       ,8080,LIBRARY MATERIALS             ,04/01/2013,3387719,1637353,747.78,BERTRAM LIBRARY SERVICES                ,418929,Education,EDUCATIONAL EQUIPMENT & SUPPLI
SCHOOLS LIBRARY SERVICE       ,8080,LIBRARY MATERIALS             ,04/01/2013,3387720,1636930,294.74,BERTRAM LIBRARY SERVICES                ,418929,Education,EDUCATIONAL EQUIPMENT & SUPPLI
SCHOOLS LIBRARY SERVICE       ,8080,LIBRARY MATERIALS             ,04/01/2013,3387721,1642449,469.92,BERTRAM LIBRARY SERVICES                ,418929,Education,EDUCATIONAL EQUIPMENT & SUPPLI
BOOKS & OTHER MATERIALS       ,8080,MEDIA                         ,04/01/2013,3387722,1643143,"2,813.11",BERTRAM LIBRARY SERVICES                ,418929,Education,EDUCATIONAL EQUIPMENT & SUPPLI
BOOKS & OTHER MATERIALS       ,8080,LIBRARY MATERIALS             ,04/01/2013,3387724,1642343,341.29,BERTRAM LIBRARY SERVICES                ,418929,Education,EDUCATIONAL EQUIPMENT & SUPPLI
DOUGLAS ROAD                  ,8440,FEE EXPENSES                  ,04/01/2013,3387727,79965,604.96,HARPERS ENVIRONMENTAL LTD               ,537022,Consultancy,ENVIRONMENTAL CONSULTANTS     
HARD FM                       ,6020,ELECTRICAL INSPECTION/REPAIRS ,04/01/2013,3387745,246298,"4,056.50",PHS COMPLIANCE                          ,493368,Environmental Services,GAS & ELECTRICAL TESTING & INS
PARKS OPERATIONS NORTH        ,8350,MISCELLANEOUS EXPENSES        ,04/01/2013,3387764,41272,562.5,SPA LANDSCAPING LIMITED                 ,489936,Environmental Services,TREE WORK & FORESTRY SERVICES 
TRANSPORT FLEET MANAGEMENT    ,7060,EXTERNAL VEHICLE HIRE         ,04/01/2013,3387912,762902,"1,324.58",DAWSON RENTALS SWEEPERS                 ,446765,Vehicles Not Buses,PLANT & MACHINERY HIRE & LEASI
BUILDING STANDARDS            ,5750,TRAINING EXPENDITURE          ,04/01/2013,3387949,93749079/1000            ,784,BSI                                     ,395268,Consultancy,QUALITY PROCEDURES PROCESSES &
ASSET MANAGEMENT              ,8020,EQUIPMENT LEASE/ RENTAL/ HIRE ,04/01/2013,3387950,980510,406.5,CHIEF EXECUTIVE DIRECTORATE (HOMES)     ,402954,Unclassified Non Trade,LOCAL GOVERNMENT              
EAST AREA                     ,8350,MISCELLANEOUS EXPENSES        ,04/01/2013,3387950,980510,306,CHIEF EXECUTIVE DIRECTORATE (HOMES)     ,402954,Unclassified Non Trade,LOCAL GOVERNMENT              
HIST                          ,8590,LANDLINE TELEPHONES           ,04/01/2013,3387952,980206,"4,334.26",CHIEF EXECUTIVE DIRECTORATE (HOMES)     ,402954,Unclassified Non Trade,LOCAL GOVERNMENT              
BOOKS & OTHER MATERIALS       ,8080,LIBRARY MATERIALS             ,04/01/2013,3387961,1637001,538.09,BERTRAM LIBRARY SERVICES                ,418929,Education,EDUCATIONAL EQUIPMENT & SUPPLI
BOOKS & OTHER MATERIALS       ,8080,LIBRARY MATERIALS             ,04/01/2013,3387962,1640987,450.02,BERTRAM LIBRARY SERVICES                ,418929,Education,EDUCATIONAL EQUIPMENT & SUPPLI
BOOKS & OTHER MATERIALS       ,8080,LIBRARY MATERIALS             ,04/01/2013,3387963,1637522,432.7,BERTRAM LIBRARY SERVICES                ,418929,Education,EDUCATIONAL EQUIPMENT & SUPPLI
BOOKS & OTHER MATERIALS       ,8080,LIBRARY MATERIALS             ,04/01/2013,3387964,1637711,316.5,BERTRAM LIBRARY SERVICES                ,418929,Education,EDUCATIONAL EQUIPMENT & SUPPLI
BOOKS & OTHER MATERIALS       ,8080,LIBRARY MATERIALS             ,04/01/2013,3387966,1635684,427.2,BERTRAM LIBRARY SERVICES                ,418929,Education,EDUCATIONAL EQUIPMENT & SUPPLI
BOOKS & OTHER MATERIALS       ,8080,LIBRARY MATERIALS             ,04/01/2013,3387968,20051,314.64,OAKHILL PUBLISHING LTD.                 ,442102,Education,MULTIMEDIA & ELECTRONIC BOOK P
REDVERS HOUSE                 ,6020,REPAIRS AND MTCE - PROGRAMMED ,04/01/2013,3387984,4833,817.25,CENTO ENGINEERING COMPANY LTD           ,420699,Consultancy,DESIGN ENGINEERS              
NORTH AREA                    ,8110,"CLOTHING, UNIFORM AND LAUNDRY ",04/01/2013,3387985,918229113,287.42,ARCO LTD                                ,203022,Clothing,SAFETY EQUIPMENT & CLOTHING   
PURCHASING & PAYMENTS TEAM    ,7060,EXTERNAL VEHICLE HIRE         ,04/01/2013,3387988,980759,"7,971.78",TRANSPORT & COMMERCIAL SERVICES (HOMES) ,387596,Unclassified Non Trade,LOCAL GOVERNMENT              
INDEPENDENT PLACEMENTS        ,9050,OTHER LOCAL AUTHORITIES       ,04/01/2013,3387990,91204719,"13,090.84",NOTTINGHAMSHIRE COUNTY COUNCIL          ,319093,Unclassified Non Trade,LOCAL GOVERNMENT              
INDEPENDENT PLACEMENTS        ,9050,OTHER LOCAL AUTHORITIES       ,04/01/2013,3387991,91204720,"20,188.28",NOTTINGHAMSHIRE COUNTY COUNCIL          ,319093,Unclassified Non Trade,LOCAL GOVERNMENT              
INDEPENDENT PLACEMENTS        ,9050,OTHER LOCAL AUTHORITIES       ,04/01/2013,3387992,91204721,"15,071.51",NOTTINGHAMSHIRE COUNTY COUNCIL          ,319093,Unclassified Non Trade,LOCAL GOVERNMENT              
OTHER LOCAL AUTHORITY PLACEMEN,9050,OTHER LOCAL AUTHORITIES       ,04/01/2013,3387993,8000120950,"2,852.85",ROCHDALE MBC                            ,461590,Unclassified Non Trade,LOCAL GOVERNMENT              
SH GENERAL                    ,8380,PHOTOCOPYING                  ,04/01/2013,3388012,980825,"10,319.19",CHIEF EXECUTIVE DIRECTORATE (HOMES)     ,402954,Unclassified Non Trade,LOCAL GOVERNMENT              
100 APPRENTICES               ,9120,OTHER AGENCIES                ,04/01/2013,3388013,11292,676.98,K & M LTD                               ,435002,Education,EDUCATIONAL EQUIPMENT & SUPPLI
VACANTS PAYMENTS TO TENANTS   ,6060,IMPROVEMENTS                  ,04/01/2013,3388160,13285,"1,400.00",PYRAMID CARPETS                         ,243612,Building Construction Materials,CARPETS & RUGS - RETAIL       
SCC BALANCE SHEET             ,1540,PUBLIC SAFETY CONTROL ACCOUNT ,04/01/2013,3388161,948119,457,BRITISH TELECOMMUNICATIONS PLC          ,515110,ICT,TELECOMMUNICATION SERVICES    
NORBURY                       ,6110,CLEANING/DOMESTIC MAT./SUPPLY ,04/01/2013,3388267,11081,294.84,PJ SYSTEMS (HYGIENE) LTD                ,386749,Cleaning and Janitorial,CLEANING CONTRACTORS EQUIPMENT
OUT OF HOURS NOISE SERVICE    ,8440,FEE EXPENSES                  ,04/01/2013,3388295,41968,"5,200.00",SOUTH YORKSHIRE POLICE                  ,301616,Unclassified Non Trade,POLICE                        
BURNGREAVE NEW DEAL           ,6160,GAS                           ,04/01/2013,3388180,A3913640/S2004185        ,687.34,BRITISH GAS BUSINESS                    ,370790,Utilities,GAS COMPANIES                 
BURNGREAVE NEW DEAL           ,6160,GAS                           ,04/01/2013,3388181,A3913670/S2004189        ,"1,394.32",BRITISH GAS BUSINESS                    ,370790,Utilities,GAS COMPANIES                 
TOWN HALL                     ,6150,ELECTRICITY                   ,04/01/2013,3388182,27140748,"16,465.08",NPOWER NORTHERN LTD                     ,207191,Utilities,ELECTRICITY COMPANIES         
BURNGREAVE NEW DEAL           ,6150,ELECTRICITY                   ,04/01/2013,3388184,27141267,"1,983.81",NPOWER NORTHERN LTD                     ,207191,Utilities,ELECTRICITY COMPANIES         
PARKS OPERATIONS SOUTH        ,6150,ELECTRICITY                   ,04/01/2013,3388187,79643401070,389.05,NPOWER                                  ,347938,Utilities,ELECTRICITY COMPANIES         
CORPORATE MAIL                ,8570,POSTAGE & DELIVERY            ,04/01/2013,3388189,9041552748,"8,931.31",ROYAL MAIL GROUP LTD                    ,295326,Mail Services,DELIVERY SERVICES             
NEW BANK HOUSE                ,6150,ELECTRICITY                   ,04/01/2013,3388192,251483329/0016           ,747.03,SOUTHERN ELECTRIC                       ,318926,Utilities,ELECTRICITY COMPANIES         
INTELLIGENT TRANSPORT SYSTEMS ,6390,NETWORK COMMUNICATIONS        ,04/01/2013,3388193,14124109,255.24,ZEN INTERNET                            ,420246,ICT,INTERNET SERVICE PROVIDERS    
CORPORATE MAIL                ,8570,POSTAGE & DELIVERY            ,04/01/2013,3388194,9041427575,"2,000.18",ROYAL MAIL GROUP LTD                    ,295326,Mail Services,DELIVERY SERVICES             
PURCHASING LEARNING DISABILITI,9180,OTHER CLIENT EXPENDITURE      ,04/01/2013,3388015,J558988 060113           ,419.26,REDACTED PERSONAL DATA,332448,Social Community Care,HOME CARE SERVICES            
PURCHASING LEARNING DISABILITI,9180,OTHER CLIENT EXPENDITURE      ,04/01/2013,3388020,J558993 060113           ,649.68,REDACTED PERSONAL DATA,328070,Social Community Care,HOME CARE SERVICES            
PURCHASING LEARNING DISABILITI,9180,OTHER CLIENT EXPENDITURE      ,04/01/2013,3388022,J558995 060113           ,419.26,REDACTED PERSONAL DATA,408112,Social Community Care,HOME CARE SERVICES            
PURCHASING LEARNING DISABILITI,9180,OTHER CLIENT EXPENDITURE      ,04/01/2013,3388027,J559000 060113           ,433.12,REDACTED PERSONAL DATA,369406,Social Community Care,HOME CARE SERVICES            
VS- LUNCH CLUB GRANT          ,8180,GRANTS                        ,04/01/2013,3388196,MPA20120104150 1         ,768.5,BANNER CROSS LUNCHEON & FRIENDSHIP CLUB ,326250,Unclassified Non Trade,PLACES OF WORSHIP             
VS- LUNCH CLUB GRANT          ,8180,GRANTS                        ,04/01/2013,3388197,MPA20120104150 10        ,"1,054.75",DARNALL LUNCH CLUB                      ,295216,Unclassified Non Trade,CHARITIES & VOLUNTARY ORGANISA
VS- LUNCH CLUB GRANT          ,8180,GRANTS                        ,04/01/2013,3388199,MPA20120104150 12        ,597.25,GLEADLESS VALLEY LUNCHEON CLUB          ,295224,Unclassified Non Trade,CHARITIES & VOLUNTARY ORGANISA
VS- LUNCH CLUB GRANT          ,8180,GRANTS                        ,04/01/2013,3388200,MPA20120104150 13        ,839.25,THE LIMES LUNCHEON CLUB                 ,295165,Unclassified Non Trade,CHARITIES & VOLUNTARY ORGANISA
VS- LUNCH CLUB GRANT          ,8180,GRANTS                        ,04/01/2013,3388201,MPA20120104150 14        ,652.75,DUKE STREET COMMUNITY CENTRE            ,375030,Unclassified Non Trade,COMMUNITY CENTRES             
VS- LUNCH CLUB GRANT          ,8180,GRANTS                        ,04/01/2013,3388202,MPA20120104150 15        ,"1,559.75",ST OSWALDS LUNCHEON CLUB                ,385325,Unclassified Non Trade,CHARITIES & VOLUNTARY ORGANISA
VS- LUNCH CLUB GRANT          ,8180,GRANTS                        ,04/01/2013,3388203,MPA20120104150 16        ,292.5,DORE & TOTLEY DAY CENTRE LUNCHEON CLUB  ,295218,Unclassified Non Trade,CHARITIES & VOLUNTARY ORGANISA
VS- LUNCH CLUB GRANT          ,8180,GRANTS                        ,04/01/2013,3388204,MPA20120104150 17        ,733,BIRLEY SPA MONDAY CLUB                  ,295206,Unclassified Non Trade,CHARITIES & VOLUNTARY ORGANISA
VS- LUNCH CLUB GRANT          ,8180,GRANTS                        ,04/01/2013,3388205,MPA20120104150 18        ,868.75,BIRLEY SPA WEDNESDAY CLUB               ,295210,Unclassified Non Trade,CHARITIES & VOLUNTARY ORGANISA
VS- LUNCH CLUB GRANT          ,8180,GRANTS                        ,04/01/2013,3388207,MPA20120104150 2         ,637,CHRIST CHURCH PITSMOOR LUNCH CLUB       ,321910,Unclassified Non Trade,CHARITIES & VOLUNTARY ORGANISA
VS- LUNCH CLUB GRANT          ,8180,GRANTS                        ,04/01/2013,3388208,MPA20120104150 20        ,684,ST SWITHUNS LUNCH CLUB                  ,295166,Unclassified Non Trade,CHARITIES & VOLUNTARY ORGANISA
VS- LUNCH CLUB GRANT          ,8180,GRANTS                        ,04/01/2013,3388209,MPA20120104150 21        ,390.25,MICHAEL CHURCH LOWEDGES THURS LUNCH CLUB,295189,Unclassified Non Trade,CHARITIES & VOLUNTARY ORGANISA
VS- LUNCH CLUB GRANT          ,8180,GRANTS                        ,04/01/2013,3388210,MPA20120104150 22        ,684.5,ST JOHN'S ABBEYDALE LUNCH CLUB          ,385324,Unclassified Non Trade,CHARITIES & VOLUNTARY ORGANISA
VS- LUNCH CLUB GRANT          ,8180,GRANTS                        ,04/01/2013,3388211,MPA20120104150 23        ,509.5,GRAPEVINE CENTRE LUNCHEON CLUB          ,295190,Unclassified Non Trade,CHARITIES & VOLUNTARY ORGANISA
VS- LUNCH CLUB GRANT          ,8180,GRANTS                        ,04/01/2013,3388212,MPA20120104150 24        ,680.25,PITSMOOR LUNCH CLUB                     ,295194,Unclassified Non Trade,CHARITIES & VOLUNTARY ORGANISA
VS- LUNCH CLUB GRANT          ,8180,GRANTS                        ,04/01/2013,3388213,MPA20120104150 25        ,"1,064.75",THE SALVATION ARMY SHEFFIELD CASTLE     ,327783,Unclassified Non Trade,"HOUSING ASSOCIATIONS, SOCIETIE"
VS- LUNCH CLUB GRANT          ,8180,GRANTS                        ,04/01/2013,3388214,MPA20120104150 26        ,252,DORE METHODIST LUNCH CLUB               ,295219,Unclassified Non Trade,CHARITIES & VOLUNTARY ORGANISA
VS- LUNCH CLUB GRANT          ,8180,GRANTS                        ,04/01/2013,3388215,MPA20120104150 27        ,528.5,WADSLEY CHURCH LUNCH CLUB               ,295167,Unclassified Non Trade,CHARITIES & VOLUNTARY ORGANISA
VS- LUNCH CLUB GRANT          ,8180,GRANTS                        ,04/01/2013,3388216,MPA20120104150 28        ,611.75,LOUND TOP LUNCH CLUB                    ,295188,Unclassified Non Trade,CHARITIES & VOLUNTARY ORGANISA
VS- LUNCH CLUB GRANT          ,8180,GRANTS                        ,04/01/2013,3388218,MPA20120104150 3         ,"1,016.50",CROSSPOOL LUNCH CLUB                    ,321911,Unclassified Non Trade,CHARITIES & VOLUNTARY ORGANISA
VS- LUNCH CLUB GRANT          ,8180,GRANTS                        ,04/01/2013,3388219,MPA20120104150 30        ,897.5,SHIREGREEN UNITED REFORMED CHURCH       ,295203,Unclassified Non Trade,PLACES OF WORSHIP             
VS- LUNCH CLUB GRANT          ,8180,GRANTS                        ,04/01/2013,3388220,MPA20120104150 31        ,517.75,ST TIMOTHY'S LUNCH CLUB                 ,295163,Unclassified Non Trade,CHARITIES & VOLUNTARY ORGANISA
VS- LUNCH CLUB GRANT          ,8180,GRANTS                        ,04/01/2013,3388221,MPA20120104150 32        ,783,MEERSBROOK PARK LUNCH CLUB              ,363027,Unclassified Non Trade,CHARITIES & VOLUNTARY ORGANISA
VS- LUNCH CLUB GRANT          ,8180,GRANTS                        ,04/01/2013,3388222,MPA20120104150 33        ,878.25,ST BARTHOLOMEWS LUNCH CLUB              ,384447,Unclassified Non Trade,CHARITIES & VOLUNTARY ORGANISA
VS- LUNCH CLUB GRANT          ,8180,GRANTS                        ,04/01/2013,3388224,MPA20120104150 35        ,"1,142.25",ST MARY'S LUNCH CLUB                    ,322012,Unclassified Non Trade,CHARITIES & VOLUNTARY ORGANISA
VS- LUNCH CLUB GRANT          ,8180,GRANTS                        ,04/01/2013,3388225,MPA20120104150 36        ,"1,262.00",TINSLEY COMMUNITY CENTRE LUNCH CLUB     ,297105,Unclassified Non Trade,CHARITIES & VOLUNTARY ORGANISA
VS- LUNCH CLUB GRANT          ,8180,GRANTS                        ,04/01/2013,3388227,MPA20120104150 38        ,"1,330.25",ST MARY'S HANDSWORTH LUNCH CLUB         ,300780,Unclassified Non Trade,CHARITIES & VOLUNTARY ORGANISA
VS- LUNCH CLUB GRANT          ,8180,GRANTS                        ,04/01/2013,3388228,MPA20120104150 39        ,746.75,WILLIAM TEMPLE LUNCH CLUB               ,299806,Unclassified Non Trade,CHARITIES & VOLUNTARY ORGANISA
VS- LUNCH CLUB GRANT          ,8180,GRANTS                        ,04/01/2013,3388231,MPA20120104150 41        ,687.25,FOXHILL & BIRLEY CARR LIVE AT HOME SCHEM,349900,Unclassified Non Trade,CHARITIES & VOLUNTARY ORGANISA
VS- LUNCH CLUB GRANT          ,8180,GRANTS                        ,04/01/2013,3388232,MPA20120104150 42        ,694.5,LOWER SHIREGREEN LUNCH CLUB             ,299896,Unclassified Non Trade,CHARITIES & VOLUNTARY ORGANISA
VS- LUNCH CLUB GRANT          ,8180,GRANTS                        ,04/01/2013,3388233,MPA20120104150 43        ,333.25,ST MARKS LUNCH & FRIENDSHIP CLUB        ,301346,Unclassified Non Trade,PLACES OF WORSHIP             
VS- LUNCH CLUB GRANT          ,8180,GRANTS                        ,04/01/2013,3388234,MPA20120104150 44        ,407.5,CENTRAL POINT LUNCHEON CLUB             ,302568,Unclassified Non Trade,CHARITIES & VOLUNTARY ORGANISA
VS- LUNCH CLUB GRANT          ,8180,GRANTS                        ,04/01/2013,3388235,MPA20120104150 45        ,"1,068.25",DIOCESE OF HALLAM                       ,351301,Unclassified Non Trade,RELIGIOUS ORGANISATIONS       
VS- LUNCH CLUB GRANT          ,8180,GRANTS                        ,04/01/2013,3388238,MPA20120104150 48        ,384.25,LOWEDGES LUNCH CLUB                     ,353522,Unclassified Non Trade,CHARITIES & VOLUNTARY ORGANISA
VS- LUNCH CLUB GRANT          ,8180,GRANTS                        ,04/01/2013,3388239,MPA20120104150 49        ,"1,308.25",FRECHEVILLE PARISH DAY CENTRE           ,348612,Unclassified Non Trade,LOCAL GOVERNMENT              
VS- LUNCH CLUB GRANT          ,8180,GRANTS                        ,04/01/2013,3388240,MPA20120104150 5         ,381.5,HALLAM METHODIST LUNCH CLUB             ,321917,Unclassified Non Trade,CHARITIES & VOLUNTARY ORGANISA
VS- LUNCH CLUB GRANT          ,8180,GRANTS                        ,04/01/2013,3388241,MPA20120104150 50        ,384.75,PAKISTAN ADVICE CENTRE FIRVALE LUNCH CLU,374823,Unclassified Non Trade,CHARITIES & VOLUNTARY ORGANISA
VS- LUNCH CLUB GRANT          ,8180,GRANTS                        ,04/01/2013,3388242,MPA20120104150 51        ,337.75,ST ELIZABETH COMMUNITY GROUP LUNCH CLUB ,441467,Unclassified Non Trade,CHARITIES & VOLUNTARY ORGANISA
VS- LUNCH CLUB GRANT          ,8180,GRANTS                        ,04/01/2013,3388245,MPA20120104150 54        ,608.25,WESLEY HALL LUNCH CLUB                  ,511866,Unclassified Non Trade,CHARITIES & VOLUNTARY ORGANISA
VS- LUNCH CLUB GRANT          ,8180,GRANTS                        ,04/01/2013,3388246,MPA20120104150 55        ,880.75,MOSBOROUGH LUNCH & SOCIAL CLUB          ,510333,Leisure Services,"CLUBS & ASSOCIATIONS - SOCIAL,"
VS- LUNCH CLUB GRANT          ,8180,GRANTS                        ,04/01/2013,3388247,MPA20120104150 56        ,769.5,THE THURSDAY CLUB                       ,451641,Unclassified Non Trade,CHARITIES & VOLUNTARY ORGANISA
VS- LUNCH CLUB GRANT          ,8180,GRANTS                        ,04/01/2013,3388249,MPA20120104150 58        ,616.5,ELDERS HEALTH & WELLBEING GROUP         ,545137,Unclassified Non Trade,COMMUNITY PROJECTS            
VS- LUNCH CLUB GRANT          ,8180,GRANTS                        ,04/01/2013,3388250,MPA20120104150 59        ,555.5,MANOR LODGE LUNCHEON CLUB               ,545135,Unclassified Non Trade,CHARITIES & VOLUNTARY ORGANISA
VS- LUNCH CLUB GRANT          ,8180,GRANTS                        ,04/01/2013,3388252,MPA20120104150 60        ,360,MADINA ASIAN ELDERLY WOMEN'S LUNCH CLUB ,549528,Unclassified Non Trade,CHARITIES & VOLUNTARY ORGANISA
VS- LUNCH CLUB GRANT          ,8180,GRANTS                        ,04/01/2013,3388253,MPA20120104150 61        ,682.75,MADINA ELDERLY DAY CARE CENTRE (MEN'S LU,549532,Unclassified Non Trade,CHARITIES & VOLUNTARY ORGANISA
VS- LUNCH CLUB GRANT          ,8180,GRANTS                        ,04/01/2013,3388255,MPA20120104150 7         ,450.75,ST SAVIOURS LUNCH CLUB                  ,384448,Unclassified Non Trade,CHARITIES & VOLUNTARY ORGANISA
VS- LUNCH CLUB GRANT          ,8180,GRANTS                        ,04/01/2013,3388256,MPA20120104150 8         ,"1,312.75",WOODSEATS METHODIST LUNCH CLUB          ,325667,Unclassified Non Trade,CHARITIES & VOLUNTARY ORGANISA
ADULT SOCIAL CARE PURCHASING  ,9210,CONTINUING NURSING CARE       ,04/01/2013,3388038,J553710 060113           ,"7,987.57",ECKINGTON COURT                         ,361852,Social Community Care,NURSING HOMES                 
ADULT SOCIAL CARE PURCHASING  ,9200,CONTINUING RESIDENTIAL CARE   ,04/01/2013,3388039,J559336 060113           ,"18,898.14",THE LODGE CARE CENTRE                   ,362092,Social Community Care,NURSING HOMES                 
PURCHASING                    ,9210,CONTINUING NURSING CARE       ,04/01/2013,3388040,J559342 060113           ,"5,267.90",WILLOWBECK CARE CENTRE                  ,362132,Social Community Care,NURSING HOMES                 
PURCHASING                    ,9200,CONTINUING RESIDENTIAL CARE   ,04/01/2013,3388041,J559347 060113           ,"3,600.00",WESTFIELD MEWS -                        ,563592,Social Community Care,RESIDENTIAL CARE HOMES        
ADULT SOCIAL CARE PURCHASING  ,9200,CONTINUING RESIDENTIAL CARE   ,04/01/2013,3388042,J559348 060113           ,"2,964.00",HERRIES LODGE CARE HOME                 ,566537,Social Community Care,RESIDENTIAL CARE HOMES        
ADULT SOCIAL CARE PURCHASING  ,9200,CONTINUING RESIDENTIAL CARE   ,04/01/2013,3388043,J559663 060113           ,"7,110.00",HADDON COURT NURSING HOME               ,361916,Social Community Care,NURSING HOMES                 
ADULT SOCIAL CARE PURCHASING  ,9210,CONTINUING NURSING CARE       ,04/01/2013,3388044,J559664 060113           ,"20,582.14",HAZELDENE NURSING HOME                  ,340163,Social Community Care,NURSING HOMES                 
ADULT SOCIAL CARE PURCHASING  ,9210,CONTINUING NURSING CARE       ,04/01/2013,3388045,J559665 060113           ,"12,232.71",HENLEIGH HALL                           ,362109,Social Community Care,NURSING HOMES                 
ADULT SOCIAL CARE PURCHASING  ,9200,SHORT TERM RESIDENTIAL CARE   ,04/01/2013,3388046,J558905 091212           ,331.71,PADDOCK HILL                            ,361797,Social Community Care,RESIDENTIAL CARE HOMES        
ADULT SOCIAL CARE PURCHASING  ,9200,SHORT TERM RESIDENTIAL CARE   ,04/01/2013,3388048,J558906 091212           ,353,SWALLOWNEST CARE HOME                   ,361827,Social Community Care,NURSING HOMES                 
ADULT SOCIAL CARE PURCHASING  ,9200,SHORT TERM RESIDENTIAL CARE   ,04/01/2013,3388050,J559644 091212           ,"1,811.00",GRANGE CRESCENT                         ,361898,Social Community Care,RESIDENTIAL CARE HOMES        
ADULT SOCIAL CARE PURCHASING  ,9200,SHORT TERM RESIDENTIAL CARE   ,04/01/2013,3388051,J559646 091212           ,"3,192.00",LOWER BOWSHAW VIEW NH                   ,362101,Social Community Care,NURSING HOMES                 
ADULT SOCIAL CARE PURCHASING  ,9200,SHORT TERM RESIDENTIAL CARE   ,04/01/2013,3388052,J559647 091212           ,"2,824.00",HARTWELL HOUSE                          ,361785,Social Community Care,NURSING HOMES                 
ADULT SOCIAL CARE PURCHASING  ,9200,SHORT TERM RESIDENTIAL CARE   ,04/01/2013,3388053,J559648 091212           ,"4,863.00",THE LIME TREES                          ,362053,Social Community Care,RESIDENTIAL CARE HOMES        
L.D HOUSING RELATED SUPPORT   ,9060,SUPPORTING PEOPLE PAYMENTS    ,04/01/2013,3388057,J559688 030213           ,"5,011.20",SANCTUARY GROUP                         ,351140,Unclassified Non Trade,"HOUSING ASSOCIATIONS, SOCIETIE"
HOUSING RELATED SUPPORT       ,9060,SUPPORTING PEOPLE PAYMENTS    ,04/01/2013,3388057,J559688 030213           ,"5,452.56",SANCTUARY GROUP                         ,351140,Unclassified Non Trade,"HOUSING ASSOCIATIONS, SOCIETIE"
L.D HOUSING RELATED SUPPORT   ,9060,SUPPORTING PEOPLE PAYMENTS    ,04/01/2013,3388058,J559689 030213           ,"16,166.30",SOUTH YORKSHIRE HOUSING ASSC (SP)       ,351538,Unclassified Non Trade,"HOUSING ASSOCIATIONS, SOCIETIE"
HOUSING RELATED SUPPORT       ,9060,SUPPORTING PEOPLE PAYMENTS    ,04/01/2013,3388058,J559689 030213           ,"185,323.12",SOUTH YORKSHIRE HOUSING ASSC (SP)       ,351538,Unclassified Non Trade,"HOUSING ASSOCIATIONS, SOCIETIE"
HOUSING RELATED SUPPORT       ,9060,SUPPORTING PEOPLE PAYMENTS    ,04/01/2013,3388059,J559690 030213           ,"34,215.04",PLACES FOR PEOPLE INDIVIDUAL SUPPORT(SP),351159,Unclassified Non Trade,CHARITIES & VOLUNTARY ORGANISA
HOUSING RELATED SUPPORT       ,9060,SUPPORTING PEOPLE PAYMENTS    ,04/01/2013,3388060,J559691 030213           ,"2,541.00",SHEFFIELD ALCOHOL SUPPORT SERVICE       ,351470,Medical ,ALCOHOL MISUSE - ADVICE & COUN
HOUSING RELATED SUPPORT       ,9060,SUPPORTING PEOPLE PAYMENTS    ,04/01/2013,3388061,J559692 030213           ,"50,502.20",TARGET HOUSING LTD                      ,351507,Unclassified Non Trade,CHARITIES & VOLUNTARY ORGANISA
L.D HOUSING RELATED SUPPORT   ,9060,SUPPORTING PEOPLE PAYMENTS    ,04/01/2013,3388062,J559693 030213           ,"46,445.40",UNITED RESPONSE (SP)                    ,351533,Unclassified Non Trade,CHARITIES & VOLUNTARY ORGANISA
HOUSING RELATED SUPPORT       ,9060,SUPPORTING PEOPLE PAYMENTS    ,04/01/2013,3388063,J559694 030213           ,"1,361.52",YORKSHIRE COMMUNITY HOUSING LTD (SP)    ,351536,Unclassified Non Trade,CHARITIES & VOLUNTARY ORGANISA
HOUSING RELATED SUPPORT       ,9060,SUPPORTING PEOPLE PAYMENTS    ,04/01/2013,3388064,J559695 030213           ,"18,674.32",YOUNG WOMENS HOUSING PROJECT (SP)       ,352509,Unclassified Non Trade,CHARITIES & VOLUNTARY ORGANISA
HOUSING RELATED SUPPORT       ,9060,SUPPORTING PEOPLE PAYMENTS    ,04/01/2013,3388065,J559696 030213           ,"26,602.44",GUINNESS PARTNERSHIP LTD (SP)           ,352940,Unclassified Non Trade,"HOUSING ASSOCIATIONS, SOCIETIE"
HOUSING RELATED SUPPORT       ,9060,SUPPORTING PEOPLE PAYMENTS    ,04/01/2013,3388066,J559697 030213           ,"21,229.88",COMMUNITY ACTION HALFWAY HOME LTD (SP)  ,351147,Unclassified Non Trade,CHARITIES & VOLUNTARY ORGANISA
HOUSING RELATED SUPPORT       ,9060,SUPPORTING PEOPLE PAYMENTS    ,04/01/2013,3388067,J559698 030213           ,"85,854.16",SHELTER (SP)                            ,352505,Unclassified Non Trade,CHARITIES & VOLUNTARY ORGANISA
HOUSING RELATED SUPPORT       ,9060,SUPPORTING PEOPLE PAYMENTS    ,04/01/2013,3388068,J559699 030213           ,"17,327.80",NOMAD OPENING DOORS                     ,351162,Unclassified Non Trade,CHARITIES & VOLUNTARY ORGANISA
HOUSING RELATED SUPPORT       ,9060,SUPPORTING PEOPLE PAYMENTS    ,04/01/2013,3388069,J559700 030213           ,302.08,ABBEYFIELD CHRIST CHURCH SOC LTD (SP)   ,351508,Unclassified Non Trade,CHARITIES & VOLUNTARY ORGANISA
HOUSING RELATED SUPPORT       ,9060,SUPPORTING PEOPLE PAYMENTS    ,04/01/2013,3388070,J559701 030213           ,681.33,EQUITY HOUSING GROUP LIMITED (SP)       ,351520,Unclassified Non Trade,CHARITIES & VOLUNTARY ORGANISA
HOUSING RELATED SUPPORT       ,9060,SUPPORTING PEOPLE PAYMENTS    ,04/01/2013,3388071,J559702 030213           ,"17,799.60",SAFAR THE GREENS (SP)                   ,351182,Unclassified Non Trade,CHARITIES & VOLUNTARY ORGANISA
HOUSING RELATED SUPPORT       ,9060,SUPPORTING PEOPLE PAYMENTS    ,04/01/2013,3388072,J559703 030213           ,"25,386.20",SHEFFIELD YWCA (SP)                     ,351494,Unclassified Non Trade,CHARITIES & VOLUNTARY ORGANISA
HOUSING RELATED SUPPORT       ,9060,SUPPORTING PEOPLE PAYMENTS    ,04/01/2013,3388073,J559704 030213           ,"3,106.88",MAAN SOMALI MENTAL HEALTH SHEFFIELD     ,351498,Medical ,COUNSELLING & ADVICE SERVICES 
HOUSING RELATED SUPPORT       ,9060,SUPPORTING PEOPLE PAYMENTS    ,04/01/2013,3388074,J559705 030213           ,"14,982.80",YMH FOUNDATION LTD SHEFFIELD H/A (SP)   ,362542,Unclassified Non Trade,CHARITIES & VOLUNTARY ORGANISA
HOUSING RELATED SUPPORT       ,9060,SUPPORTING PEOPLE PAYMENTS    ,04/01/2013,3388075,J559706 030213           ,"48,825.28",ACTION HOUSING ASSOCIATION LIMITED (SP) ,351129,Unclassified Non Trade,CHARITIES & VOLUNTARY ORGANISA
HOUSING RELATED SUPPORT       ,9060,SUPPORTING PEOPLE PAYMENTS    ,04/01/2013,3388076,J559707 030213           ,"4,141.76",SACMHA LIMITED (SP)                     ,351469,Unclassified Non Trade,CHARITIES & VOLUNTARY ORGANISA
L.D HOUSING RELATED SUPPORT   ,9060,SUPPORTING PEOPLE PAYMENTS    ,04/01/2013,3388078,J559709 030213           ,"13,652.64",CITIZENSHIP FIRST LTD (SP)              ,351120,Social Community Care,DISABILITY & SPECIAL NEEDS - S
L.D HOUSING RELATED SUPPORT   ,9060,SUPPORTING PEOPLE PAYMENTS    ,04/01/2013,3388079,J559710 030213           ,"11,114.32",MELROSE HOSTEL (SP)                     ,351517,Unclassified Non Trade,CHARITIES & VOLUNTARY ORGANISA
HOUSING RELATED SUPPORT       ,9060,SUPPORTING PEOPLE PAYMENTS    ,04/01/2013,3388080,J559711 030213           ,"1,375.48",ANCHOR TRUST (SP)                       ,351515,Unclassified Non Trade,CHARITIES & VOLUNTARY ORGANISA
HOUSING RELATED SUPPORT       ,9060,SUPPORTING PEOPLE PAYMENTS    ,04/01/2013,3388081,J559712 030213           ,384.16,HOUSING 21 (SP)                         ,351524,Unclassified Non Trade,"HOUSING ASSOCIATIONS, SOCIETIE"
HOUSING RELATED SUPPORT       ,9060,SUPPORTING PEOPLE PAYMENTS    ,04/01/2013,3388084,J559715 030213           ,"16,112.32",ASHIANA (SP)                            ,351133,Unclassified Non Trade,CHARITIES & VOLUNTARY ORGANISA
L.D HOUSING RELATED SUPPORT   ,9060,SUPPORTING PEOPLE PAYMENTS    ,04/01/2013,3388085,J559716 030213           ,"50,688.00",SHEFFIELD CARE TRUST (SP)               ,366826,Unclassified Non Trade,CHARITIES & VOLUNTARY ORGANISA
L.D HOUSING RELATED SUPPORT   ,9060,SUPPORTING PEOPLE PAYMENTS    ,04/01/2013,3388086,J559717 030213           ,"21,888.00",DIMENSIONS (UK) LTD.                    ,386516,Unclassified Non Trade,CHARITIES & VOLUNTARY ORGANISA
HOUSING RELATED SUPPORT       ,9060,SUPPORTING PEOPLE PAYMENTS    ,04/01/2013,3388087,J559718 030213           ,"31,199.84",AGE CONCERN (SHEFFIELD) LTD (SP)        ,351131,Unclassified Non Trade,CHARITIES & VOLUNTARY ORGANISA
HOUSING RELATED SUPPORT       ,9060,SUPPORTING PEOPLE PAYMENTS    ,04/01/2013,3388089,J559667 030213           ,"3,296.96",STOTHARD ROAD SCHEME LTD (SP)           ,416114,Unclassified Non Trade,CHARITIES & VOLUNTARY ORGANISA
L.D HOUSING RELATED SUPPORT   ,9060,SUPPORTING PEOPLE PAYMENTS    ,04/01/2013,3388090,J559668 030213           ,"9,683.52",HOME FARM TRUST LTD (SP)                ,351124,Unclassified Non Trade,CHARITIES & VOLUNTARY ORGANISA
HOUSING RELATED SUPPORT       ,9060,SUPPORTING PEOPLE PAYMENTS    ,04/01/2013,3388091,J559669 030213           ,"27,525.96",TURNING POINT SERVICES LTD              ,482885,Unclassified Non Trade,CHARITIES & VOLUNTARY ORGANISA
HOUSING RELATED SUPPORT       ,9060,SUPPORTING PEOPLE PAYMENTS    ,04/01/2013,3388092,J559670 030213           ,"11,899.00",THE EXTRACARE CHARITABLE TRUST (SP)     ,486025,Unclassified Non Trade,CHARITIES & VOLUNTARY ORGANISA
HOUSING RELATED SUPPORT       ,9060,SUPPORTING PEOPLE PAYMENTS    ,04/01/2013,3388093,J559671 030213           ,"6,691.68",REDACTED PERSONAL DATA,529524,Social Community Care,HOME CARE SERVICES            
L.D HOUSING RELATED SUPPORT   ,9060,SUPPORTING PEOPLE PAYMENTS    ,04/01/2013,3388094,J559672 030213           ,"25,488.00",MENCAP (SP)                             ,351518,Unclassified Non Trade,CHARITIES & VOLUNTARY ORGANISA
HOUSING RELATED SUPPORT       ,9060,SUPPORTING PEOPLE PAYMENTS    ,04/01/2013,3388095,J559673 030213           ,399.88,METHODIST HOMES FOR THE AGED (SP)       ,351519,Social Community Care,RESIDENTIAL CARE HOMES        
HOUSING RELATED SUPPORT       ,9060,SUPPORTING PEOPLE PAYMENTS    ,04/01/2013,3388096,J559674 030213           ,"9,785.60",RETHINK (SP)                            ,351530,Unclassified Non Trade,CHARITIES & VOLUNTARY ORGANISA
HOUSING RELATED SUPPORT       ,9060,SUPPORTING PEOPLE PAYMENTS    ,04/01/2013,3388097,J559675 030213           ,288,FIRTH'S HOMES (SP)                      ,351522,Unclassified Non Trade,CHARITIES & VOLUNTARY ORGANISA
HOUSING RELATED SUPPORT       ,9060,SUPPORTING PEOPLE PAYMENTS    ,04/01/2013,3388098,J559676 030213           ,"15,475.88",HAVEN HOUSE PROJECT (SP)                ,351155,Medical ,COUNSELLING & ADVICE SERVICES 
HOUSING RELATED SUPPORT       ,9060,SUPPORTING PEOPLE PAYMENTS    ,04/01/2013,3388099,J559677 030213           ,"21,102.76",PHOENIX HOUSE (SP)                      ,351126,Medical ,DRUG MISUSE - ADVICE & COUNSEL
HOUSING RELATED SUPPORT       ,9060,SUPPORTING PEOPLE PAYMENTS    ,04/01/2013,3388100,J559678 030213           ,"27,788.32",CHERRYTREE SUPPORT SERVICES LTD (SP)    ,351143,Facilities Management,HOSTELS                       
HOUSING RELATED SUPPORT       ,9060,SUPPORTING PEOPLE PAYMENTS    ,04/01/2013,3388101,J559679 030213           ,"18,489.80",PITSMOOR YOUTH HOUSING TRUST LTD. (SP)  ,351170,Unclassified Non Trade,CHARITIES & VOLUNTARY ORGANISA
HOUSING RELATED SUPPORT       ,9060,SUPPORTING PEOPLE PAYMENTS    ,04/01/2013,3388102,J559680 030213           ,"37,924.88",REFUGEE HOUSING ASSOCIATION (SP)        ,351173,Unclassified Non Trade,"HOUSING ASSOCIATIONS, SOCIETIE"
HOUSING RELATED SUPPORT       ,9060,SUPPORTING PEOPLE PAYMENTS    ,04/01/2013,3388103,J559681 030213           ,"64,722.56",ROUNDABOUT LTD (SP)                     ,351180,Facilities Management,HOSTELS                       
HOUSING RELATED SUPPORT       ,9060,SUPPORTING PEOPLE PAYMENTS    ,04/01/2013,3388104,J559682 030213           ,"25,051.32",THE SALVATION ARMY (SP)                 ,384879,Unclassified Non Trade,"HOUSING ASSOCIATIONS, SOCIETIE"
HOUSING RELATED SUPPORT       ,9060,SUPPORTING PEOPLE PAYMENTS    ,04/01/2013,3388106,J559684 030213           ,"16,731.12",SHEFFIELD WOMENS AID                    ,351478,Unclassified Non Trade,CHARITIES & VOLUNTARY ORGANISA
HOUSING RELATED SUPPORT       ,9060,SUPPORTING PEOPLE PAYMENTS    ,04/01/2013,3388107,J559685 030213           ,"42,160.72",ST ANNE'S COMMUNITY SERVICES            ,351501,Unclassified Non Trade,"HOUSING ASSOCIATIONS, SOCIETIE"
HOUSING RELATED SUPPORT       ,9060,SUPPORTING PEOPLE PAYMENTS    ,04/01/2013,3388108,J559686 030213           ,"22,917.72",STONHAM HOUSING ASSOCIATION (SP)        ,351504,Unclassified Non Trade,"HOUSING ASSOCIATIONS, SOCIETIE"
HOUSING RELATED SUPPORT       ,9060,SUPPORTING PEOPLE PAYMENTS    ,04/01/2013,3388109,J559687 030213           ,"17,010.32",SUPPORT CARE HOUSING LTD                ,351532,Social Community Care,RESIDENTIAL CARE HOMES        
CARELEAVER SUPPORT            ,9440,CARELEAVERS                   ,04/01/2013,3388134,438A                     ,393.75,ROUNDABOUT LTD                          ,316572,Facilities Management,HOSTELS                       
CARELEAVER SUPPORT            ,9440,CARELEAVERS                   ,04/01/2013,3388136,71,252,REDACTED PERSONAL DATA,504338,Social Community Care,Adoption & Fostering
CARELEAVER SUPPORT            ,9440,CARELEAVERS                   ,04/01/2013,3388138,870,425,REDACTED PERSONAL DATA,575430,Social Community Care,CHILDCARE SERVICES            
COMMUNITY ASSEMBLY NORTH      ,9120,OTHER AGENCIES                ,07/01/2013,3388742,ERS INVOICE77568         ,814,SHEFFIELD WILDLIFE TRUST                ,270716,Unclassified Non Trade,CHARITIES & VOLUNTARY ORGANISA
COMMUNITY ASSEMBLY NORTH      ,9120,OTHER AGENCIES                ,07/01/2013,3388744,ERS INVOICE77569         ,"1,000.00",STOCKSBRIDGE COMMUNITY CARE GROUP LTD   ,538787,Unclassified Non Trade,COMMUNITY NETWORKS            
COMMUNITY ASSEMBLY NORTH      ,9120,OTHER AGENCIES                ,07/01/2013,3388745,ERS INVOICE77570         ,600,HIGH GREEN IN BLOOM                     ,562189,Unclassified Non Trade,DO NOT USE* COMMUNITY PROJECTS
COMMUNITY ASSEMBLY NORTH      ,9120,OTHER AGENCIES                ,07/01/2013,3388746,ERS INVOICE77571         ,600,BOLSTERSTONE COMMUNITY GROUP            ,412243,Unclassified Non Trade,COMMUNITY NETWORKS            
COMMUNITY ASSEMBLY NORTH      ,9120,OTHER AGENCIES                ,07/01/2013,3388747,ERS INVOICE77572         ,600,BURNCROSS ACTION TEAM                   ,461667,Unclassified Non Trade,COMMUNITY PROJECTS            
COMMUNITY ASSEMBLY NORTH      ,9120,OTHER AGENCIES                ,07/01/2013,3388748,ERS INVOICE77573         ,500,STOCKSBRIDGE COMMUNITY FORUM            ,576305,Unclassified Non Trade,Community Centres
COMMUNITY ASSEMBLY NORTH      ,9120,OTHER AGENCIES                ,07/01/2013,3388749,ERS INVOICE77574         ,600,CHAPELTOWN IN BLOOM                     ,541345,Unclassified Non Trade,COMMUNITY PROJECTS            
COMMUNITY ASSEMBLY NORTH      ,9120,OTHER AGENCIES                ,07/01/2013,3388750,ERS INVOICE77575         ,950,ECCLESFIELD SPARTANS JUNIOR F.C.        ,576306,Leisure Services,SPORTS CLUBS & ASSOCIATIONS   
COMMUNITY ASSEMBLY NORTH      ,9120,OTHER AGENCIES                ,07/01/2013,3388751,ERS INVOICE77576         ,600,BRADFIELD IN BLOOM                      ,484672,Unclassified Non Trade,COMMUNITY PROJECTS            
COMMUNITY ASSEMBLY NORTH      ,9120,OTHER AGENCIES                ,07/01/2013,3388752,ERS INVOICE77577         ,600,ACTION FOR STANNINGTON                  ,487619,Unclassified Non Trade,CHARITIES & VOLUNTARY ORGANISA
COMMUNITY ASSEMBLY NORTH      ,9120,OTHER AGENCIES                ,07/01/2013,3388753,ERS INVOICE77578         ,600,ECCLESFIELD IN BLOOM                    ,509138,Unclassified Non Trade,COMMUNITY PROJECTS            
PRIVATE LANDLORD SCHEME       ,9120,OTHER AGENCIES                ,07/01/2013,3388755,ERS INVOICE77580         ,459,S TENNANT                               ,572633,Unclassified Trade,LETTING AGENTS                
PRIVATE LANDLORD SCHEME       ,9120,OTHER AGENCIES                ,07/01/2013,3388756,ERS INVOICE77581         ,459,GILBERT GREEN                           ,576677,Unclassified Trade,LETTING AGENTS                
COMMUNITY ASSEMBLY NORTH      ,9120,OTHER AGENCIES                ,07/01/2013,3388757,ERS INVOICE77582         ,892,STANNINGTON MIXED CHOIR                 ,557578,Leisure Services,MUSICIANS & COMPOSERS         
CLAIMS                        ,8740,MOTOR VEHICLE                 ,07/01/2013,3388762,ERS INVOICE77587         ,"1,011.48",MSL LEGAL EXPENSES LTD                  ,463706,Legal Services,LEGAL SERVICES                
DEVELOPMENT CONTROL           ,4180,PLANNING APPLICATION FEES     ,07/01/2013,3388770,ERS INVOICE77595         ,305,REDACTED PERSONAL DATA,576073,Unclassified Non Trade,OUT OF SCOPE FOR SIC MONITORIN
DELEGATED BUDGETS             ,9120,OTHER AGENCIES                ,07/01/2013,3388772,ERS INVOICE77599         ,"19,570.05",AON LIMITED                             ,319158,Financial Services,INSURANCE - OTHER             
FAMILY & COMM MANAGEMENT      ,9120,OTHER AGENCIES                ,07/01/2013,3382734,41263,288.4,LITTLE RASCALS (HALIFAX ROAD)           ,311887,Social Community Care,NURSERIES & CRECHES           
CLAIMS                        ,8740,MOTOR VEHICLE                 ,07/01/2013,3388959,ERS INVOICE77602         ,528.11,REDACTED PERSONAL DATA,576793,Unclassified Non Trade,OUT OF SCOPE FOR SIC MONITORIN
CLAIMS                        ,8740,MOTOR VEHICLE                 ,07/01/2013,3388960,ERS INVOICE77603         ,250,REDACTED PERSONAL DATA,576796,Unclassified Non Trade,OUT OF SCOPE FOR SIC MONITORIN
CLAIMS                        ,8740,HIGHWAYS                      ,07/01/2013,3388962,ERS INVOICE77605         ,"2,400.00",REDACTED PERSONAL DATA,576795,Unclassified Non Trade,OUT OF SCOPE FOR SIC MONITORIN
CLAIMS                        ,8740,MOTOR VEHICLE                 ,07/01/2013,3388963,ERS INVOICE77606         ,350,REDACTED PERSONAL DATA,566655,Unclassified Non Trade,OUT OF SCOPE FOR SIC MONITORIN
CLAIMS                        ,8740,MOTOR VEHICLE                 ,07/01/2013,3388964,ERS INVOICE77607         ,637.5,IRWIN MITCHELL SOLICITORS               ,318760,Legal Services,SOLICITORS                    
CLAIMS                        ,8740,MOTOR VEHICLE                 ,07/01/2013,3388965,ERS INVOICE77608         ,"1,036.94",REDACTED PERSONAL DATA,572360,Unclassified Non Trade,OUT OF SCOPE FOR SIC MONITORIN
ADULT PROTECTION              ,8440,FEE EXPENSES                  ,07/01/2013,3388967,ERS INVOICE77610         ,305.4,REDACTED PERSONAL DATA,507783,Unclassified Non Trade,OUT OF SCOPE FOR SIC MONITORIN
SDF                           ,8620,COMPUTER MAINTENANCE          ,07/01/2013,3369373,INV:LUK000436            ,"13,115.31",LIMEHOUSE SOFTWARE LTD                  ,457385,Consultancy,COMPUTER SYSTEMS & SOFTWARE (D
LEARNING DIS DEVELOPMENT FUND ,9160,PARTNERSHIP CONTRACTS         ,07/01/2013,3374294,27640,"8,833.33",NATIONAL YOUTH ADVOCACY SERVICE         ,546945,Unclassified Non Trade,CHARITIES & VOLUNTARY ORGANISA
CITY ROAD BELL TOWER          ,1194,OTHER FEES                    ,07/01/2013,3374721,21023,254,GREEN LIGHT TRAFFIC MANAGEMENT          ,528860,Traffic Management,TRAFFIC MANAGEMENT SYSTEMS    
LEARNING DIS DEVELOPMENT FUND ,9160,PARTNERSHIP CONTRACTS         ,07/01/2013,3375926,27675,"8,833.33",NATIONAL YOUTH ADVOCACY SERVICE         ,546945,Unclassified Non Trade,CHARITIES & VOLUNTARY ORGANISA
THORNBRIDGE - STRUCTURAL      ,1183,PURCHASE OF EQUIPMENT         ,07/01/2013,3378385,700,"4,920.00",ANDREW LAWTON FURNITURE DESIGNER & MAKER,563995,Furniture,FURNITURE MNFRS - HOME & OFFIC
JESSICA                       ,8470,LEGAL FEES                    ,07/01/2013,3379041,488288,"11,780.50",PINSENT MASONS LLP                      ,574894,Legal Services,SOLICITORS MARKETING SERVICES 
EQUALITIES                    ,8550,OTHER SERVICES                ,07/01/2013,3380175,5844,"1,800.00",EQUALITY WORKS LTD                      ,557746,Human Resources,TRAINING CONSULTANTS          
PD PARTNERSHIP CONTRACTS      ,9160,PARTNERSHIP CONTRACTS         ,07/01/2013,3380314,10026,"7,776.20",SHEFFIELD ROYAL SOCIETY FOR THE BLIND   ,306116,Unclassified Non Trade,CHARITIES & VOLUNTARY ORGANISA
SENSORY IMPAIRED SUPPORT      ,9160,PARTNERSHIP CONTRACTS         ,07/01/2013,3380315,10027,"3,757.83",SHEFFIELD ROYAL SOCIETY FOR THE BLIND   ,306116,Unclassified Non Trade,CHARITIES & VOLUNTARY ORGANISA
CAPITAL                       ,8050,FURNITURE PURCHASES           ,07/01/2013,3380331,38644,275.5,SIS WORKSPACE LTD                       ,466606,Construction,OFFICE REFURBISHMENT SERVICES 
STRUCTURES - SCHEME           ,8350,MISCELLANEOUS EXPENSES        ,07/01/2013,3382153,IE2856                   ,695,SPAGHETTI CONSTRUCTION LTD              ,570376,Construction,CONSTRUCTION CONTRACTORS - GEN
PROPERTY DISPOSAL             ,8440,FEE EXPENSES                  ,07/01/2013,3382898,6.54E+14,654,YORKSHIRE WATER                         ,362345,Utilities,WATER COMPANIES               
CREATIVE SERVICES             ,9120,OTHER AGENCIES                ,07/01/2013,3383032,INV157168                ,520,A PINDER LTD                            ,202627,Facilities Management,COPYING & DUPLICATING SERVICES
CHILDREN'S CENTRES            ,8440,FEE EXPENSES                  ,07/01/2013,3383165,00024371T                ,250,LANGUAGE LINE LIMITED                   ,471915,Human Resources,TRANSLATORS & INTERPRETERS    
CREATIVE SERVICES             ,9120,OTHER AGENCIES                ,07/01/2013,3383250,62130,"1,375.00",PRINT AND DESIGN FACTORY LTD.           ,207663,Facilities Management,PRINTERS                      
ADULT SOCIAL CARE PURCHASING  ,9180,OTHER CLIENT EXPENDITURE      ,07/01/2013,3383271,105648,402.6,REDACTED PERSONAL DATA,570219,Social Community Care,HOME CARE SERVICES            
ADULT SOCIAL CARE PURCHASING  ,9180,OTHER CLIENT EXPENDITURE      ,07/01/2013,3383274,105647,422.84,REDACTED PERSONAL DATA,570219,Social Community Care,HOME CARE SERVICES            
ADULT SOCIAL CARE PURCHASING  ,9180,OTHER CLIENT EXPENDITURE      ,07/01/2013,3383276,105646,268.4,REDACTED PERSONAL DATA,570219,Social Community Care,HOME CARE SERVICES            
CREATIVE SERVICES             ,9120,OTHER AGENCIES                ,07/01/2013,3383301,204649,702,B AND B PRESS (PARKGATE) LTD            ,203168,Facilities Management,PRINTERS                      
DSG MANAGEMENT REVIEWS        ,9360,FUNDS ALLOCATED TO SCHOOLS    ,07/01/2013,3383311,1196,"22,800.00",G HARDY & SON LIMITED                   ,486622,Construction,Plumbers
MANAGEMENT & SUPPORT SERVICES ,8440,FEE EXPENSES                  ,07/01/2013,3383314,113318074,"8,250.00",ROTHERHAM M B C                         ,296984,Unclassified Non Trade,LOCAL GOVERNMENT              
PLAYGROUND MAINTENANCE & INSPE,8010,EQUIPMENT PURCHASE AND REPAIR ,07/01/2013,3383341,3806,"7,495.00",DURA-SPORT LTD                          ,372165,Construction,TENNIS COURTS & SPORTS SURFACE
LOWFIELD U-MIX FACILITY       ,1183,PURCHASE OF EQUIPMENT         ,07/01/2013,3383344,16006051206,"2,737.67",COMET SERVICE DEPARTMENT                ,204008,Domestic Goods,ELECTRICAL GOODS - SALES      
PROVIDER CONTRACT AUG12-JUL13 ,9120,OTHER AGENCIES                ,07/01/2013,3383346,41208,252,LBJ COMMUNITY FORUM                     ,561515,Unclassified Non Trade,CHARITIES & VOLUNTARY ORGANISA
FURNISHED ACCOMMODATION       ,6020,VOID PAINTING INITIATIVE      ,07/01/2013,3383355,L08669                   ,380,BELL GROUP (LEEDS)                      ,441427,Construction,PAINTERS & DECORATORS         
CRYSTAL PEAKS                 ,6030,REPAIRS AND MTCE - RESPONSIVE ,07/01/2013,3383358,I362635                  ,"2,222.00",RADFORD HMY GROUP LTD                   ,574860,Furniture,STORAGE & SHELVING SYSTEMS MNF
PROVIDER CONTRACT AUG12-JUL13 ,9120,OTHER AGENCIES                ,07/01/2013,3385294,CL12S024                 ,602,LBJ COMMUNITY FORUM                     ,561515,Unclassified Non Trade,CHARITIES & VOLUNTARY ORGANISA
PROVIDER CONTRACT AUG12-JUL13 ,9120,OTHER AGENCIES                ,07/01/2013,3385295,WCF12B001                ,845,WOODHOUSE & DISTRICT COMMUNITY FORUM    ,482835,Unclassified Non Trade,COMMUNITY PROJECTS            
PROVIDER CONTRACT AUG12-JUL13 ,9120,OTHER AGENCIES                ,07/01/2013,3385297,4486,480,STEP DEVELOPMENT TRUST                  ,386227,Unclassified Non Trade,CHARITIES & VOLUNTARY ORGANISA
PROVIDER CONTRACT AUG12-JUL13 ,9120,OTHER AGENCIES                ,07/01/2013,3385298,4487,388,STEP DEVELOPMENT TRUST                  ,386227,Unclassified Non Trade,CHARITIES & VOLUNTARY ORGANISA
POST IMPLEMENTATION           ,1165,NC&A OTHER                    ,07/01/2013,3385411,6143,785.5,DIO-MET FABRICATIONS LTD                ,393119,Construction,Architectural Ironmongers
FORGE CENTRE                  ,9160,PARTNERSHIP CONTRACTS         ,07/01/2013,3385628,982532,"7,000.00",SHIELD SOUTH YORKS HIV SUPPORT GROUP    ,395603,Medical ,COUNSELLING & ADVICE SERVICES 
LEARNING DIS DEVELOPMENT FUND ,9120,OTHER AGENCIES                ,07/01/2013,3385663,2547,"3,060.00",SHEFFIELD MENCAP & GATEWAY              ,328741,Unclassified Non Trade,CHARITIES & VOLUNTARY ORGANISA
GRNI NO LIABILITY VAL / OHEAD ,8060,MATERIALS AND SUPPLIES GENERAL,07/01/2013,3385666,NE705678                 ,"39,264.46",ENGLISH LANDSCAPES LTD                  ,369963,Construction,LANDSCAPE CONTRACTORS         
HEATING BREAKDOWNS            ,1157,DWELLINGS MAIN CONTRACT       ,07/01/2013,3385774,12060029,"34,636.00",KIER SHEFFIELD LLP                      ,352687,Construction,PROPERTY MAINTENANCE & REPAIRS
HEATING BREAKDOWNS            ,1157,DWELLINGS MAIN CONTRACT       ,07/01/2013,3385775,12060027,"5,757.51",KIER SHEFFIELD LLP                      ,352687,Construction,PROPERTY MAINTENANCE & REPAIRS
NEW HEATING INSTALLATIONS     ,1157,DWELLINGS MAIN CONTRACT       ,07/01/2013,3385832,12060028,"9,951.00",KIER SHEFFIELD LLP                      ,352687,Construction,PROPERTY MAINTENANCE & REPAIRS
EAST - BURNGREAVE             ,1157,DWELLINGS MAIN CONTRACT       ,07/01/2013,3385833,12060026,"6,298.00",KIER SHEFFIELD LLP                      ,352687,Construction,PROPERTY MAINTENANCE & REPAIRS
NORTH - NEW PARSON CROSS      ,1157,DWELLINGS MAIN CONTRACT       ,07/01/2013,3385835,12060025,"9,896.00",KIER SHEFFIELD LLP                      ,352687,Construction,PROPERTY MAINTENANCE & REPAIRS
SOUTH WEST - ABBEY BROOK      ,1157,DWELLINGS MAIN CONTRACT       ,07/01/2013,3385836,12060024,"2,474.00",KIER SHEFFIELD LLP                      ,352687,Construction,PROPERTY MAINTENANCE & REPAIRS
CREATIVE SERVICES             ,9120,OTHER AGENCIES                ,07/01/2013,3385944,62180,787,PRINT AND DESIGN FACTORY LTD.           ,207663,Facilities Management,PRINTERS                      
FAMILY & COMM MANAGEMENT      ,9120,OTHER AGENCIES                ,07/01/2013,3386093,41263,288.4,LITTLE RASCALS (HALIFAX ROAD)           ,311887,Social Community Care,NURSERIES & CRECHES           
SCC BALANCE SHEET             ,2070,TRUST FUNDS - CEX             ,07/01/2013,3386094,3837258,266.07,CONNEXIONS PR & MARKETING LTD           ,537096,Facilities Management,ADVERTISING - AGENCIES        
CASTLE MARKET                 ,8420,ADVERTISING AND PUBLICITY     ,07/01/2013,3386094,3837258,266.07,CONNEXIONS PR & MARKETING LTD           ,537096,Facilities Management,ADVERTISING - AGENCIES        
FURNISHED ACCOMMODATION       ,6020,VOID PAINTING INITIATIVE      ,07/01/2013,3386887,L08671                   ,584,BELL GROUP (LEEDS)                      ,441427,Construction,PAINTERS & DECORATORS         
WOODLANDS                     ,8260,WOODLAND DEVELOPMENT EXPENSES ,07/01/2013,3386893,10/5142/21AF/40801       ,"3,900.00",SHEFFIELD WILDLIFE TRUST                ,270716,Unclassified Non Trade,CHARITIES & VOLUNTARY ORGANISA
HURLFIELD                     ,8060,MATERIALS AND SUPPLIES GENERAL,07/01/2013,3386913,255967621,311.87,YORKSHIRE PURCHASING ORGANISATION       ,295997,Unclassified Trade,PURCHASING SERVICES           
CREATIVE SERVICES             ,9120,OTHER AGENCIES                ,07/01/2013,3386933,INV157332                ,452.6,A PINDER LTD                            ,202627,Facilities Management,COPYING & DUPLICATING SERVICES
CREATIVE SERVICES             ,9120,OTHER AGENCIES                ,07/01/2013,3386935,INV157331                ,452.6,A PINDER LTD                            ,202627,Facilities Management,COPYING & DUPLICATING SERVICES
FURNISHED ACCOMMODATION       ,6020,VOID PAINTING INITIATIVE      ,07/01/2013,3386968,L08673                   ,584,BELL GROUP (LEEDS)                      ,441427,Construction,PAINTERS & DECORATORS         
CLC MANAGEMENT                ,8620,COMPUTER SOFTWARE PURCHASES   ,07/01/2013,3387045,INVU016960R07            ,856,MEETING MAKER LTD T/A PEOPLE CUBE       ,575444,ICT,COMPUTER SYSTEMS & SOFTWARE (S
PURCHASING & PAYMENTS TEAM    ,5610,AGENCY STAFF                  ,07/01/2013,3387091,C0224640333              ,"12,575.69",REED EMPLOYMENT                         ,317819,Human Resources,EMPLOYMENT & RECRUITMENT AGENC
WASTE MANAGEMENT              ,6030,DAY TO DAY REPAIRS            ,07/01/2013,3387148,CN18251299               ,504,OCS GROUP UK LTD TA CANNON HYGIENE LTD  ,203709,Cleaning and Janitorial,HYGIENE & CLEANSING SERVICES  
HURLFIELD                     ,8060,MATERIALS AND SUPPLIES GENERAL,07/01/2013,3387188,255983039,740.61,YORKSHIRE PURCHASING ORGANISATION       ,295997,Unclassified Trade,PURCHASING SERVICES           
CREATIVE SERVICES             ,9120,OTHER AGENCIES                ,07/01/2013,3387211,128900,"1,459.14",JOHNSTON PUBLISHING LTD                 ,207918,Education,NEWSPAPER & MAGAZINE PUBLISHER
CARE PROCEEDINGS (LEGAL FEES) ,8470,LEGAL FEES                    ,07/01/2013,3387320,844191,"1,200.00",MRS K E HAYES                           ,472119,Legal Services,BARRISTERS                    
CARE PROCEEDINGS (LEGAL FEES) ,8470,LEGAL FEES                    ,07/01/2013,3387321,844285,"1,200.00",MRS K E HAYES                           ,472119,Legal Services,BARRISTERS                    
CARE PROCEEDINGS (LEGAL FEES) ,8470,LEGAL FEES                    ,07/01/2013,3387322,831823,"1,200.00",MISS N G ERLEN                          ,465151,Legal Services,BARRISTERS                    
TEMPORARY ACCOMMODATION       ,8010,EQUIPMENT PURCHASE AND REPAIR ,07/01/2013,3387330,19922,559,MAKEPORT 2001 LTD                       ,350362,Furniture,FURNISHERS                    
HEATING MECHANICAL ELECTRICAL ,6030,REPAIRS AND MTCE - RESPONSIVE ,07/01/2013,3387335,UI10015305               ,"3,816.00",INTEGRATED UTILITY SERVICES             ,349666,Utilities,ELECTRICITY COMPANIES         
COMMUNITY ASSEMBLY NORTH EAST ,9120,OTHER AGENCIES                ,07/01/2013,3387344,EF26836                  ,"1,071.35",ELVEDON FARMS LTD                       ,409642,Stationery ,CHRISTMAS GOODS               
SCC BALANCE SHEET             ,2070,TRUST FUNDS - CEX             ,07/01/2013,3387370,3837263,469.91,CONNEXIONS PR & MARKETING LTD           ,537096,Facilities Management,ADVERTISING - AGENCIES        
CRYSTAL PEAKS                 ,8420,ADVERTISING AND PUBLICITY     ,07/01/2013,3387370,3837263,469.91,CONNEXIONS PR & MARKETING LTD           ,537096,Facilities Management,ADVERTISING - AGENCIES        
PROJECT AND COMMERCIAL FINANCE,8350,MISCELLANEOUS EXPENSES        ,07/01/2013,3387645,I00182842                ,"1,006.50",AON TRADE CREDIT                        ,464823,Financial Services,INSURANCE - OTHER             
BIS CORE SERVICES             ,8270,SUBSCRIPTIONS                 ,07/01/2013,3387652,20072294,"15,212.50",GARTNER UK LTD                          ,502369,Consultancy,COMPUTER CONSULTANTS          
FURNISHED ACCOMMODATION       ,6020,VOID PAINTING INITIATIVE      ,07/01/2013,3387768,L08707                   ,854,BELL GROUP (LEEDS)                      ,441427,Construction,PAINTERS & DECORATORS         
FURNISHED ACCOMMODATION       ,6020,VOID PAINTING INITIATIVE      ,07/01/2013,3387769,L08700                   ,584,BELL GROUP (LEEDS)                      ,441427,Construction,PAINTERS & DECORATORS         
MINIBUSES - SHEFFTAX TENDERED ,7060,EXTERNAL VEHICLE HIRE         ,07/01/2013,3387909,1062,"25,194.20",SHEFFIELD TAXI SERVICES LTD             ,208407,Transport,TAXIS & PRIVATE HIRE          
HR TRANSACTIONS               ,8100,RECHARGEABLE PURCHASES        ,07/01/2013,3387921,118040,580.32,SHEFFIELD NEWSPAPERS LTD                ,208391,Education,NEWSPAPER & MAGAZINE PUBLISHER
LSE SUB-CONTRACTORS           ,9120,OTHER AGENCIES                ,07/01/2013,3387926,1609,"4,844.15",SHEFFIELD OUT OF SCHOOL NETWORK         ,310547,Unclassified Non Trade,CHARITIES & VOLUNTARY ORGANISA
YOUTH JUSTICE SERVICE         ,6210,RENTS                         ,07/01/2013,3387954,15427,"1,058.00",BURTON STREET PROJECT                   ,342774,Unclassified Non Trade,CHARITIES & VOLUNTARY ORGANISA
MANAGEMENT & SUPPORT SERVICES ,8440,FEE EXPENSES                  ,07/01/2013,3387967,CRM01047023              ,"18,164.00",THE LAW SOCIETY                         ,304768,Human Resources,INSTITUTES - PROFESSIONAL     
FAMILY & COMM MANAGEMENT      ,8440,FEE EXPENSES                  ,07/01/2013,3388006,92967590,353.87,HOPE EDUCATION LTD                      ,205575,Education,EDUCATIONAL EQUIPMENT & SUPPLI
MINIBUSES - SHEFFTAX TENDERED ,7060,EXTERNAL VEHICLE HIRE         ,07/01/2013,3388157,1063,"7,716.45",SHEFFIELD TAXI SERVICES LTD             ,208407,Transport,TAXIS & PRIVATE HIRE          
PLAYGROUND MAINTENANCE & INSPE,8010,EQUIPMENT PURCHASE AND REPAIR ,07/01/2013,3388268,7675,407,PLAYDALE PLAYGROUNDS LTD.               ,207579,Sports & Playground,PLAYGROUND EQUIPMENT          
WINTER GARDEN                 ,6080,CONTRACT CLEANING             ,07/01/2013,3388271,12/M12004                ,252,INTAKE WINDOW CLEANING SERVICES         ,205780,Cleaning and Janitorial,WINDOW CLEANERS               
SANCTUARY SCHEME              ,8060,MATERIALS AND SUPPLIES GENERAL,07/01/2013,3388282,11083908,820.83,GIZOO                                   ,502353,Unclassified Trade,GIFT SHOPS                    
WINTER GARDEN                 ,6370,GROUNDS MTCE AND ARBORICULTURE,07/01/2013,3388302,122596,"1,166.56",KOBERG                                  ,528227,Horticultural,NURSERIES - WHOLESALE         
100 APPRENTICES               ,9120,OTHER AGENCIES                ,07/01/2013,3388303,41227,343.8,P & W AUTOMOBILE SERVICES               ,573163,Vehicles Not Buses,CAR BODY REPAIRS              
TINSLEY LIBRARY               ,6210,RENTS                         ,07/01/2013,3388332,713,"3,850.28",DEANGATE PROPERTIES LTD                 ,313674,Unclassified Trade,PROPERTY & ESTATE MANAGEMENT  
ADAPTATIONS                   ,1157,DWELLINGS MAIN CONTRACT       ,07/01/2013,3388335,9085147703,"5,198.00",STANNAH LIFT SERVICES LTD.              ,208625,Social Community Care,STAIRLIFTS - MNFRS & INSTALLER
ADAPTATIONS                   ,1157,DWELLINGS MAIN CONTRACT       ,07/01/2013,3388336,9085147702,"4,704.00",STANNAH LIFT SERVICES LTD.              ,208625,Social Community Care,STAIRLIFTS - MNFRS & INSTALLER
ADAPTATIONS                   ,1157,DWELLINGS MAIN CONTRACT       ,07/01/2013,3388338,1019526,"9,995.00",CLARK & PARTNERS LTD                    ,203928,Medical ,DISABILITY EQUIPMENT - MNFRS &
ACCOMMODATION STRATEGY        ,6270,SERVICE / PFI UNITARY CHARGE  ,07/01/2013,3388559,24777,"78,594.00",LONDON & REGIONAL (SHEFFIELD) LIMITED   ,325006,Unclassified Trade,LETTING AGENTS                
ACCOMMODATION STRATEGY        ,6210,RENTS                         ,07/01/2013,3388560,24776,"155,000.00",LONDON & REGIONAL (SHEFFIELD) LIMITED   ,325006,Unclassified Trade,LETTING AGENTS                
TRANSITIONAL CHILDCARE FUND   ,8440,FEE EXPENSES                  ,07/01/2013,3388589,OSCTF3                   ,"5,000.00",MARLCLIFFE KIDS CLUB                    ,437339,Social Community Care,AFTER SCHOOL CARE             
HR TRANSACTIONS               ,8100,RECHARGEABLE PURCHASES        ,07/01/2013,3388590,TARINV/15184663          ,525,TIMES EDUCATIONAL SUPPLEMENT            ,297123,Education,NEWSPAPER & MAGAZINE PUBLISHER
ACCOMMODATION                 ,6030,REPAIRS AND MTCE - RESPONSIVE ,07/01/2013,3388594,980617,"1,948.24",NEIGHBOURHOODS DIRECTORATE (HOMES)      ,402953,Unclassified Non Trade,LOCAL GOVERNMENT              
ACCOMMODATION                 ,6030,REPAIRS AND MTCE - RESPONSIVE ,07/01/2013,3388636,980619,"2,335.50",NEIGHBOURHOODS DIRECTORATE (HOMES)      ,402953,Unclassified Non Trade,LOCAL GOVERNMENT              
OCCUPATIONAL HEALTH RECHARGES ,5790,EMPLOYEE EXPENSES-INVOICED    ,07/01/2013,3388646,1008986,425,SPECSAVERS CORPORATE EYE CARE           ,437518,Medical ,OPTICIANS - DISPENSING        
PFI 4                         ,6270,SERVICE / PFI UNITARY CHARGE  ,07/01/2013,3388653,151,"771,155.67",PARADIGM (SHEFFIELD BSF) LIMITED        ,472691,Facilities Management,FACILITIES MANAGEMENT         
ALDINE HOUSE                  ,6030,REPAIRS AND MTCE - RESPONSIVE ,07/01/2013,3388858,SINV005963               ,"4,155.37",WHITTLE PROGRAMMED PAINTING LTD         ,516023,Construction,PAINTING CONTRACTORS          
STANIFORTH ROAD WORKSHOPS     ,7010,ROUTINE VEHICLE REPAIR & MTCE ,07/01/2013,3388587,14402440,255.09,LOOKERS FORD                            ,474939,Vehicles Not Buses,CAR DEALERS                   
STANIFORTH ROAD WORKSHOPS     ,7010,ROUTINE VEHICLE REPAIR & MTCE ,07/01/2013,3388593,7439,"1,327.00",GPG 2000 LTD                            ,416225,Vehicles Not Buses,CAR BODY REPAIRS              
STANIFORTH ROAD WORKSHOPS     ,7010,ROUTINE VEHICLE REPAIR & MTCE ,07/01/2013,3388595,7468,850,GPG 2000 LTD                            ,416225,Vehicles Not Buses,CAR BODY REPAIRS              
STANIFORTH ROAD WORKSHOPS     ,7010,ROUTINE VEHICLE REPAIR & MTCE ,07/01/2013,3388599,7453,610.5,GPG 2000 LTD                            ,416225,Vehicles Not Buses,CAR BODY REPAIRS              
STANIFORTH ROAD WORKSHOPS     ,7010,ROUTINE VEHICLE REPAIR & MTCE ,07/01/2013,3388600,7472,796.73,GPG 2000 LTD                            ,416225,Vehicles Not Buses,CAR BODY REPAIRS              
STANIFORTH ROAD WORKSHOPS     ,7010,ROUTINE VEHICLE REPAIR & MTCE ,07/01/2013,3388602,7462,262,GPG 2000 LTD                            ,416225,Vehicles Not Buses,CAR BODY REPAIRS              
STANIFORTH ROAD WORKSHOPS     ,7010,ROUTINE VEHICLE REPAIR & MTCE ,07/01/2013,3388603,7464,267.15,GPG 2000 LTD                            ,416225,Vehicles Not Buses,CAR BODY REPAIRS              
STANIFORTH ROAD WORKSHOPS     ,7010,ROUTINE VEHICLE REPAIR & MTCE ,07/01/2013,3388610,1352012,277.64,HUNTSON HOLDINGS PLC T/A AUTOWORLD      ,366057,Vehicles Not Buses,CAR DEALERS                   
STANIFORTH ROAD WORKSHOPS     ,7010,ROUTINE VEHICLE REPAIR & MTCE ,07/01/2013,3388623,14402459,292.85,LOOKERS FORD                            ,474939,Vehicles Not Buses,CAR DEALERS                   
STANIFORTH ROAD WORKSHOPS     ,8070,STOCKS AND STORES             ,07/01/2013,3388625,14402470,308.53,LOOKERS FORD                            ,474939,Vehicles Not Buses,CAR DEALERS                   
STANIFORTH ROAD WORKSHOPS     ,7010,ROUTINE VEHICLE REPAIR & MTCE ,07/01/2013,3388631,14402383,287.21,LOOKERS FORD                            ,474939,Vehicles Not Buses,CAR DEALERS                   
STANIFORTH ROAD WORKSHOPS     ,8070,STOCKS AND STORES             ,07/01/2013,3388644,142550,258.67,HUMBERSIDE TAIL LIFTS LTD               ,439065,Vehicles Not Buses,LIFTING EQUIPMENT             
STANIFORTH ROAD WORKSHOPS     ,7010,ROUTINE VEHICLE REPAIR & MTCE ,07/01/2013,3388645,9030,872,ROBERTS MOTOR BODIES LIMITED            ,442639,Vehicles Not Buses,CAR BODY REPAIRS              
STANIFORTH ROAD WORKSHOPS     ,7010,ROUTINE VEHICLE REPAIR & MTCE ,07/01/2013,3388647,9031,870,ROBERTS MOTOR BODIES LIMITED            ,442639,Vehicles Not Buses,CAR BODY REPAIRS              
STANIFORTH ROAD WORKSHOPS     ,7010,ROUTINE VEHICLE REPAIR & MTCE ,07/01/2013,3388649,9032,"1,288.00",ROBERTS MOTOR BODIES LIMITED            ,442639,Vehicles Not Buses,CAR BODY REPAIRS              
ACTIVITY CENTRES              ,6150,ELECTRICITY                   ,07/01/2013,3388693,79149227900,952.74,NPOWER                                  ,347938,Utilities,ELECTRICITY COMPANIES         
OFF STREET CAR PARKS          ,6150,ELECTRICITY                   ,07/01/2013,3388694,27140534,"3,118.42",NPOWER NORTHERN LTD                     ,207191,Utilities,ELECTRICITY COMPANIES         
CITY WIDE ALARM - GENERAL     ,8590,LANDLINE TELEPHONES           ,07/01/2013,3388699,VP79239170M1320143       ,716.99,BRITISH TELECOMMUNICATIONS PLC          ,295860,ICT,TELECOMMUNICATION SERVICES    
PURCHASING LEARNING DISABILITI,9210,FUNDED NURSING CARE (INCOME)  ,07/01/2013,3388552,1982,"10,761.71",REDACTED PERSONAL DATA,532473,Social Community Care,HOME CARE SERVICES            
ADULT SOCIAL CARE PURCHASING  ,9210,FUNDED NURSING CARE (INCOME)  ,07/01/2013,3388553,1986,"2,104.24",REDACTED PERSONAL DATA,532473,Social Community Care,HOME CARE SERVICES            
WEST SA - CIN S17             ,9270,PAYMENTS TO RELATIVES/FRIENDS ,07/01/2013,3388545,93046C                   ,305.16,REDACTED PERSONAL DATA,567353,Unclassified Non Trade,OUT OF SCOPE FOR SIC MONITORIN
WEST SA - CIN S17             ,9270,CARELEAVERS INDEPENDENT LIVING,07/01/2013,3388550,36414,427.5,LANGUAGE LINE LIMITED                   ,471915,Human Resources,TRANSLATORS & INTERPRETERS    
ADULT SOCIAL CARE PURCHASING  ,9200,CONTINUING RESIDENTIAL CARE   ,07/01/2013,3388535,J553816 060113           ,"1,616.80",HOLLY TREE LODGE                        ,519365,Social Community Care,RESIDENTIAL CARE HOMES        
ADULT SOCIAL CARE PURCHASING  ,9210,CONTINUING NURSING CARE       ,07/01/2013,3388536,J559335 060113           ,"8,490.29",FULWOOD LODGE NURSING HOME              ,361775,Social Community Care,NURSING HOMES                 
ADULT SOCIAL CARE PURCHASING  ,9200,CONTINUING RESIDENTIAL CARE   ,07/01/2013,3388537,J559344 060113           ,"4,047.00",ROSEBERRY CARE CENTRES GB LTD           ,362099,Social Community Care,RESIDENTIAL CARE HOMES        
ADULT SOCIAL CARE PURCHASING  ,9210,CONTINUING NURSING CARE       ,07/01/2013,3388537,J559344 060113           ,"7,940.00",ROSEBERRY CARE CENTRES GB LTD           ,362099,Social Community Care,RESIDENTIAL CARE HOMES        
ADULT SOCIAL CARE PURCHASING  ,9210,CONTINUING NURSING CARE       ,07/01/2013,3388538,J559791 060113           ,"8,434.43",KERSAL MOUNT NURSING HOME               ,361765,Social Community Care,NURSING HOMES                 
ADULT SOCIAL CARE PURCHASING  ,9210,CONTINUING NURSING CARE       ,07/01/2013,3388539,J559796 060113           ,"10,612.86",LITTLEDALE NURSING HOME                 ,361783,Social Community Care,NURSING HOMES                 
ADULT SOCIAL CARE PURCHASING  ,9200,CONTINUING RESIDENTIAL CARE   ,07/01/2013,3388540,J559799 060113           ,"2,223.00",HEELEY BANK CARE HOME                   ,362923,Social Community Care,RESIDENTIAL CARE HOMES        
ADULT SOCIAL CARE PURCHASING  ,9200,SHORT TERM RESIDENTIAL CARE   ,07/01/2013,3388541,J559645 091212           ,"1,580.00",DEERLANDS                               ,361836,Social Community Care,RESIDENTIAL CARE HOMES        
ADULT SOCIAL CARE PURCHASING  ,9200,SHORT TERM RESIDENTIAL CARE   ,07/01/2013,3388542,J559764 091212           ,353,HARTWELL HOUSE                          ,361785,Social Community Care,NURSING HOMES                 
ADULT SOCIAL CARE PURCHASING  ,9210,SHORT TERM NURSING CARE       ,07/01/2013,3388543,J559765 091212           ,279.29,HENLEIGH HALL                           ,362109,Social Community Care,NURSING HOMES                 
SEN TAXIS                     ,7060,EXTERNAL VEHICLE HIRE         ,08/01/2013,3389024,1066,475,SHEFFIELD TAXI SERVICES LTD             ,208407,Transport,TAXIS & PRIVATE HIRE          
SEN TAXIS                     ,7060,EXTERNAL VEHICLE HIRE         ,08/01/2013,3389025,1065,"3,682.60",SHEFFIELD TAXI SERVICES LTD             ,208407,Transport,TAXIS & PRIVATE HIRE          
UNIVERSAL YOUTH SERVICE       ,9120,OTHER AGENCIES                ,08/01/2013,3389027,6775,"402,000.00",SHEFFIELD FUTURES                       ,322702,Medical ,COUNSELLING & ADVICE SERVICES 
UNIVERSAL YOUTH SERVICE       ,9120,OTHER AGENCIES                ,08/01/2013,3389029,6776,"131,200.00",SHEFFIELD FUTURES                       ,322702,Medical ,COUNSELLING & ADVICE SERVICES 
SOCIAL CARE TAXIS             ,7060,EXTERNAL VEHICLE HIRE         ,08/01/2013,3389030,1070,"7,710.50",SHEFFIELD TAXI SERVICES LTD             ,208407,Transport,TAXIS & PRIVATE HIRE          
COMMUNITY YOUTH TEAMS         ,6210,RENTS                         ,08/01/2013,3389140,6772,"1,574.36",SHEFFIELD FUTURES                       ,322702,Medical ,COUNSELLING & ADVICE SERVICES 
COM.UNITY                     ,9120,OTHER AGENCIES                ,08/01/2013,3389142,6763,"1,250.00",SHEFFIELD FUTURES                       ,322702,Medical ,COUNSELLING & ADVICE SERVICES 
INDEPENDENT FOSTERING PLACEMEN,9270,INDEPENDENT FOSTERING         ,08/01/2013,3389110,1284,"3,655.50",REDACTED PERSONAL DATA,562974,Social Community Care,Adoption & Fostering
INDEPENDENT FOSTERING PLACEMEN,9270,INDEPENDENT FOSTERING         ,08/01/2013,3389111,16220,"3,084.20",REDACTED PERSONAL DATA,521940,Social Community Care,Adoption & Fostering
INDEPENDENT RES BLOCK PLACEMEN,9270,CARELEAVERS ACCOMMODATION     ,08/01/2013,3389112,200751,"12,000.00",REDACTED PERSONAL DATA,559392,Social Community Care,CHILDCARE SERVICES            
LEP BUSINESS PLAN - W4        ,1194,OTHER FEES                    ,08/01/2013,3383141,1094,"9,904.96",SHEFFIELD LEP LTD                       ,482230,Unclassified Non Trade,LOCAL GOVERNMENT              
VS- VCS GENERAL               ,8180,GRANTS                        ,08/01/2013,3389469,ERS INVOICE77616         ,"15,000.00",VOLUNTARY ACTION SHEFFIELD              ,295283,Unclassified Non Trade,CHARITIES & VOLUNTARY ORGANISA
ADOPTION SERVICE              ,9120,OTHER AGENCIES                ,08/01/2013,3389470,ERS INVOICE77617         ,400,REDACTED PERSONAL DATA,541079,Social Community Care,Adoption & Fostering
SIV  1- MAJOR SPORTING FACILIT,8190,MSF FINANCING COSTS           ,08/01/2013,3389471,ERS INVOICE77618         ,"10,165.12",SHEFFIELD CITY TRUST                    ,315865,Unclassified Non Trade,CHARITIES & VOLUNTARY ORGANISA
SPECIAL GUARDIANSHIP          ,9270,RESIDENCE ORDERS              ,08/01/2013,3389472,ERS INVOICE77619         ,"1,209.57",HAMILTON HOUSE NURSERY                  ,339524,Social Community Care,NURSERIES & CRECHES           
ECOLOGY                       ,8440,FEE EXPENSES                  ,08/01/2013,3389473,ERS INVOICE77620         ,"1,069.56",BARNSLEY MBC                            ,444308,Unclassified Non Trade,LOCAL GOVERNMENT              
EARLY YEARS SEN TEAM          ,8440,FEE EXPENSES                  ,08/01/2013,3389480,ERS INVOICE77627         ,440,BLACK WOMEN'S RESOURCE CENTRE           ,299561,Unclassified Non Trade,CHARITIES & VOLUNTARY ORGANISA
EARLY YEARS SEN TEAM          ,8440,FEE EXPENSES                  ,08/01/2013,3389486,ERS INVOICE77633         ,440,THE CHILDREN'S HOUSE MONTESSORI NURSERY ,311926,Social Community Care,NURSERIES & CRECHES           
EARLY YEARS SEN TEAM          ,8440,FEE EXPENSES                  ,08/01/2013,3389488,ERS INVOICE77635         ,495,ELLESMERE CHILDREN'S CENTRE             ,296344,Social Community Care,NURSERIES & CRECHES           
CORONIAL SERVICES             ,8440,PATHOLOGIST INVOICE           ,08/01/2013,3389489,ERS INVOICE77636         ,595.9,DR NAOMI CARTER                         ,554404,Medical ,DOCTORS                       
CORONIAL SERVICES             ,8440,FEE EXPENSES                  ,08/01/2013,3389490,ERS INVOICE77637         ,"1,080.00",LANGUAGE LINE LIMITED                   ,206348,Human Resources,TRANSLATORS & INTERPRETERS    
CORONIAL SERVICES             ,8440,FEE EXPENSES                  ,08/01/2013,3389492,ERS INVOICE77639         ,452,LGC LIMITED                             ,449612,Environmental Services,LABORATORIES                  
EXECUTOR SERVICES             ,8090,BEREAVEMENT SUPPLIES          ,08/01/2013,3389541,ERS INVOICE77645         ,810,REDACTED PERSONAL DATA,576054,Unclassified Non Trade,OUT OF SCOPE FOR SIC MONITORIN
COMMUNITY ASSEMBLY SOUTH      ,9120,OTHER AGENCIES                ,08/01/2013,3389542,ERS INVOICE77646         ,"3,000.00",ART IN THE PARK (SHEFFIELD)             ,472059,Unclassified Non Trade,CHARITIES & VOLUNTARY ORGANISA
COMMUNITY ASSEMBLY SOUTH      ,9120,OTHER AGENCIES                ,08/01/2013,3389543,ERS INVOICE77647         ,"2,500.00",HEELEY CITY FARM                        ,301277,Unclassified Non Trade,CHARITIES & VOLUNTARY ORGANISA
COMMUNITY ASSEMBLY SOUTH      ,9120,OTHER AGENCIES                ,08/01/2013,3389544,ERS INVOICE77648         ,"3,925.00",GLEADLESS VALLEY COMMUNITY FORUM        ,394371,Unclassified Non Trade,CHARITIES & VOLUNTARY ORGANISA
COMMUNITY ASSEMBLY SOUTH      ,9120,OTHER AGENCIES                ,08/01/2013,3389545,ERS INVOICE77649         ,"5,000.00",HEELEY DEVELOPMENT TRUST                ,472941,Unclassified Non Trade,CHARITIES & VOLUNTARY ORGANISA
FOSTERING DEVELOPMENT         ,8010,EQUIPMENT PURCHASE AND REPAIR ,08/01/2013,3389546,ERS INVOICE77650         ,800,REDACTED PERSONAL DATA,576661,Social Community Care,Adoption & Fostering
PUBLIC RIGHTS OF WAY          ,8230,HOSPITALITY                   ,08/01/2013,3389582,ERS INVOICE77686         ,304,THE FOX HOUSE INN                       ,543951,Catering,"PUBLIC HOUSES, BARS & INNS - N"
EP SOUTH EAST                 ,1157,DWELLINGS MAIN CONTRACT       ,08/01/2013,3364930,8672,"3,904.54",AMK FENCE-IN  LTD                       ,202934,Construction,FENCING CONTRACTORS           
MARKETING                     ,8250,MARKETING EXPENSES            ,08/01/2013,3369566,42686,"3,940.00",INSTANT PROMOTION (UK) LTD              ,571093,Building Construction Materials,"BLINDS, AWNINGS & CANOPIES    "
NORTH MAST                    ,8490,TRANSLATN/SIGN/INTERPRET FEES ,08/01/2013,3371284,35347,"2,678.90",LANGUAGE LINE LIMITED                   ,471915,Human Resources,TRANSLATORS & INTERPRETERS    
GROUNDS MAINTENANCE           ,6370,GROUNDS MTCE AND ARBORICULTURE,08/01/2013,3375837,TL2190                   ,251.66,TOPSPEC GROUNDS & GARDEN MAINTENANCE    ,546935,Construction,GARDENING SERVICES            
SPORTS EVENTS                 ,8440,FEE EXPENSES                  ,08/01/2013,3375867,4859,"5,544.00",NATIONAL ICE SKATING ASSOCIATION        ,374421,Leisure Services,SPORTS CLUBS & ASSOCIATIONS   
INCLUSION CENTRE              ,8490,EXAM FEES                     ,08/01/2013,3376495,INV000275232             ,800,NCFE NATIONAL AWARDING BODY             ,348112,Education,EXAMINATION BOARDS            
FREE TRAVEL PASSES - PRIMARY  ,9120,OTHER AGENCIES                ,08/01/2013,3378412,SL0063818                ,"676,444.32",SYPTE                                   ,208757,Transport,BUS & COACH OPERATORS & STATIO
FREE TRAVEL PASSES - PRIMARY  ,9120,OTHER AGENCIES                ,08/01/2013,3378414,SL0063817                ,"84,694.34",SYPTE                                   ,208757,Transport,BUS & COACH OPERATORS & STATIO
OFF THE SHELF                 ,8440,FEE EXPENSES                  ,08/01/2013,3379193,41235,364.6,MS CATHERINE BAILEY                     ,548845,Leisure Services,PROFESSIONAL SPEAKERS         
PUPIL ADMISSIONS              ,8490,TRANSLATN/SIGN/INTERPRET FEES ,08/01/2013,3379198,32143,472.5,LANGUAGE LINE LIMITED                   ,206348,Human Resources,TRANSLATORS & INTERPRETERS    
PUPIL ADMISSIONS              ,8490,TRANSLATN/SIGN/INTERPRET FEES ,08/01/2013,3379200,34258,480,LANGUAGE LINE LIMITED                   ,206348,Human Resources,TRANSLATORS & INTERPRETERS    
PUPIL ADMISSIONS              ,8490,TRANSLATN/SIGN/INTERPRET FEES ,08/01/2013,3379202,35307,817.5,LANGUAGE LINE LIMITED                   ,206348,Human Resources,TRANSLATORS & INTERPRETERS    
CATERING PREMISES & EQUIPMENT ,8010,EQUIPMENT PURCHASE AND REPAIR ,08/01/2013,3380859,12_36018                 ,670,NORSEMAN DIRECT                         ,320977,Unclassified Trade,"TROLLEY, TRUCK & BARROW MAKERS"
SOUTH WEST PAYMENTS TO TENANTS,6060,DECANTING/REMOVAL COSTS       ,08/01/2013,3381019,531702,275.21,PICKFORDS                               ,573763,Transport,REMOVALS - OVERSEAS           
TRAINING - BROCKWOOD          ,8390,STATIONERY                    ,08/01/2013,3381548,SINV00241961             ,320.91,R A ROBERTS (OFFICE EQUIPMENT) LTD      ,207777,Furniture,OFFICE FURNITURE & EQUIPMENT  
MARKETING                     ,8250,MARKETING EXPENSES            ,08/01/2013,3381580,2876,"4,590.00",IMAGE FACTORY                           ,299173,Facilities Management,PHOTOGRAPHERS - ADVERTISING & 
OFF THE SHELF                 ,8440,FEE EXPENSES                  ,08/01/2013,3381943,539,"1,000.00",I LOVE BUNNIES LTD                      ,569988,Education,PUBLISHERS                    
HOMES & LOANS TEAM            ,6280,HIRE OF PREMISES              ,08/01/2013,3381984,0044/12102               ,"1,162.00",BLADES ENTERPRISE CENTRE                ,314133,Unclassified Trade,BUSINESS CENTRES              
LSE SUB-CONTRACTORS           ,9120,OTHER AGENCIES                ,08/01/2013,3382002,2509,"7,737.71",Y A S Y                                 ,306981,Unclassified Non Trade,YOUTH ORGANISATIONS & CENTRES 
OFF THE SHELF                 ,8440,FEE EXPENSES                  ,08/01/2013,3382730,1264/COM                 ,"4,667.07",UNIVERSITY OF SHEFFIELD                 ,328421,Unclassified Non Trade,UNIVERSITIES & MEDICAL SCHOOLS
PROPERTY DISPOSAL             ,8440,FEE EXPENSES                  ,08/01/2013,3382904,6.54E+14,893,YORKSHIRE WATER                         ,362345,Utilities,WATER COMPANIES               
ACCOMMODATION                 ,6030,REPAIRS AND MTCE - RESPONSIVE ,08/01/2013,3383036,3755604,304.76,CHUBB ELECTRONIC SECURITY               ,415902,Facilities Management,SECURITY SERVICES             
LEP BUSINESS PLAN - W4        ,1194,OTHER FEES                    ,08/01/2013,3383144,1095,"8,698.96",SHEFFIELD LEP LTD                       ,482230,Unclassified Non Trade,LOCAL GOVERNMENT              
OUTDOOR EDUCATION             ,6030,REPAIRS AND MTCE - RESPONSIVE ,08/01/2013,3383192,A1059380                 ,527.57,MARKOVITZ LTD                           ,330053,Building Construction Materials,BUILDERS' MERCHANTS           
REGISTER OFFICE               ,8010,EQUIPMENT PURCHASE AND REPAIR ,08/01/2013,3383217,38656,535,SIS WORKSPACE LTD                       ,466606,Construction,OFFICE REFURBISHMENT SERVICES 
ACCOMMODATION                 ,6080,CONTRACT CLEANING             ,08/01/2013,3383318,268450,"1,837.50",CHIEF EXECUTIVE DIRECTORATE (HOMES)     ,402954,Unclassified Non Trade,LOCAL GOVERNMENT              
MCA SUPPORT TEAM              ,8440,FEE EXPENSES                  ,08/01/2013,3385285,2012/13-32               ,"6,740.00",SHEFFIELD MENTAL HEALTH C.A.B.          ,316902,Social Community Care,MENTAL HEALTH CENTRES         
SECTOR GROWTH                 ,8250,MARKETING EXPENSES            ,08/01/2013,3385444,125961,"5,750.00",RICHMOND EVENTS CO                      ,489217,Leisure Services,"EXHIBITION, EVENT & TRADE FAIR"
CREATIVE SERVICES             ,8400,PUBLICATIONS AND PERIODICALS  ,08/01/2013,3385452,Q321513                  ,"3,497.00",THE NEWSPAPER LICENSING AGENCY LTD      ,318239,Legal Services,COPYRIGHT AGENTS              
PFI 4                         ,8350,MISCELLANEOUS EXPENSES        ,08/01/2013,3385480,1074,534.05,SHEFFIELD LEP LIMITED                   ,471227,Financial Services,LEASING SERVICES              
LD PARTNERSHIP CONTRACTS      ,9160,PARTNERSHIP CONTRACTS         ,08/01/2013,3385660,2545,"11,332.25",SHEFFIELD MENCAP & GATEWAY              ,328741,Unclassified Non Trade,CHARITIES & VOLUNTARY ORGANISA
LD PARTNERSHIP CONTRACTS      ,9160,PARTNERSHIP CONTRACTS         ,08/01/2013,3385661,2546,"6,003.00",SHEFFIELD MENCAP & GATEWAY              ,328741,Unclassified Non Trade,CHARITIES & VOLUNTARY ORGANISA
RESOURCES MANAGER             ,8060,MATERIALS AND SUPPLIES GENERAL,08/01/2013,3385782,SINV00242462             ,457.23,R A ROBERTS (OFFICE EQUIPMENT) LTD      ,207777,Furniture,OFFICE FURNITURE & EQUIPMENT  
LOCAL HOUSING COMPANY         ,1194,OTHER FEES                    ,08/01/2013,3387027,57276310,600,DLA PIPER UK LLP                        ,441631,Legal Services,LEGAL SERVICES                
MCA SUPPORT TEAM              ,8440,FEE EXPENSES                  ,08/01/2013,3387060,2012/13-33               ,"1,184.16",SHEFFIELD MENTAL HEALTH C.A.B.          ,316902,Social Community Care,MENTAL HEALTH CENTRES         
RESOURCES MANAGER             ,5750,TRAINING EXPENDITURE          ,08/01/2013,3387124,42002,600,SOUTH YORKSHIRE POLICE                  ,346385,Unclassified Non Trade,POLICE                        
INSULATION                    ,1161,NC&A MAIN CONTRACT            ,08/01/2013,3387489,NH02431A/9               ,"231,700.00",CARILLION HOME SERVICES LTD             ,512915,Construction,INSULATION INSTALLERS         
PFI 4                         ,8350,MISCELLANEOUS EXPENSES        ,08/01/2013,3387550,1076,"20,160.11",SHEFFIELD LEP LIMITED                   ,471227,Financial Services,LEASING SERVICES              
GRANT AID - PERFORMING & COMMU,8180,GRANTS                        ,08/01/2013,3387736,SIN000253                ,"42,000.00",SHEFFIELD THEATRES TRUST                ,297678,Leisure Services,THEATRES                      
OFF STREET CAR PARKS          ,6030,REPAIRS AND MTCE - RESPONSIVE ,08/01/2013,3387746,246305,446.5,PHS COMPLIANCE                          ,493368,Environmental Services,GAS & ELECTRICAL TESTING & INS
BUSINESS TRANSFORMATION TEAM  ,8550,OTHER SERVICES                ,08/01/2013,3387943,SILEO-56                 ,"1,750.00",SILEO LIMITED                           ,576566,Human Resources,BUSINESS INFORMATION SERVICES 
BUSINESS TRANSFORMATION TEAM  ,8550,OTHER SERVICES                ,08/01/2013,3387944,SILEO-55                 ,"1,400.00",SILEO LIMITED                           ,576566,Human Resources,BUSINESS INFORMATION SERVICES 
CORONIAL SERVICES             ,8550,OTHER SERVICES                ,08/01/2013,3388275,4000337104,285.94,SHEFFIELD TEACHING HOSPITALS NHS TRUST  ,308114,Unclassified Non Trade,HOSPITALS                     
ADULT SOCIAL CARE PURCHASING  ,9180,OTHER CLIENT EXPENDITURE      ,08/01/2013,3388307,105724,750.05,REDACTED PERSONAL DATA,570219,Social Community Care,HOME CARE SERVICES            
ADULT SOCIAL CARE PURCHASING  ,9180,OTHER CLIENT EXPENDITURE      ,08/01/2013,3388308,105725,288.64,REDACTED PERSONAL DATA,570219,Social Community Care,HOME CARE SERVICES            
ADULT SOCIAL CARE PURCHASING  ,9180,OTHER CLIENT EXPENDITURE      ,08/01/2013,3388312,105727,268.4,REDACTED PERSONAL DATA,570219,Social Community Care,HOME CARE SERVICES            
ADULT SOCIAL CARE PURCHASING  ,9180,OTHER CLIENT EXPENDITURE      ,08/01/2013,3388317,105729,277.09,REDACTED PERSONAL DATA,570219,Social Community Care,HOME CARE SERVICES            
RESOURCES MANAGER             ,8110,"CLOTHING, UNIFORM AND LAUNDRY ",08/01/2013,3388320,7871,"2,497.60",KITLOCKER.COM                           ,438398,Sports & Playground,SPORTS GOODS SHOPS            
RESOURCES MANAGER             ,8110,"CLOTHING, UNIFORM AND LAUNDRY ",08/01/2013,3388323,7874,"2,092.80",KITLOCKER.COM                           ,438398,Sports & Playground,SPORTS GOODS SHOPS            
ADULT SOCIAL CARE PURCHASING  ,9180,OTHER CLIENT EXPENDITURE      ,08/01/2013,3388324,105722,389.4,REDACTED PERSONAL DATA,570219,Social Community Care,HOME CARE SERVICES            
ADULT SOCIAL CARE PURCHASING  ,9180,OTHER CLIENT EXPENDITURE      ,08/01/2013,3388328,105804,"1,055.89",REDACTED PERSONAL DATA,570219,Social Community Care,HOME CARE SERVICES            
ADULT SOCIAL CARE PURCHASING  ,9180,OTHER CLIENT EXPENDITURE      ,08/01/2013,3388330,105803,"1,024.80",REDACTED PERSONAL DATA,570219,Social Community Care,HOME CARE SERVICES            
MINOR ADAPTATIONS             ,6020,REPAIRS AND MTCE - PROGRAMMED ,08/01/2013,3388354,1917/12                  ,597,PIKE JOINERY LIMITED                    ,453858,Construction,CARPENTERS & JOINERS          
MINOR ADAPTATIONS             ,6030,REPAIRS AND MTCE - RESPONSIVE ,08/01/2013,3388357,1916/12                  ,417,PIKE JOINERY LIMITED                    ,453858,Construction,CARPENTERS & JOINERS          
MINOR ADAPTATIONS             ,6030,REPAIRS AND MTCE - RESPONSIVE ,08/01/2013,3388359,1915/12                  ,443,PIKE JOINERY LIMITED                    ,453858,Construction,CARPENTERS & JOINERS          
MINOR ADAPTATIONS             ,6020,REPAIRS AND MTCE - PROGRAMMED ,08/01/2013,3388360,1914/12                  ,865,PIKE JOINERY LIMITED                    ,453858,Construction,CARPENTERS & JOINERS          
MINOR ADAPTATIONS             ,6030,REPAIRS AND MTCE - RESPONSIVE ,08/01/2013,3388362,1913/12                  ,477,PIKE JOINERY LIMITED                    ,453858,Construction,CARPENTERS & JOINERS          
MINOR ADAPTATIONS             ,6020,REPAIRS AND MTCE - PROGRAMMED ,08/01/2013,3388365,1911/12                  ,723,PIKE JOINERY LIMITED                    ,453858,Construction,CARPENTERS & JOINERS          
RESOURCES MANAGER             ,8110,"CLOTHING, UNIFORM AND LAUNDRY ",08/01/2013,3388370,7872,"2,827.50",KITLOCKER.COM                           ,438398,Sports & Playground,SPORTS GOODS SHOPS            
CLAIMS                        ,8470,LEGAL FEES                    ,08/01/2013,3388411,1810511,"13,272.80",BERRYMANS LACE MAWER                    ,530263,Legal Services,SOLICITORS                    
STRATEGIC EVENTS              ,8440,FEE EXPENSES                  ,08/01/2013,3388420,109388,"50,000.00",WELCOME TO YORKSHIRE                    ,516226,Facilities Management,TOURIST INFORMATION           
SCC BALANCE SHEET             ,1540,DEMOLITION CONTROL ACCOUNT    ,08/01/2013,3388554,90180205,"2,078.29",BRITISH GAS BUSINESS                    ,515715,Utilities,GAS COMPANIES                 
SCC BALANCE SHEET             ,1540,DEMOLITION CONTROL ACCOUNT    ,08/01/2013,3388555,90180205,440.22,BRITISH GAS BUSINESS                    ,515715,Utilities,GAS COMPANIES                 
SCC BALANCE SHEET             ,1540,DEMOLITION CONTROL ACCOUNT    ,08/01/2013,3388556,90180205,305.75,BRITISH GAS BUSINESS                    ,515715,Utilities,GAS COMPANIES                 
GRNI NO LIABILITY VAL / OHEAD ,8060,MATERIALS AND SUPPLIES GENERAL,08/01/2013,3388571,1105955232,351.15,KONICA MINOLTA BUSINESS SOLUTIONS       ,375732,ICT,PHOTOCOPIERS                  
SCC BALANCE SHEET             ,1540,DEMOLITION CONTROL ACCOUNT    ,08/01/2013,3388573,YD220155430              ,841,NORTHERN POWERGRID                      ,349525,Utilities,ELECTRICITY COMPANIES         
GRNI NO LIABILITY NOT OHEAD   ,8060,MATERIALS AND SUPPLIES GENERAL,08/01/2013,3388576,YD20147639               ,"3,595.07",NORTHERN POWERGRID                      ,349525,Utilities,ELECTRICITY COMPANIES         
NORTH OF ENGLAND CONFERENCE   ,8440,FEE EXPENSES                  ,08/01/2013,3388642,1006555,"2,700.00",SPIRIT FOOD SERVICES LTD                ,557140,Catering,CATERING FOOD & DRINK SUPPLIER
SGMT (MUSEUMS SHEFFIELD)      ,8180,GRANTS                        ,08/01/2013,3388652,SIN002038                ,"510,928.00",MUSEUMS SHEFFIELD                       ,380579,Leisure Services,MUSEUMS                       
PFI 3                         ,6270,SERVICE / PFI UNITARY CHARGE  ,08/01/2013,3388681,ASSL/13/01               ,"615,010.54",ACADEMY SERVICES (SHEFFIELD) LTD        ,438883,Financial Services,LEASING SERVICES              
FAMILY & COMM MANAGEMENT      ,8420,ADVERTISING AND PUBLICITY     ,08/01/2013,3388713,274013,450,HALLAM FM                               ,205342,Unclassified Trade,RADIO & TELEVISION STATIONS   
INCOME MANAGEMENT             ,8420,ADVERTISING AND PUBLICITY     ,08/01/2013,3388736,980961,583.8,DESIGN & PRINT SERVICE (SHEFFIELD HOMES),387617,Facilities Management,PRINTERS                      
PURCHASING & PAYMENTS TEAM    ,7020,VEHICLE FUEL COSTS            ,08/01/2013,3388739,1019806722,"3,239.77",ALLSTAR BUSINESS SOLUTIONS LTD          ,444333,Vehicles Not Buses,CAR & TRUCK LEASING & CONTRACT
BUS PASSES HARDSHIP FUND      ,9120,OTHER AGENCIES                ,08/01/2013,3388743,SL0064262                ,"6,878.10",SYPTE                                   ,208757,Transport,BUS & COACH OPERATORS & STATIO
GATEWAY GROUP 1A              ,8440,FEE EXPENSES                  ,08/01/2013,3388773,SL0064264                ,956.25,SYPTE                                   ,208757,Transport,BUS & COACH OPERATORS & STATIO
ACCOMMODATION STRATEGY        ,8550,OTHER SERVICES                ,08/01/2013,3388776,38693,"1,240.00",SIS WORKSPACE LTD                       ,466606,Construction,OFFICE REFURBISHMENT SERVICES 
SOUTH EAST AREA               ,8050,FURNITURE PURCHASES           ,08/01/2013,3388828,INV0058025               ,847.5,POSTURITE (UK) LTD.                     ,207615,Consultancy,ERGONOMICS                    
HARD FM                       ,6020,REPAIRS AND MTCE - PROGRAMMED ,08/01/2013,3388860,246359,532.8,PHS COMPLIANCE                          ,493368,Environmental Services,GAS & ELECTRICAL TESTING & INS
POST 16 TRAVEL PASSES         ,9430,SEN DISCRETIONARY             ,08/01/2013,3388871,I00357                   ,563.75,LONGLEY PARK SIXTH FORM COLLEGE         ,375671,Unclassified Non Trade,SCHOOLS & COLLEGES - FURTHER E
POST 16 TRAVEL PASSES         ,9430,SEN DISCRETIONARY             ,08/01/2013,3388872,I00356                   ,"2,694.75",LONGLEY PARK SIXTH FORM COLLEGE         ,375671,Unclassified Non Trade,SCHOOLS & COLLEGES - FURTHER E
SEN TAXIS                     ,7060,EXTERNAL VEHICLE HIRE         ,08/01/2013,3388875,3,"1,048.80",ACTIVE RESPONSE TRANSPORT               ,575702,Transport,TAXIS & PRIVATE HIRE          
CORPORATE CS MGT              ,6150,ELECTRICITY                   ,08/01/2013,3388877,79781989790,"1,978.65",NPOWER                                  ,414736,Utilities,ELECTRICITY COMPANIES         
PARKS OPERATIONS EAST         ,8550,OTHER SERVICES                ,08/01/2013,3388881,8520548911,364.92,VEOLIA ES (UK) LIMITED                  ,341639,Environmental Services,WASTE DISPOSAL SERVICES       
PARKS OPERATIONS EAST         ,8550,OTHER SERVICES                ,08/01/2013,3388882,8520548915,405.2,VEOLIA ES (UK) LIMITED                  ,341639,Environmental Services,WASTE DISPOSAL SERVICES       
PMY MAINT.HM&E -ABBEY LANE    ,1161,NC&A MAIN CONTRACT            ,08/01/2013,3388887,ED03626G/2               ,"61,100.00",KIER SHEFFIELD LLP                      ,352687,Construction,PROPERTY MAINTENANCE & REPAIRS
PMY MAINT HEATING -STRADBROKE ,1161,NC&A MAIN CONTRACT            ,08/01/2013,3388888,ED03626D/9               ,"73,900.00",KIER SHEFFIELD LLP                      ,352687,Construction,PROPERTY MAINTENANCE & REPAIRS
EMERGENCY DEMOLITIONS         ,1161,NC&A MAIN CONTRACT            ,08/01/2013,3388890,SH03085/24               ,"32,000.00",HAGUE PLANT LTD                         ,205330,Vehicles Not Buses,PLANT & MACHINERY HIRE & LEASI
KIER ALMO INVESTMENT WORK     ,1157,DWELLINGS MAIN CONTRACT       ,08/01/2013,3388893,SH03274/18               ,"780,564.39",KIER SHEFFIELD LLP                      ,352687,Construction,PROPERTY MAINTENANCE & REPAIRS
INSURANCE AND RISK            ,8490,OTHER PROFESSIONAL FEES       ,08/01/2013,3388897,303,800,INSURANCE DATABASE SERVICES LIMITED     ,547173,Financial Services,INSURANCE - OTHER             
PARKS OPERATIONS EAST         ,8550,OTHER SERVICES                ,08/01/2013,3388912,8520548910,512.7,VEOLIA ES (UK) LIMITED                  ,341639,Environmental Services,WASTE DISPOSAL SERVICES       
PARKS OPERATIONS EAST         ,8550,OTHER SERVICES                ,08/01/2013,3388916,8520548916,503.12,VEOLIA ES (UK) LIMITED                  ,341639,Environmental Services,WASTE DISPOSAL SERVICES       
HILLSBOROUGH PARK             ,8060,MATERIALS AND SUPPLIES GENERAL,08/01/2013,3388933,90977,289.6,THE PLUSS ORGANISATION                  ,575183,Social Community Care,DISABILITY & SPECIAL NEEDS - S
GRAVES PARK - ANIMAL FARM INC ,8060,MATERIALS AND SUPPLIES GENERAL,08/01/2013,3388938,216573,731.69,ARGO FEEDS LTD                          ,203028,Unclassified Trade,PET FOODS & ANIMAL FEEDS      
SEN ASSESSMENT & PLACEMENT TEA,8440,FEE EXPENSES                  ,08/01/2013,3388952,2100148067,"18,503.21",SHEFFIELD CHILDRENS HOSPITAL NHS  TRUST ,332785,Unclassified Non Trade,HOSPITALS                     
SEN ASSESSMENT & PLACEMENT TEA,8440,FEE EXPENSES                  ,08/01/2013,3388954,2100148080,"5,463.25",SHEFFIELD CHILDRENS NHS FOUNDATION TRUST,449452,Unclassified Non Trade,HOSPITALS                     
SEN ASSESSMENT & PLACEMENT TEA,8440,FEE EXPENSES                  ,08/01/2013,3388955,2100148078,"1,450.72",SHEFFIELD CHILDRENS NHS FOUNDATION TRUST,449452,Unclassified Non Trade,HOSPITALS                     
FOUNDATION STAGE              ,8440,FEE EXPENSES                  ,08/01/2013,3388956,2100148127,"5,382.00",SHEFFIELD CHILDRENS HOSPITAL NHS  TRUST ,332785,Unclassified Non Trade,HOSPITALS                     
CARERS PIA BUDGET             ,9160,PARTNERSHIP CONTRACTS         ,08/01/2013,3389144,GFI001121004             ,"39,737.42",MAKING SPACE                            ,574625,Social Community Care,MENTAL HEALTH CENTRES         
ALDINE HOUSE                  ,5610,AGENCY STAFF                  ,08/01/2013,3389146,T3968                    ,"1,000.00",SOURCE EDUCATION T/A NEAT IDEAS         ,524828,Human Resources,EMPLOYMENT & RECRUITMENT AGENC
OSP2 KIER LTD CONTROL ACCOUNT ,9620,FINANCIAL PROCESSES           ,08/01/2013,3389156,130701,"641,396.00",KIER LIMITED                            ,516733,Facilities Management,FACILITIES MANAGEMENT         
ELECTRIC WORKS BUSINESS CENTRE,8410,GENERAL OFFICE EXPENSES       ,08/01/2013,3389171,5918,"48,985.00",CREATIVE SPACE MANAGEMENT LTD (ELECTRIC ,464280,Unclassified Trade,PROPERTY & ESTATE MANAGEMENT  
SHOPPING SERVICES             ,4260,COSTS RECOVERED               ,08/01/2013,3389198,4.72E+15,"4,387.50",BARCLAYCARD COMMERCIAL                  ,412703,Financial Services,CREDIT CARDS & DISCOUNT CARDS 
TRAINING - BROCKWOOD          ,8440,FEE EXPENSES                  ,08/01/2013,3389220,20049380-007             ,890,SHEFFIELD HALLAM UNIVERSITY             ,301311,Unclassified Non Trade,UNIVERSITIES & MEDICAL SCHOOLS
MARKETING SHEFFIELD           ,8620,COMPUTER MAINTENANCE          ,08/01/2013,3389238,38932,750,DIGITAL EXCHANGE (YORKSHIRE) LTD        ,204379,ICT,COMPUTER CONSUMABLES & STATION
SEN TAXIS                     ,7060,EXTERNAL VEHICLE HIRE         ,08/01/2013,3389265,CYPD1212                 ,"2,440.61",S1 TAXIS LTD                            ,527712,Transport,TAXIS & PRIVATE HIRE          
SOCIAL CARE TAXIS             ,7060,EXTERNAL VEHICLE HIRE         ,08/01/2013,3389266,SS1212                   ,"1,900.26",S1 TAXIS LTD                            ,527712,Transport,TAXIS & PRIVATE HIRE          
BOOKS & OTHER MATERIALS       ,8080,MEDIA                         ,08/01/2013,3389274,1648543,"1,883.05",BERTRAM LIBRARY SERVICES                ,418929,Education,EDUCATIONAL EQUIPMENT & SUPPLI
BOOKS & OTHER MATERIALS       ,8080,MEDIA                         ,08/01/2013,3389275,1646062,"2,010.93",BERTRAM LIBRARY SERVICES                ,418929,Education,EDUCATIONAL EQUIPMENT & SUPPLI
SCHOOLS LIBRARY SERVICE       ,8080,LIBRARY MATERIALS             ,08/01/2013,3389278,1644509,325.1,BERTRAM LIBRARY SERVICES                ,418929,Education,EDUCATIONAL EQUIPMENT & SUPPLI
EAST - BURNGREAVE             ,1157,DWELLINGS MAIN CONTRACT       ,08/01/2013,3389447,12060048,"2,700.00",KIER SHEFFIELD LLP                      ,352687,Construction,PROPERTY MAINTENANCE & REPAIRS
BOOKS & OTHER MATERIALS       ,8080,LIBRARY MATERIALS             ,08/01/2013,3389450,I-400095170              ,"1,583.00",COUTTS INFORMATION SERVICES LIMITED     ,413252,Education,BOOKSELLERS                   
BOOKS & OTHER MATERIALS       ,8080,LIBRARY MATERIALS             ,08/01/2013,3389451,1646307,345.8,BERTRAM LIBRARY SERVICES                ,418929,Education,EDUCATIONAL EQUIPMENT & SUPPLI
BOOKS & OTHER MATERIALS       ,8080,LIBRARY MATERIALS             ,08/01/2013,3389454,1645256,691.86,BERTRAM LIBRARY SERVICES                ,418929,Education,EDUCATIONAL EQUIPMENT & SUPPLI
OBSOLETE HEATING              ,1157,DWELLINGS MAIN CONTRACT       ,08/01/2013,3389467,12060053,"94,012.00",KIER SHEFFIELD LLP                      ,352687,Construction,PROPERTY MAINTENANCE & REPAIRS
HEATING BREAKDOWNS            ,1157,DWELLINGS MAIN CONTRACT       ,08/01/2013,3389468,12060051,"51,954.00",KIER SHEFFIELD LLP                      ,352687,Construction,PROPERTY MAINTENANCE & REPAIRS
OBSOLETE HEATING              ,1157,DWELLINGS MAIN CONTRACT       ,08/01/2013,3389498,12060052,"2,584.00",KIER SHEFFIELD LLP                      ,352687,Construction,PROPERTY MAINTENANCE & REPAIRS
NORTH - NEW PARSON CROSS      ,1157,DWELLINGS MAIN CONTRACT       ,08/01/2013,3389506,12060047,"7,422.00",KIER SHEFFIELD LLP                      ,352687,Construction,PROPERTY MAINTENANCE & REPAIRS
NEW HEATING INSTALLATIONS     ,1157,DWELLINGS MAIN CONTRACT       ,08/01/2013,3389510,12060054,"2,474.00",KIER SHEFFIELD LLP                      ,352687,Construction,PROPERTY MAINTENANCE & REPAIRS
HEATING BREAKDOWNS            ,1157,DWELLINGS MAIN CONTRACT       ,08/01/2013,3389515,12060050,"1,350.00",KIER SHEFFIELD LLP                      ,352687,Construction,PROPERTY MAINTENANCE & REPAIRS
STADIA TECHNOLOGY PARK        ,6150,ELECTRICITY                   ,08/01/2013,3389174,A3558451/1368142         ,427.38,BRITISH GAS BUSINESS                    ,370790,Utilities,GAS COMPANIES                 
CONTRACTOR PAYMENTS - AMEY    ,6150,ELECTRICITY                   ,08/01/2013,3389192,27140568,332.2,NPOWER NORTHERN LTD                     ,207191,Utilities,ELECTRICITY COMPANIES         
INTELLIGENT TRANSPORT SYSTEMS ,6390,NETWORK COMMUNICATIONS        ,08/01/2013,3389504,VP98220270M1250106       ,407.66,BRITISH TELECOMMUNICATIONS PLC          ,295860,ICT,TELECOMMUNICATION SERVICES    
ADULT SOCIAL CARE PURCHASING  ,9210,FUNDED NURSING CARE (INCOME)  ,08/01/2013,3389128,J559350                  ,"2,330.37",REDACTED PERSONAL DATA,426316,Social Community Care,CAREFIRST DIRECT PAYMENTS     
PURCHASING LEARNING DISABILITI,9190,DIRECT PAYMENTS               ,08/01/2013,3389129,J559350                  ,"3,844.56",REDACTED PERSONAL DATA,457550,Social Community Care,CAREFIRST DIRECT PAYMENTS     
PURCHASING LEARNING DISABILITI,9190,DIRECT PAYMENTS               ,08/01/2013,3389130,J559350                  ,"16,701.97",REDACTED PERSONAL DATA,537032,Social Community Care,CAREFIRST DIRECT PAYMENTS     
ADULT SOCIAL CARE PURCHASING  ,9190,DIRECT PAYMENTS               ,08/01/2013,3389131,J559350                  ,"1,306.55",REDACTED PERSONAL DATA,550624,Social Community Care,CAREFIRST DIRECT PAYMENTS     
ADULT SOCIAL CARE PURCHASING  ,9190,DIRECT PAYMENTS               ,08/01/2013,3389132,J559350                  ,"1,651.52",REDACTED PERSONAL DATA,556288,Social Community Care,CAREFIRST DIRECT PAYMENTS     
ADULT SOCIAL CARE PURCHASING  ,9190,DIRECT PAYMENTS               ,08/01/2013,3389133,J559350                  ,"1,719.28",REDACTED PERSONAL DATA,556454,Social Community Care,CAREFIRST DIRECT PAYMENTS     
ADULT SOCIAL CARE PURCHASING  ,4260,DIRECT PAYMENTS               ,08/01/2013,3389134,J559350                  ,625.76,REDACTED PERSONAL DATA,556890,Social Community Care,CAREFIRST DIRECT PAYMENTS     
INDEPENDENT FOSTERING PLACEMEN,9270,INDEPENDENT FOSTERING         ,08/01/2013,3389104,123944,830,REDACTED PERSONAL DATA,349291,Social Community Care,Adoption & Fostering
INDEPENDENT FOSTERING PLACEMEN,9270,INDEPENDENT FOSTERING         ,08/01/2013,3389105,NFA74534                 ,"3,060.12",REDACTED PERSONAL DATA,432914,Social Community Care,Adoption & Fostering
INDEPENDENT FOSTERING PLACEMEN,9270,INDEPENDENT FOSTERING         ,08/01/2013,3389106,NFA74535                 ,"3,120.04",REDACTED PERSONAL DATA,432914,Social Community Care,Adoption & Fostering
INDEPENDENT FOSTERING PLACEMEN,9270,INDEPENDENT FOSTERING         ,08/01/2013,3389107,4060,"5,570.60",REDACTED PERSONAL DATA,452499,Social Community Care,Adoption & Fostering
INDEPENDENT FOSTERING PLACEMEN,9270,INDEPENDENT FOSTERING         ,08/01/2013,3389108,123945,874,REDACTED PERSONAL DATA,349291,Social Community Care,Adoption & Fostering
INDEPENDENT FOSTERING PLACEMEN,9270,INDEPENDENT FOSTERING         ,08/01/2013,3389109,1283,"3,655.50",REDACTED PERSONAL DATA,562974,Social Community Care,Adoption & Fostering
LEAVING CARE                  ,9270,CARELEAVERS ACCOMMODATION     ,08/01/2013,3389113,MW22CDRIVEC              ,"1,208.00",REDACTED PERSONAL DATA,567053,Unclassified Non Trade,OUT OF SCOPE FOR SIC MONITORIN
LEAVING CARE                  ,9270,CARELEAVERS ACCOMMODATION     ,08/01/2013,3389114,4133,"3,108.58",TWENTY FOUR SEVEN                       ,364408,Unclassified Non Trade,CHARITIES & VOLUNTARY ORGANISA
LEAVING CARE                  ,9270,CARELEAVERS ACCOMMODATION     ,08/01/2013,3389115,5488,664.28,PROGRESSIVE CARE LTD                    ,343548,Social Community Care,CHILDREN'S HOMES              
CWD INDEPENDENT PLACEMENTS    ,9270,INDEPENDENT RESIDENTIAL PMENT ,08/01/2013,3389117,570,"19,671.43",NEW OPTIONS LTD                         ,527680,Unclassified Non Trade,SCHOOLS - SPECIAL             
CWD INDEPENDENT PLACEMENTS    ,9270,INDEPENDENT RESIDENTIAL PMENT ,08/01/2013,3389118,571,"49,178.57",NEW OPTIONS LTD                         ,527680,Unclassified Non Trade,SCHOOLS - SPECIAL             
LEAVING CARE                  ,9270,CARELEAVERS ACCOMMODATION     ,08/01/2013,3389119,878,"15,972.76",REDACTED PERSONAL DATA,326884,Social Community Care,CHILDCARE SERVICES            
LEAVING CARE                  ,9270,CARELEAVERS ACCOMMODATION     ,08/01/2013,3389120,AS/SHEF/012              ,"2,648.00",REDACTED PERSONAL DATA,575497,Social Community Care,HOME SUPPORT SERVICES         
LEAVING CARE                  ,9270,CARELEAVERS ACCOMMODATION     ,08/01/2013,3389121,ESG:012                  ,"1,628.58",JORDAN XAVIER LTD                       ,565147,Unclassified Trade,ACCOMMODATION AGENCIES - RESID
LEAVING CARE                  ,9270,CARELEAVERS ACCOMMODATION     ,08/01/2013,3389122,IN/147/85                ,"7,630.60",BROOKFIELD HOUSE                        ,329936,Social Community Care,CHILDREN'S HOMES              
LEAVING CARE                  ,9270,CARELEAVERS ACCOMMODATION     ,08/01/2013,3389124,1778,474.5,INTACT PROJECT LTD                      ,573644,Unclassified Trade,LETTING AGENTS                
LEAVING CARE                  ,9270,CARELEAVERS ACCOMMODATION     ,08/01/2013,3389125,1790,474.5,INTACT PROJECT LTD                      ,573644,Unclassified Trade,LETTING AGENTS                
LEAVING CARE                  ,9270,CARELEAVERS ACCOMMODATION     ,08/01/2013,3389126,1801,474.5,INTACT PROJECT LTD                      ,573644,Unclassified Trade,LETTING AGENTS                
PURCHASING                    ,9210,CONTINUING NURSING CARE       ,08/01/2013,3389035,J560490 030213           ,"6,633.60",PRECEPTORY LODGE                        ,565226,Social Community Care,RESIDENTIAL CARE HOMES        
ADULT SOCIAL CARE PURCHASING  ,9200,CONTINUING RESIDENTIAL CARE   ,08/01/2013,3389036,J560493 030213           ,"1,673.40",BUPA CARE SERVICES                      ,568893,Social Community Care,RESIDENTIAL CARE HOMES        
ADULT SOCIAL CARE PURCHASING  ,4260,RESIDENTIAL COSTS RECOVERED   ,08/01/2013,3389038,J559339 060113           ,749.26,HALLAMSHIRE REST HOME                   ,362093,Social Community Care,REST & RETIREMENT HOMES       
ADULT SOCIAL CARE PURCHASING  ,4260,RESIDENTIAL COSTS RECOVERED   ,08/01/2013,3389040,J559346 060113           ,425.71,ROSEBERRY CARE CENTRES GB LTD           ,361953,Social Community Care,NURSING HOMES                 
ADULT SOCIAL CARE PURCHASING  ,4260,RESIDENTIAL COSTS RECOVERED   ,08/01/2013,3389041,J559790 060113           ,569.2,SILVER HEALTH CARE LTD                  ,361802,Social Community Care,RESIDENTIAL CARE HOMES        
ADULT SOCIAL CARE PURCHASING  ,4260,NURSING COSTS RECOVERED       ,08/01/2013,3389042,J559795 060113           ,"1,629.74",NEWFIELD NURSING HOME                   ,361980,Social Community Care,NURSING HOMES                 
ADULT SOCIAL CARE PURCHASING  ,4260,RESIDENTIAL COSTS RECOVERED   ,08/01/2013,3389043,J559798 060113           ,493.83,NORTH HILL RESIDENTIAL HOME             ,362254,Social Community Care,RESIDENTIAL CARE HOMES        
ADULT SOCIAL CARE PURCHASING  ,4260,RESIDENTIAL COSTS RECOVERED   ,08/01/2013,3389044,J559800 060113           ,434.61,NORTON LEES HALL/LODGE                  ,433750,Unclassified Non Trade,SCHOOLS - LOCAL AUTHORITY     
ADULT SOCIAL CARE PURCHASING  ,9200,CONTINUING RESIDENTIAL CARE   ,08/01/2013,3389045,J560207 030213           ,"17,410.40",LEYTON HEALTHCARE (NO.13) LIMITED       ,576064,Social Community Care,RESIDENTIAL CARE HOMES        
ADULT SOCIAL CARE PURCHASING  ,9200,CONTINUING RESIDENTIAL CARE   ,08/01/2013,3389046,J560210 030213           ,"7,243.48",SANDFORD HOUSE                          ,361790,Social Community Care,RESIDENTIAL CARE HOMES        
PURCHASING                    ,9200,CONTINUING RESIDENTIAL CARE   ,08/01/2013,3389046,J560210 030213           ,"18,608.72",SANDFORD HOUSE                          ,361790,Social Community Care,RESIDENTIAL CARE HOMES        
ADULT SOCIAL CARE PURCHASING  ,9200,CONTINUING RESIDENTIAL CARE   ,08/01/2013,3389047,J560221 030213           ,"1,521.68",EAST BANK ROAD (258A)                   ,362007,Social Community Care,RESIDENTIAL CARE HOMES        
PURCHASING LEARNING DISABILITI,9200,CONTINUING RESIDENTIAL CARE   ,08/01/2013,3389047,J560221 030213           ,"2,771.76",EAST BANK ROAD (258A)                   ,362007,Social Community Care,RESIDENTIAL CARE HOMES        
ADULT SOCIAL CARE PURCHASING  ,9200,CONTINUING RESIDENTIAL CARE   ,08/01/2013,3389048,J560222 030213           ,"2,734.08",EAST BANK ROAD (458A)                   ,361789,Social Community Care,RESIDENTIAL CARE HOMES        
PURCHASING LEARNING DISABILITI,9200,CONTINUING RESIDENTIAL CARE   ,08/01/2013,3389048,J560222 030213           ,"14,238.36",EAST BANK ROAD (458A)                   ,361789,Social Community Care,RESIDENTIAL CARE HOMES        
ADULT SOCIAL CARE PURCHASING  ,9200,CONTINUING RESIDENTIAL CARE   ,08/01/2013,3389049,J560235 030213           ,"2,460.00",NEWFIELD VIEW                           ,361863,Social Community Care,NURSING HOMES                 
PURCHASING LEARNING DISABILITI,9200,CONTINUING RESIDENTIAL CARE   ,08/01/2013,3389049,J560235 030213           ,"18,312.80",NEWFIELD VIEW                           ,361863,Social Community Care,NURSING HOMES                 
ADULT SOCIAL CARE PURCHASING  ,9200,CONTINUING RESIDENTIAL CARE   ,08/01/2013,3389050,J560236 030213           ,"13,276.00",ROSE COTTAGE CARE HOME                  ,361940,Social Community Care,NURSING HOMES                 
ADULT SOCIAL CARE PURCHASING  ,9210,CONTINUING NURSING CARE       ,08/01/2013,3389050,J560236 030213           ,"6,336.00",ROSE COTTAGE CARE HOME                  ,361940,Social Community Care,NURSING HOMES                 
ADULT SOCIAL CARE PURCHASING  ,9210,CONTINUING NURSING CARE       ,08/01/2013,3389051,J560241 030213           ,"17,673.20",FULWOOD LODGE NURSING HOME              ,361775,Social Community Care,NURSING HOMES                 
ADULT SOCIAL CARE PURCHASING  ,9200,CONTINUING RESIDENTIAL CARE   ,08/01/2013,3389052,J560242 030213           ,"18,872.00",SILVER HEALTH CARE LTD                  ,361802,Social Community Care,RESIDENTIAL CARE HOMES        
ADULT SOCIAL CARE PURCHASING  ,9200,CONTINUING RESIDENTIAL CARE   ,08/01/2013,3389053,J560246 030213           ,"2,200.00",THE GLEN PRIVATE NURSING                ,361760,Social Community Care,NURSING HOMES                 
ADULT SOCIAL CARE PURCHASING  ,9200,CONTINUING RESIDENTIAL CARE   ,08/01/2013,3389054,J560259 030213           ,"1,548.00",EGERTON HSE (EGERTON HOUSE RESIDEN HOME),361848,Social Community Care,RESIDENTIAL CARE HOMES        
ADULT SOCIAL CARE PURCHASING  ,9200,CONTINUING RESIDENTIAL CARE   ,08/01/2013,3389055,J560262 030213           ,"1,412.00",THE GREEN                               ,361956,Social Community Care,NURSING HOMES                 
ADULT SOCIAL CARE PURCHASING  ,9210,CONTINUING NURSING CARE       ,08/01/2013,3389056,J560265 030213           ,"1,892.92",DERWENT LODGE                           ,362172,Social Community Care,NURSING HOMES                 
PDSI PURCHASING               ,9200,CONTINUING RESIDENTIAL CARE   ,08/01/2013,3389057,J560266 030213           ,"1,240.68", GUINNESS NORTHERN COUNTIES             ,362173,Social Community Care,RESIDENTIAL CARE HOMES        
ADULT SOCIAL CARE PURCHASING  ,9200,CONTINUING RESIDENTIAL CARE   ,08/01/2013,3389057,J560266 030213           ,"1,452.00", GUINNESS NORTHERN COUNTIES             ,362173,Social Community Care,RESIDENTIAL CARE HOMES        
PURCHASING LEARNING DISABILITI,9200,CONTINUING RESIDENTIAL CARE   ,08/01/2013,3389057,J560266 030213           ,"13,019.88", GUINNESS NORTHERN COUNTIES             ,362173,Social Community Care,RESIDENTIAL CARE HOMES        
ADULT SOCIAL CARE PURCHASING  ,9200,CONTINUING RESIDENTIAL CARE   ,08/01/2013,3389058,J560274 030213           ,"36,756.00",NIGHTINGALES RES.HOME                   ,361897,Social Community Care,RESIDENTIAL CARE HOMES        
ADULT SOCIAL CARE PURCHASING  ,9200,CONTINUING RESIDENTIAL CARE   ,08/01/2013,3389059,J560277 030213           ,"12,640.00",HADDON COURT NURSING HOME               ,361916,Social Community Care,NURSING HOMES                 
ADULT SOCIAL CARE PURCHASING  ,9210,CONTINUING NURSING CARE       ,08/01/2013,3389059,J560277 030213           ,"28,776.00",HADDON COURT NURSING HOME               ,361916,Social Community Care,NURSING HOMES                 
PURCHASING                    ,9200,CONTINUING RESIDENTIAL CARE   ,08/01/2013,3389060,J560282 030213           ,"4,802.52",EAGLE HOUSE CARE HOME                   ,361977,Social Community Care,RESIDENTIAL CARE HOMES        
PURCHASING LEARNING DISABILITI,9200,CONTINUING RESIDENTIAL CARE   ,08/01/2013,3389060,J560282 030213           ,"1,580.00",EAGLE HOUSE CARE HOME                   ,361977,Social Community Care,RESIDENTIAL CARE HOMES        
ADULT SOCIAL CARE PURCHASING  ,9200,CONTINUING RESIDENTIAL CARE   ,08/01/2013,3389060,J560282 030213           ,"20,984.88",EAGLE HOUSE CARE HOME                   ,361977,Social Community Care,RESIDENTIAL CARE HOMES        
